Body name,Capital/Revenue,Service Area,Dept,Expenses Type,Detailed Expenses Type,Transaction number,Expense Code,Date,Amount,Supplier Name,Supplier ID
WANDSWORTH COUNCIL,Revenue,CS,,COMMUNICATIONS & COMP,I.T. EQUIPMENT & MAINTENANCE,881424,100336210,23-Feb-16,307.50,DANWOOD GROUP LTD,SP0002739
WANDSWORTH COUNCIL,Revenue,CS,,COMMUNICATIONS & COMP,I.T. EQUIPMENT & MAINTENANCE,881424,100336210,23-Feb-16,72.45,DANWOOD GROUP LTD,SP0002739
WANDSWORTH COUNCIL,Revenue,CS,,COMMUNICATIONS & COMP,I.T. EQUIPMENT & MAINTENANCE,881424,100336210,23-Feb-16,153.75,DANWOOD GROUP LTD,SP0002739
WANDSWORTH COUNCIL,Revenue,CS,,COMMUNICATIONS & COMP,I.T. EQUIPMENT & MAINTENANCE,881424,100336210,23-Feb-16,153.75,DANWOOD GROUP LTD,SP0002739
WANDSWORTH COUNCIL,Revenue,CS,,COMMUNICATIONS & COMP,I.T. SOFTWARE,871591,100336240,12-Feb-16,"2,000.00",NORTHGATE PUBLIC SERVICES (UK) LTD,SP0000812
WANDSWORTH COUNCIL,Revenue,CS,,COMMUNICATIONS & COMP,I.T. SOFTWARE,871699,100336240,12-Feb-16,"4,500.00",NORTHGATE PUBLIC SERVICES (UK) LTD,SP0000812
WANDSWORTH COUNCIL,Revenue,CS,,SERVICES,CONSULTANTS FEES,875618,100534200,19-Feb-16,"16,245.00",MOTT MACDONALD LIMITED,SP0007437
WANDSWORTH COUNCIL,Revenue,CS,,OTHER AGENCIES,HEALTHWATCH CONTRACT,874603,102043830,19-Feb-16,"4,489.00",WANDSWORTH CARE ALLIANCE,SP0008176
WANDSWORTH COUNCIL,Revenue,PH,,SERVICES,PROJECT WORK,880460,102234800,25-Feb-16,"15,535.66",ACTIVE CHANGE FOUNDATION,SP0010553
WANDSWORTH COUNCIL,Revenue,PH,,SERVICES,PROJECT WORK,883651,102234800,26-Feb-16,790.00,PULLMANOR LTD T/A REDWIG COACHES,SP0010623
WANDSWORTH COUNCIL,Revenue,CS,,PRINTING STAT & GEN OFFICE EXP,PRINTING REGISTRATION A FORM,880410,103033440,23-Feb-16,"9,458.87",BANNER MANAGED COMMUNICATION,SP0003555
WANDSWORTH COUNCIL,Revenue,CS,,COMMUNICATIONS & COMP,COMMUNICATIONS - POSTAGE,863771,103036000,04-Feb-16,704.66,ROYAL MAIL,SP0001067
WANDSWORTH COUNCIL,Revenue,CS,,COMMUNICATIONS & COMP,COMMUNICATIONS - POSTAGE,875876,103036000,19-Feb-16,"37,467.07",ROYAL MAIL,SP0001067
WANDSWORTH COUNCIL,Revenue,CS,,COMMUNICATIONS & COMP,COMMUNICATIONS - POSTAGE,875933,103036000,19-Feb-16,604.96,ROYAL MAIL,SP0001067
WANDSWORTH COUNCIL,Revenue,CS,,"REPAIRS, ALTERATIONS & MTCE","REPS, ALTS & MTCE-BUILDINGS",879657,103110000,19-Feb-16,"3,452.13",ACR LONDON LTD,SP0000193
WANDSWORTH COUNCIL,Revenue,CS,,"REPAIRS, ALTERATIONS & MTCE","REPS, ALTS & MTCE-BUILDINGS",879658,103110000,19-Feb-16,"2,585.00",ACR LONDON LTD,SP0000193
WANDSWORTH COUNCIL,Revenue,CS,,"REPAIRS, ALTERATIONS & MTCE","REPS, ALTS & MTCE-BUILDINGS",879659,103110000,19-Feb-16,"1,972.20",ACR LONDON LTD,SP0000193
WANDSWORTH COUNCIL,Revenue,CS,,"REPAIRS, ALTERATIONS & MTCE","REPS, ALTS & MTCE-BUILDINGS",879660,103110000,19-Feb-16,"1,785.98",ACR LONDON LTD,SP0000193
WANDSWORTH COUNCIL,Revenue,CS,,"REPAIRS, ALTERATIONS & MTCE","REPS, ALTS & MTCE-BUILDINGS",879661,103110000,19-Feb-16,"6,980.00",ACR LONDON LTD,SP0000193
WANDSWORTH COUNCIL,Revenue,CS,,"REPAIRS, ALTERATIONS & MTCE","REPS, ALTS & MTCE-BUILDINGS",879662,103110000,19-Feb-16,"8,460.00",ACR LONDON LTD,SP0000193
WANDSWORTH COUNCIL,Revenue,CS,,"REPAIRS, ALTERATIONS & MTCE","REPS, ALTS & MTCE-BUILDINGS",879663,103110000,19-Feb-16,"8,522.00",ACR LONDON LTD,SP0000193
WANDSWORTH COUNCIL,Revenue,CS,,"EQUIPMENT, FURNITURE & MATS",FLOWERS,870621,103130170,12-Feb-16,646.00,PATRICIA WONG,SP0002085
WANDSWORTH COUNCIL,Revenue,CS,,MISC,MISCELLANEOUS EXPENSES,863305,103138500,04-Feb-16,"1,679.00",MEDIA ON DEMAND LTD,SP0007360
WANDSWORTH COUNCIL,Revenue,CS,,MISC,MISCELLANEOUS EXPENSES,874800,103138500,19-Feb-16,585.00,MEDIA ON DEMAND LTD,SP0007360
WANDSWORTH COUNCIL,Revenue,PH,,HEALTH,GP LES CONTRACTS,885237,105041520,29-Feb-16,"3,886.00",THURLEIGH ROAD PRACTICE H85114,SP0003310
WANDSWORTH COUNCIL,Revenue,PH,,HEALTH,GP CHLAMYDIA SCREENING LES,885237,105141540,29-Feb-16,60.00,THURLEIGH ROAD PRACTICE H85114,SP0003310
WANDSWORTH COUNCIL,Revenue,PH,,HEALTH,HIV RAPID TESTING PILOT,866220,105141710,09-Feb-16,"1,281.00",PASSANTE HEALTHCARE LTD,SP0006465
WANDSWORTH COUNCIL,Revenue,PH,,HEALTH,ADVICE AND ADVOCACY SERVICES,863340,105241840,04-Feb-16,"2,455.20",CARE UK CLINICAL SERVICES LTD,SP0005790
WANDSWORTH COUNCIL,Revenue,PH,,HEALTH,COMMUNITY OUTREACH HEALTH CHCK,874565,105341300,16-Feb-16,"5,000.00",SOLUTIONS 4 HEALTH LTD,SP0008222
WANDSWORTH COUNCIL,Revenue,PH,,HEALTH,LOCALLY ENHANCED SERVICES,885237,105341380,29-Feb-16,"1,210.40",THURLEIGH ROAD PRACTICE H85114,SP0003310
WANDSWORTH COUNCIL,Revenue,PH,,HEALTH,SOFTWARE FOR MANAGING DATA,863345,105341510,04-Feb-16,"4,100.00",WEBSTAR HEALTH LTD,SP0006752
WANDSWORTH COUNCIL,Revenue,PH,,HEALTH,ADULT WEIGHT MGT SERVICE,863769,105641230,04-Feb-16,"9,500.00",THE PARTICIPATION PEOPLE,SP0008294
WANDSWORTH COUNCIL,Revenue,PH,,HEALTH,EY OBESITY PREVENT/TREATMENT,868844,105741220,12-Feb-16,480.00,EDWARDS AND WARD LTD,SP0008854
WANDSWORTH COUNCIL,Revenue,PH,,HEALTH,ADULT WEIGHT MGT SERVICE,877703,105741230,22-Feb-16,"4,620.00",PURELY NUTRITION LTD,SP0010584
WANDSWORTH COUNCIL,Revenue,PH,,HEALTH,SUB/ACHL MISUSE CARERS SERVICE,868811,106141460,12-Feb-16,"9,890.00",THE ALCOHOL ACADEMY CIC,SP0009731
WANDSWORTH COUNCIL,Revenue,PH,,HEALTH,PRESCRIBING SERVICES,878457,106340550,19-Feb-16,50.00,AMICHEM LIMITED FNQ61 T/A KRYSTAL PHARMA,SP0008457
WANDSWORTH COUNCIL,Revenue,PH,,HEALTH,PRESCRIBING SERVICES,878457,106340550,19-Feb-16,507.60,AMICHEM LIMITED FNQ61 T/A KRYSTAL PHARMA,SP0008457
WANDSWORTH COUNCIL,Revenue,PH,,"EQUIPMENT, FURNITURE & MATS",PURCHASE OF EQUIPMENT - HEALTH,880387,107030490,23-Feb-16,"1,376.58",GENERATE OPPORTUNITIES LTD,SP0000503
WANDSWORTH COUNCIL,Revenue,PH,,SERVICES,PROJECT WORK,874608,107134800,19-Feb-16,680.00,WILLIAMS & ASSOCIATES,SP0008775
WANDSWORTH COUNCIL,Revenue,PH,,HEALTH,HEALTH PROMOTION SERVICE,873590,107141890,16-Feb-16,"2,000.00",MEN'S HEALTH FORUM,SP0009765
WANDSWORTH COUNCIL,Revenue,PH,,HEALTH,SCREENING IN COMMUNTIES,874604,107141990,19-Feb-16,"14,526.66",WILLIAMS & ASSOCIATES,SP0008775
WANDSWORTH COUNCIL,Revenue,PH,,SERVICES,PROJECT WORK,872283,108034800,16-Feb-16,"2,795.32",GENERATE OPPORTUNITIES LTD,SP0000503
WANDSWORTH COUNCIL,Revenue,PH,,SERVICES,PROJECT WORK,881920,108034800,25-Feb-16,"1,597.50",STORM FAMILY CENTRE LTD,SP0002613
WANDSWORTH COUNCIL,Revenue,PH,,SERVICES,PROJECT WORK,880407,108034800,25-Feb-16,750.00,WANDSWORTH COMMUNITY SAFETY TRUST (WCST),SP0007448
WANDSWORTH COUNCIL,Revenue,PH,,SERVICES,PROJECT WORK,868849,108034800,12-Feb-16,996.00,THE RAIN TRUST,SP0009013
WANDSWORTH COUNCIL,Revenue,PH,,HEALTH,AWARENESS TRAINING,875919,108141210,19-Feb-16,"4,170.00",ASSOCIATION OF SOMALI WOMEN AND CHILDREN,SP0007835
WANDSWORTH COUNCIL,Revenue,NGF HS,,SERVICES,HIPS,865585,110034460,08-Feb-16,720.00,GORDON BROWN,SP0002176
WANDSWORTH COUNCIL,Revenue,NGF CS,,"REPAIRS, ALTERATIONS & MTCE",REMOVALS & REORGANISATIONS,867160,111010140,09-Feb-16,525.00,JT & SONS RELOCATIONS,SP0005993
WANDSWORTH COUNCIL,Revenue,NGF CS,,"EQUIPMENT, FURNITURE & MATS",EQUIP.FURN & MATS-REPS & MTCE,883661,111030010,26-Feb-16,549.70,MWUK LTD T/A ALEXANDRA,SP0007033
WANDSWORTH COUNCIL,Revenue,NGF CS,,PRIVATE,GENERAL CONTRACT WORK,809599,111045370,01-Feb-16,752.50,WINDOWFLOWERS LTD,SP0003089
WANDSWORTH COUNCIL,Revenue,NGF CS,,PRIVATE,REFUSE COLLECTN & PEST CONTROL,871684,111045500,15-Feb-16,"1,202.69",SITA UK LTD,SP0000507
WANDSWORTH COUNCIL,Revenue,NGF CS,,PRIVATE,REFUSE COLLECTN & PEST CONTROL,871686,111045500,15-Feb-16,534.79,SITA UK LTD,SP0000507
WANDSWORTH COUNCIL,Revenue,NGF CS,,PRIVATE,REFUSE COLLECTN & PEST CONTROL,874803,111045500,17-Feb-16,534.79,SITA UK LTD,SP0000507
WANDSWORTH COUNCIL,Revenue,NGF CS,,PRIVATE,REFUSE COLLECTN & PEST CONTROL,874804,111045500,17-Feb-16,"1,202.68",SITA UK LTD,SP0000507
WANDSWORTH COUNCIL,Revenue,NGF CS,,PRIVATE,REFUSE COLLECTN & PEST CONTROL,874805,111045500,17-Feb-16,534.79,SITA UK LTD,SP0000507
WANDSWORTH COUNCIL,Revenue,NGF CS,,PRIVATE,REFUSE COLLECTN & PEST CONTROL,874807,111045500,25-Feb-16,"1,202.69",SITA UK LTD,SP0000507
WANDSWORTH COUNCIL,Revenue,NGF CS,,MISC,MISCELLANEOUS EXPENSES,865592,111938500,08-Feb-16,"1,150.00",OASIS PRODUCTS VENDING SERVICES LIMITED,SP0002441
WANDSWORTH COUNCIL,Revenue,NGF CS,,PRIVATE,REFUSE COLLECTN & PEST CONTROL,872255,112145500,12-Feb-16,45.85,SITA UK LTD,SP0000507
WANDSWORTH COUNCIL,Revenue,NGF CS,,PRIVATE,REFUSE COLLECTN & PEST CONTROL,872255,112245500,12-Feb-16,543.17,SITA UK LTD,SP0000507
WANDSWORTH COUNCIL,Revenue,NGF CS,,PRIVATE,REFUSE COLLECTN & PEST CONTROL,872256,112945500,12-Feb-16,690.83,SITA UK LTD,SP0000507
WANDSWORTH COUNCIL,Revenue,NGF CS,,CLEANING & DOMESTIC SUPPLIES,CLEANING CONTRACT,865591,113813020,08-Feb-16,"55,813.61",OCEAN INTEGRATED SERVICES LTD,SP0001062
WANDSWORTH COUNCIL,Revenue,NGF CS,,CLEANING & DOMESTIC SUPPLIES,CLEANING CONTRACT,868860,113813020,09-Feb-16,"53,486.03",OCEAN INTEGRATED SERVICES LTD,SP0001062
WANDSWORTH COUNCIL,Revenue,NGF CS,,CLEANING & DOMESTIC SUPPLIES,CLEANING CONTRACT,865594,113813020,08-Feb-16,"1,233.25",PHS GROUP PLC,SP0001063
WANDSWORTH COUNCIL,Revenue,NGF CS,,CLEANING & DOMESTIC SUPPLIES,CLEANING CONTRACT,865595,113813020,08-Feb-16,"1,957.70",PHS GROUP PLC,SP0001063
WANDSWORTH COUNCIL,Revenue,NGF CS,,CLEANING & DOMESTIC SUPPLIES,CLEANING CONTRACT,865602,113813020,08-Feb-16,"1,616.50",PHS GROUP PLC,SP0001063
WANDSWORTH COUNCIL,Revenue,NGF CS,,CLEANING & DOMESTIC SUPPLIES,CLEANING CONTRACT,878510,113813020,25-Feb-16,"1,499.50",PHS GROUP PLC,SP0001063
WANDSWORTH COUNCIL,Revenue,NGF CS,,"EQUIPMENT, FURNITURE & MATS","EQUIPMENT, FURNITURE & MATS",871595,114030000,10-Feb-16,"5,030.00",DANWOOD GROUP LTD,SP0002739
WANDSWORTH COUNCIL,Revenue,NGF CS,,"EQUIPMENT, FURNITURE & MATS","EQUIPMENT, FURNITURE & MATS",871595,114030000,10-Feb-16,112.05,DANWOOD GROUP LTD,SP0002739
WANDSWORTH COUNCIL,Revenue,NGF CS,,"EQUIPMENT, FURNITURE & MATS","EQUIPMENT, FURNITURE & MATS",871598,114030000,10-Feb-16,890.00,DANWOOD GROUP LTD,SP0002739
WANDSWORTH COUNCIL,Revenue,NGF CS,,"EQUIPMENT, FURNITURE & MATS","EQUIPMENT, FURNITURE & MATS",879164,114030000,25-Feb-16,270.00,TOTAL ID LTD,SP0005095
WANDSWORTH COUNCIL,Revenue,NGF CS,,"EQUIPMENT, FURNITURE & MATS","EQUIPMENT, FURNITURE & MATS",879164,114030000,25-Feb-16,540.00,TOTAL ID LTD,SP0005095
WANDSWORTH COUNCIL,Revenue,NGF CS,,"EQUIPMENT, FURNITURE & MATS","EQUIPMENT, FURNITURE & MATS",879164,114030000,25-Feb-16,9.95,TOTAL ID LTD,SP0005095
WANDSWORTH COUNCIL,Revenue,NGF CS,,"EQUIPMENT, FURNITURE & MATS","EQUIPMENT, FURNITURE & MATS",866223,114030000,09-Feb-16,441.00,CONDECO LIMITED,SP0007319
WANDSWORTH COUNCIL,Revenue,NGF CS,,"EQUIPMENT, FURNITURE & MATS","EQUIPMENT, FURNITURE & MATS",871683,114030000,15-Feb-16,777.00,ON-AV LTD,SP0010472
WANDSWORTH COUNCIL,Revenue,NGF CS,,"EQUIPMENT, FURNITURE & MATS","EQUIPMENT, FURNITURE & MATS",879165,114130000,22-Feb-16,"1,272.00",TTS TRAINING SERVICES LTD,SP0010606
WANDSWORTH COUNCIL,Revenue,NGF CS,,SERVICES,ELECTRICAL TESTING,847954,114134350,04-Feb-16,"1,001.25",ELECTRICAL INSTALLN & APPLCE TESTING UK,SP0000318
WANDSWORTH COUNCIL,Revenue,NGF CS,,SERVICES,ELECTRICAL TESTING,855437,114134350,04-Feb-16,615.88,ELECTRICAL INSTALLN & APPLCE TESTING UK,SP0000318
WANDSWORTH COUNCIL,Revenue,NGF CS,,PRIVATE,GENERAL CONTRACT WORK,864320,114145370,04-Feb-16,"1,000.00",AA PROJECTS LTD,SP0008976
WANDSWORTH COUNCIL,Revenue,NGF CDC,,"REPAIRS, ALTERATIONS & MTCE",REMOVALS & REORGANISATIONS,866285,114210140,05-Feb-16,"1,780.00",JT ENTERPRISES,SP0000349
WANDSWORTH COUNCIL,Revenue,NGF CDC,,PRIVATE,GENERAL CONTRACT WORK,870754,11424537K07191,10-Feb-16,"5,040.75",DH CROFTS LTD,SP0000076
WANDSWORTH COUNCIL,Revenue,NGF CS,,"REPAIRS, ALTERATIONS & MTCE","REPS, ALTS & MTCE-BUILDINGS",879492,115610000,19-Feb-16,"1,315.14",DH CROFTS LTD,SP0000076
WANDSWORTH COUNCIL,Revenue,NGF CS,,PRINTING STAT & GEN OFFICE EXP,PHOTOCOPYING,867206,120133380,09-Feb-16,801.71,DANWOOD GROUP LTD,SP0002739
WANDSWORTH COUNCIL,Revenue,NGF CS,,GRANTS & SUBSCRIPTIONS,SUBSCRIPTIONS,866239,120137640,09-Feb-16,"9,446.00",THOMSON REUTERS,SP0006104
WANDSWORTH COUNCIL,Revenue,NGF CS,,GRANTS & SUBSCRIPTIONS,SUBSCRIPTIONS,828176,120537640,02-Feb-16,529.00,ROYAL INSTITUTE OF CHARTERED SURVEYORS,SP0003072
WANDSWORTH COUNCIL,Revenue,NGF CS,ADMINISTRATION,OTHER AGENCIES,DISBURSEMENTS,883403,120643250,24-Feb-16,700.00,REDACTED PERSONAL DATA,RG0000002
WANDSWORTH COUNCIL,Revenue,NGF CS,,OTHER AGENCIES,DISBURSEMENTS,863309,120643250,02-Feb-16,500.58,BEVERLEY F NUNNERY & CO,SP0003376
WANDSWORTH COUNCIL,Revenue,NGF CS,,OTHER AGENCIES,DISBURSEMENTS,875900,120643250,22-Feb-16,450.00,CORNERSTONE BACS,SP0004477
WANDSWORTH COUNCIL,Revenue,NGF CS,,OTHER AGENCIES,DISBURSEMENTS,883675,120643250,26-Feb-16,"1,000.00",CORNERSTONE BACS,SP0004477
WANDSWORTH COUNCIL,Revenue,NGF CS,,OTHER AGENCIES,DISBURSEMENTS,863742,120643250,04-Feb-16,950.00,4 BRICK COURT MANAGEMENT LIMITED,SP0007380
WANDSWORTH COUNCIL,Revenue,NGF CS,,OTHER AGENCIES,DISBURSEMENTS,865460,120643250,04-Feb-16,"1,033.33",4 BRICK COURT MANAGEMENT LIMITED,SP0007380
WANDSWORTH COUNCIL,Revenue,NGF CS,,OTHER AGENCIES,DISBURSEMENTS,870641,120643250,10-Feb-16,"3,300.00",4 BRICK COURT MANAGEMENT LIMITED,SP0007380
WANDSWORTH COUNCIL,Revenue,NGF CS,,OTHER AGENCIES,DISBURSEMENTS,870644,120643250,10-Feb-16,"1,100.00",4 BRICK COURT MANAGEMENT LIMITED,SP0007380
WANDSWORTH COUNCIL,Revenue,NGF CS,,OTHER AGENCIES,DISBURSEMENTS,874587,120643250,17-Feb-16,500.00,4 BRICK COURT MANAGEMENT LIMITED,SP0007380
WANDSWORTH COUNCIL,Revenue,NGF CS,,OTHER AGENCIES,DISBURSEMENTS,874588,120643250,17-Feb-16,441.66,4 BRICK COURT MANAGEMENT LIMITED,SP0007380
WANDSWORTH COUNCIL,Revenue,NGF CS,,OTHER AGENCIES,DISBURSEMENTS,878390,120643250,19-Feb-16,"8,920.50",4 BRICK COURT MANAGEMENT LIMITED,SP0007380
WANDSWORTH COUNCIL,Revenue,NGF CS,,OTHER AGENCIES,DISBURSEMENTS,878757,120643250,19-Feb-16,500.00,4 BRICK COURT MANAGEMENT LIMITED,SP0007380
WANDSWORTH COUNCIL,Revenue,NGF CS,,OTHER AGENCIES,DISBURSEMENTS,878758,120643250,19-Feb-16,700.00,4 BRICK COURT MANAGEMENT LIMITED,SP0007380
WANDSWORTH COUNCIL,Revenue,NGF CS,,OTHER AGENCIES,DISBURSEMENTS,879415,120643250,23-Feb-16,650.00,4 BRICK COURT MANAGEMENT LIMITED,SP0007380
WANDSWORTH COUNCIL,Revenue,NGF CS,,OTHER AGENCIES,DISBURSEMENTS,879416,120643250,23-Feb-16,800.00,4 BRICK COURT MANAGEMENT LIMITED,SP0007380
WANDSWORTH COUNCIL,Revenue,NGF CS,,OTHER AGENCIES,DISBURSEMENTS,879418,120643250,23-Feb-16,"1,800.00",4 BRICK COURT MANAGEMENT LIMITED,SP0007380
WANDSWORTH COUNCIL,Revenue,NGF CS,,OTHER AGENCIES,DISBURSEMENTS,879419,120643250,23-Feb-16,700.00,4 BRICK COURT MANAGEMENT LIMITED,SP0007380
WANDSWORTH COUNCIL,Revenue,NGF CS,,OTHER AGENCIES,DISBURSEMENTS,883676,120643250,26-Feb-16,106.20,JORDANS PROPERTY SERVICES,SP0008948
WANDSWORTH COUNCIL,Revenue,NGF CS,,OTHER AGENCIES,DISBURSEMENTS,883676,120643250,26-Feb-16,885.25,JORDANS PROPERTY SERVICES,SP0008948
WANDSWORTH COUNCIL,Revenue,NGF CS,,OTHER AGENCIES,DISBURSEMENTS,874778,120643250,17-Feb-16,472.00,LEXTOX,SP0009034
WANDSWORTH COUNCIL,Revenue,NGF CS,,OTHER AGENCIES,DISBURSEMENTS,874818,120643250,17-Feb-16,742.00,LEXTOX,SP0009034
WANDSWORTH COUNCIL,Revenue,NGF CS,,OTHER AGENCIES,DISBURSEMENTS,874822,120643250,17-Feb-16,634.00,LEXTOX,SP0009034
WANDSWORTH COUNCIL,Revenue,NGF CS,,OTHER AGENCIES,DISBURSEMENTS,870640,120643250,10-Feb-16,450.00,FIVE PAPER,SP0009057
WANDSWORTH COUNCIL,Revenue,NGF CS,,OTHER AGENCIES,DISBURSEMENTS,871324,120643250,10-Feb-16,560.00,FIVE PAPER,SP0009057
WANDSWORTH COUNCIL,Revenue,NGF CS,,OTHER AGENCIES,DISBURSEMENTS,871325,120643250,10-Feb-16,"6,250.00",FIVE PAPER,SP0009057
WANDSWORTH COUNCIL,Revenue,NGF CS,,OTHER AGENCIES,DISBURSEMENTS,863748,120643250,04-Feb-16,660.50,DR JULET BUTLER T/A BUTLER CONSULTANCY L,SP0009243
WANDSWORTH COUNCIL,Revenue,NGF CS,,OTHER AGENCIES,DISBURSEMENTS,863737,120643250,04-Feb-16,500.00,1 GARDEN COURT CHAMBERS,SP0009291
WANDSWORTH COUNCIL,Revenue,NGF CS,,OTHER AGENCIES,DISBURSEMENTS,863738,120643250,04-Feb-16,616.66,1 GARDEN COURT CHAMBERS,SP0009291
WANDSWORTH COUNCIL,Revenue,NGF CS,,OTHER AGENCIES,DISBURSEMENTS,871330,120643250,12-Feb-16,500.00,1 GARDEN COURT CHAMBERS,SP0009291
WANDSWORTH COUNCIL,Revenue,NGF CS,,OTHER AGENCIES,DISBURSEMENTS,874582,120643250,17-Feb-16,500.00,1 GARDEN COURT CHAMBERS,SP0009291
WANDSWORTH COUNCIL,Revenue,NGF CS,,OTHER AGENCIES,DISBURSEMENTS,865458,120643250,08-Feb-16,540.00,GARDEN COURT CHAMBERS,SP0009292
WANDSWORTH COUNCIL,Revenue,NGF CS,,OTHER AGENCIES,DISBURSEMENTS,863743,120643250,04-Feb-16,550.00,42 BEDFORD ROW CHAMBERS,SP0009440
WANDSWORTH COUNCIL,Revenue,NGF CS,,OTHER AGENCIES,DISBURSEMENTS,863744,120643250,04-Feb-16,525.00,42 BEDFORD ROW CHAMBERS,SP0009440
WANDSWORTH COUNCIL,Revenue,NGF CS,,OTHER AGENCIES,DISBURSEMENTS,863745,120643250,04-Feb-16,600.00,42 BEDFORD ROW CHAMBERS,SP0009440
WANDSWORTH COUNCIL,Revenue,NGF CS,,OTHER AGENCIES,DISBURSEMENTS,863747,120643250,04-Feb-16,475.00,FOURTEEN,SP0009555
WANDSWORTH COUNCIL,Revenue,NGF CS,,OTHER AGENCIES,DISBURSEMENTS,865466,120643250,04-Feb-16,"2,175.00",FOURTEEN,SP0009555
WANDSWORTH COUNCIL,Revenue,NGF CS,,OTHER AGENCIES,DISBURSEMENTS,865869,120643250,08-Feb-16,"2,400.00",FOURTEEN,SP0009555
WANDSWORTH COUNCIL,Revenue,NGF CS,,OTHER AGENCIES,DISBURSEMENTS,866248,120643250,09-Feb-16,"1,100.00",FOURTEEN,SP0009555
WANDSWORTH COUNCIL,Revenue,NGF CS,,OTHER AGENCIES,DISBURSEMENTS,881620,120643250,23-Feb-16,900.00,FOURTEEN,SP0009555
WANDSWORTH COUNCIL,Revenue,NGF CS,,OTHER AGENCIES,DISBURSEMENTS,865563,120643250,09-Feb-16,"3,497.60",THOMSON AND CO SOLICITORS LTD,SP0010140
WANDSWORTH COUNCIL,Revenue,NGF CS,,OTHER AGENCIES,DISBURSEMENTS,883672,120643250,26-Feb-16,600.00,ARDEN CHAMBERS LTD,SP0010473
WANDSWORTH COUNCIL,Revenue,NGF CS,,PRIVATE,"CONTRACT 6- HWYS, PLAN ETC",883461,120646170,25-Feb-16,"2,323.45",SHARPE PRITCHARD LLP,SP0003677
WANDSWORTH COUNCIL,Revenue,NGF CS,,PRIVATE,LOT 1 - LLORD SERVS PROP MGMT,863445,120746180,09-Feb-16,"12,035.39",LAMBERT SMITH HAMPTON,SP0002515
WANDSWORTH COUNCIL,Revenue,NGF CS,,PRIVATE,LOT 2 - GEN VALUATIONS,863444,120746250,09-Feb-16,"5,625.00",LAMBERT SMITH HAMPTON,SP0002515
WANDSWORTH COUNCIL,Revenue,NGF CS,,PRIVATE,LOT 2 - GEN VALUATIONS,885284,120746250,29-Feb-16,"34,026.83",LAMBERT SMITH HAMPTON,SP0002515
WANDSWORTH COUNCIL,Revenue,NGF CS,,PRIVATE,LOT 4 - STAT VALS & PROP ADVIC,874809,120746260,17-Feb-16,"17,115.00",G L HEARN LTD,SP0009602
WANDSWORTH COUNCIL,Revenue,NGF CS,,GRANTS & SUBSCRIPTIONS,SUBSCRIPTIONS,849220,120837640,02-Feb-16,509.00,ROYAL INSTITUTE OF CHARTERED SURVEYORS,SP0003072
WANDSWORTH COUNCIL,Revenue,NGF CS,,PRINTING STAT & GEN OFFICE EXP,OUTWORK - WEB OFFSET,885209,121333580,26-Feb-16,"2,419.00",WYNDEHAM PETERBOROUGH LTD,SP0010249
WANDSWORTH COUNCIL,Revenue,NGF CS,,PRINTING STAT & GEN OFFICE EXP,OUTWORK - LITHO,871299,121333590,10-Feb-16,450.00,KALL KWIK,SP0003093
WANDSWORTH COUNCIL,Revenue,NGF CS,,PRINTING STAT & GEN OFFICE EXP,OUTWORK - LITHO,871305,121333590,10-Feb-16,695.00,KALL KWIK,SP0003093
WANDSWORTH COUNCIL,Revenue,NGF CS,,PRINTING STAT & GEN OFFICE EXP,OUTWORK - LITHO,878738,121333590,19-Feb-16,776.00,IMPRESS PRINT SERVICES LTD,SP0003209
WANDSWORTH COUNCIL,Revenue,NGF CS,,PRINTING STAT & GEN OFFICE EXP,OUTWORK - LITHO,878743,121333590,19-Feb-16,592.00,IMPRESS PRINT SERVICES LTD,SP0003209
WANDSWORTH COUNCIL,Revenue,NGF CS,,PRINTING STAT & GEN OFFICE EXP,OUTWORK - LITHO,885207,121333590,26-Feb-16,505.00,SLS PRINT,SP0006470
WANDSWORTH COUNCIL,Revenue,NGF CS,,"EQUIPMENT, FURNITURE & MATS",OP COSTS -COLOUR COPIER RENTAL,866262,121430240,08-Feb-16,754.98,CANON (UK) LTD,SP0000262
WANDSWORTH COUNCIL,Revenue,NGF CS,,"EQUIPMENT, FURNITURE & MATS",OP COSTS -COLOUR COPIER RENTAL,866266,121430240,08-Feb-16,754.98,CANON (UK) LTD,SP0000262
WANDSWORTH COUNCIL,Revenue,NGF CS,,"EQUIPMENT, FURNITURE & MATS",OP COSTS -COLOUR COPIER RENTAL,866269,121430240,08-Feb-16,778.38,CANON (UK) LTD,SP0000262
WANDSWORTH COUNCIL,Revenue,NGF CDC,,PRINTING STAT & GEN OFFICE EXP,PUBLICITY,880441,122033470,25-Feb-16,"1,349.00",DOTMAILER LTD,SP0006264
WANDSWORTH COUNCIL,Revenue,NGF CS,,"EQUIPMENT, FURNITURE & MATS",EQUIP.FURN & MATS-REPS & MTCE,863731,122130010,04-Feb-16,"1,484.25",NEOPOST LTD,SP0003054
WANDSWORTH COUNCIL,Revenue,NGF CS,,INDIRECT,IN-SERVICE TRAINING-SLA,884624,123000740,29-Feb-16,"11,725.00",CHERITH SIMMONS MANAGEMENT,SP0002875
WANDSWORTH COUNCIL,Revenue,NGF CS,,INDIRECT,IN-SERVICE TRAINING-SLA,884624,123000740,29-Feb-16,"6,240.00",CHERITH SIMMONS MANAGEMENT,SP0002875
WANDSWORTH COUNCIL,Revenue,NGF CS,,INDIRECT,IN-SERVICE TRAINING-SLA,863090,123000740,04-Feb-16,800.00,TRAINING OUTSOURCE LIMITED,SP0008861
WANDSWORTH COUNCIL,Revenue,NGF CS,,INDIRECT,IN-SERVICE TRAINING-SLA,872294,123000740,15-Feb-16,"1,500.00",ELITE TRAINING & CONSULTANCY LTD,SP0010349
WANDSWORTH COUNCIL,Revenue,NGF CS,ADMINISTRATION,COMMUNICATIONS & COMP,I.T. SOFTWARE,866319,123036240,05-Feb-16,"1,004.95",Scott Bradbury Ltd,RG0000001
WANDSWORTH COUNCIL,Revenue,NGF CS,,INDIRECT,CHILDCARE VOUCHERS,874594,123200650,16-Feb-16,659.34,COMPUTERSHARE VOUCHER SERVICES,SP0003037
WANDSWORTH COUNCIL,Revenue,NGF CS,,INDIRECT,CHILDCARE VOUCHERS,880442,123200650,23-Feb-16,128.02,COMPUTERSHARE VOUCHER SERVICES,SP0003037
WANDSWORTH COUNCIL,Revenue,NGF CS,,INDIRECT,TRAINING - APPROVED QUALS,878425,123200760,22-Feb-16,"1,000.00",JJ LYNCH,SP0010401
WANDSWORTH COUNCIL,Revenue,NGF CS,,"EQUIPMENT, FURNITURE & MATS","EQUIPMENT, FURNITURE & MATS",871596,123230000,17-Feb-16,"5,030.00",DANWOOD GROUP LTD,SP0002739
WANDSWORTH COUNCIL,Revenue,NGF CS,,"EQUIPMENT, FURNITURE & MATS","EQUIPMENT, FURNITURE & MATS",871596,123230000,17-Feb-16,606.15,DANWOOD GROUP LTD,SP0002739
WANDSWORTH COUNCIL,Revenue,NGF CS,,"EQUIPMENT, FURNITURE & MATS","EQUIPMENT, FURNITURE & MATS",871596,123230000,17-Feb-16,89.10,DANWOOD GROUP LTD,SP0002739
WANDSWORTH COUNCIL,Revenue,NGF CS,,"EQUIPMENT, FURNITURE & MATS","EQUIPMENT, FURNITURE & MATS",871596,123230000,17-Feb-16,627.75,DANWOOD GROUP LTD,SP0002739
WANDSWORTH COUNCIL,Revenue,NGF CS,,PRINTING STAT & GEN OFFICE EXP,PHOTOCOPYING,877691,123233380,19-Feb-16,731.91,SUPPLIES TEAM,SP0002310
WANDSWORTH COUNCIL,Revenue,NGF CS,,SERVICES,OHS SESSIONAL DOCTOR,874629,123234690,16-Feb-16,"3,944.16",HJM ASSOCIATES,SP0003667
WANDSWORTH COUNCIL,Revenue,NGF CS,,COMMUNICATIONS & COMP,I.T. SOFTWARE,872298,123236240,16-Feb-16,"21,250.00",CAPITA BUSINESS SERVICES LTD,SP0000082
WANDSWORTH COUNCIL,Revenue,NGF CS,,MISC,MISCELLANEOUS EXPENSES,866270,123238500,09-Feb-16,"1,827.25",EDENRED UK GROUP LTD,SP0000238
WANDSWORTH COUNCIL,Revenue,NGF CDC,ADMINISTRATION,MISC,MISCELLANEOUS EXPENSES,882007,124038500,23-Feb-16,"2,245.02",AELTC,RG0000002
WANDSWORTH COUNCIL,Revenue,NGF CDC,,CATERING,CATERING,863307,124431000,02-Feb-16,575.00,OASIS PRODUCTS VENDING SERVICES LIMITED,SP0002441
WANDSWORTH COUNCIL,Revenue,NGF CDC,,CATERING,CATERING,863308,124431000,02-Feb-16,828.64,OASIS PRODUCTS VENDING SERVICES LIMITED,SP0002441
WANDSWORTH COUNCIL,Revenue,NGF CS,,SERVICES,LEGAL & COURT COSTS,874810,124734600,19-Feb-16,"11,575.00",BEVAN BRITTAN LLP CLIENT ACCOUNT,SP0009446
WANDSWORTH COUNCIL,Revenue,NGF CS,,SERVICES,LEGAL & COURT COSTS,874810,124734600,19-Feb-16,"1,787.50",BEVAN BRITTAN LLP CLIENT ACCOUNT,SP0009446
WANDSWORTH COUNCIL,Revenue,NGF CS,,SERVICES,LEGAL & COURT COSTS,883454,124734600,26-Feb-16,"4,802.75",BEVAN BRITTAN LLP CLIENT ACCOUNT,SP0009446
WANDSWORTH COUNCIL,Revenue,NGF CS,,MISC,MISCELLANEOUS EXPENSES,878418,124738500,19-Feb-16,936.00,NEWS INTERNATIONAL (ADVERTISEMENTS) LTD,SP0002557
WANDSWORTH COUNCIL,Revenue,PH,,SERVICES,PROJECT WORK,863344,125134800,04-Feb-16,416.66,PUBLIC HEALTH ACTION SUPPORT TEAM (PHAST,SP0010511
WANDSWORTH COUNCIL,Revenue,NGF CS,,"EQUIPMENT, FURNITURE & MATS","EQUIPMENT, FURNITURE & MATS",868809,126030000,10-Feb-16,"2,475.00",SOCITM LTD,SP0003143
WANDSWORTH COUNCIL,Revenue,NGF CS,,"EQUIPMENT, FURNITURE & MATS",ADAPTATIONS - COUNCIL,866268,126130020,08-Feb-16,"2,452.81",SUNA COMMUNICATION LTD,SP0000491
WANDSWORTH COUNCIL,Revenue,NGF CS,,"EQUIPMENT, FURNITURE & MATS",CCTV CONTROL ROOM DEVELOPMENT,865958,126130030,09-Feb-16,"1,519.13",VIRGIN MEDIA BUSINESS,SP0003737
WANDSWORTH COUNCIL,Revenue,NGF CS,,"EQUIPMENT, FURNITURE & MATS",CCTV CONTROL ROOM DEVELOPMENT,872291,126130030,15-Feb-16,693.75,VIRGIN MEDIA BUSINESS,SP0003737
WANDSWORTH COUNCIL,Revenue,NGF CS,,"EQUIPMENT, FURNITURE & MATS",CCTV FIBRE RENTALS,873582,126130040,15-Feb-16,"4,255.00",VODAFONE CORPORATE,SP0001107
WANDSWORTH COUNCIL,Revenue,NGF CS,,"EQUIPMENT, FURNITURE & MATS",CCTV FIBRE RENTALS,873583,126130040,15-Feb-16,"2,805.00",VODAFONE CORPORATE,SP0001107
WANDSWORTH COUNCIL,Revenue,NGF CS,,"EQUIPMENT, FURNITURE & MATS",CCTV MAINTENANCE,878454,126130050,25-Feb-16,416.82,VODAFONE CORPORATE,SP0001107
WANDSWORTH COUNCIL,Revenue,NGF CS,,"EQUIPMENT, FURNITURE & MATS",CCTV MAINTENANCE,878454,126130050,25-Feb-16,"71,541.57",VODAFONE CORPORATE,SP0001107
WANDSWORTH COUNCIL,Revenue,NGF CS,,"EQUIPMENT, FURNITURE & MATS",CONSUMABLES,866216,126130080,08-Feb-16,"1,143.26",BT PAYMENT SERVICES LTD,SP0001093
WANDSWORTH COUNCIL,Revenue,NGF CS,,"EQUIPMENT, FURNITURE & MATS",CONSUMABLES,877682,126130080,18-Feb-16,507.39,BT PAYMENT SERVICES LTD,SP0001093
WANDSWORTH COUNCIL,Revenue,NGF CS,,"EQUIPMENT, FURNITURE & MATS","EQUIPMENT, FURNITURE & MATS",863645,126330000,04-Feb-16,"9,355.00",VOICE CONNECT LTD,SP0000308
WANDSWORTH COUNCIL,Revenue,NGF CS,,"EQUIPMENT, FURNITURE & MATS",EQUIP.FURN & MATS-REPS & MTCE,877733,126330010,18-Feb-16,539.71,ACR LONDON LTD,SP0000193
WANDSWORTH COUNCIL,Revenue,NGF CS,,"EQUIPMENT, FURNITURE & MATS","EQUIPMENT, FURNITURE & MATS",859675,126530000,04-Feb-16,"1,269.80",MISCO,SP0000739
WANDSWORTH COUNCIL,Revenue,NGF CS,,"EQUIPMENT, FURNITURE & MATS","EQUIPMENT, FURNITURE & MATS",883201,126530000,25-Feb-16,"65,037.00",MICROSOFT LTD,SP0003332
WANDSWORTH COUNCIL,Revenue,NGF CS,,"EQUIPMENT, FURNITURE & MATS","EQUIPMENT, FURNITURE & MATS",880452,126530000,25-Feb-16,513.00,GLOBALSIGN,SP0007701
WANDSWORTH COUNCIL,Revenue,NGF CS,,"EQUIPMENT, FURNITURE & MATS","EQUIPMENT, FURNITURE & MATS",864831,126530000,08-Feb-16,"4,190.00",ESSENTIAL NET LTD,SP0008208
WANDSWORTH COUNCIL,Revenue,NGF CS,,COMMUNICATIONS & COMP,I.T. EQUIPMENT & MAINTENANCE,880422,126536210,25-Feb-16,"2,389.25",PRO2COL,SP0008975
WANDSWORTH COUNCIL,Revenue,NGF CS,,COMMUNICATIONS & COMP,I.T. EQUIPMENT & MAINTENANCE,880422,126536210,25-Feb-16,"1,605.50",PRO2COL,SP0008975
WANDSWORTH COUNCIL,Revenue,NGF CS,,COMMUNICATIONS & COMP,I.T. EQUIPMENT & MAINTENANCE,880422,126536210,25-Feb-16,289.75,PRO2COL,SP0008975
WANDSWORTH COUNCIL,Revenue,NGF CS,,COMMUNICATIONS & COMP,I.T. EQUIPMENT & MAINTENANCE,880422,126536210,25-Feb-16,289.75,PRO2COL,SP0008975
WANDSWORTH COUNCIL,Revenue,NGF CS,,COMMUNICATIONS & COMP,I.T. EQUIPMENT & MAINTENANCE,880422,126536210,25-Feb-16,798.00,PRO2COL,SP0008975
WANDSWORTH COUNCIL,Revenue,NGF CS,,COMMUNICATIONS & COMP,I.T. SOFTWARE,883210,126536240,25-Feb-16,"1,250.00",LANDESK INTERNATIONAL LTD,SP0008498
WANDSWORTH COUNCIL,Revenue,NGF CS,,COMMUNICATIONS & COMP,I.T. SOFTWARE,878413,126536240,26-Feb-16,"1,200.00",TIMICO LTD,SP0008752
WANDSWORTH COUNCIL,Revenue,NGF CS,,COMMUNICATIONS & COMP,NETWORK SUPPORT & MAINTENANCE,798065,126536400,02-Feb-16,948.05,BYTES SOFTWARE SERVICES LTD,SP0000380
WANDSWORTH COUNCIL,Revenue,NGF CS,,"EQUIPMENT, FURNITURE & MATS","EQUIPMENT, FURNITURE & MATS",873663,126630000,16-Feb-16,"3,000.00",JADU LIMITED LCB,SP0003050
WANDSWORTH COUNCIL,Revenue,NGF CS,,COMMUNICATIONS & COMP,IT SUPPORT SERVICES SLA,864830,126736360,05-Feb-16,550.00,NCC SERVICES LTD,SP0000702
WANDSWORTH COUNCIL,Revenue,NGF CS,,COMMUNICATIONS & COMP,I.T. SLA RECHARGE,863652,126836230,03-Feb-16,"5,771.00",QMATIC UK LTD,SP0000660
WANDSWORTH COUNCIL,Revenue,NGF CS,,COMMUNICATIONS & COMP,CORELOGIC MAINTENANCE & SUPPT,865471,127236300,05-Feb-16,"10,000.00",CORELOGIC LIMITED,SP0002796
WANDSWORTH COUNCIL,Revenue,CS,,DIRECT2,AGENCY STAFF,865584,128000510,09-Feb-16,"14,942.32",MATRIX SCM LIMITED,SP0004572
WANDSWORTH COUNCIL,Revenue,CS,,DIRECT2,AGENCY STAFF,874524,128000510,16-Feb-16,"10,589.16",MATRIX SCM LIMITED,SP0004572
WANDSWORTH COUNCIL,Revenue,CS,,DIRECT2,AGENCY STAFF,878391,128000510,19-Feb-16,"13,433.36",MATRIX SCM LIMITED,SP0004572
WANDSWORTH COUNCIL,Revenue,CS,,DIRECT2,AGENCY STAFF,883667,128000510,26-Feb-16,"20,619.47",MATRIX SCM LIMITED,SP0004572
WANDSWORTH COUNCIL,Revenue,CS,,INDIRECT,STAFF ADVERTISING - VACANCIES,863433,128000960,04-Feb-16,791.00,PENNA PLC,SP0006290
WANDSWORTH COUNCIL,Revenue,CS,,INDIRECT,STAFF ADVERTISING - VACANCIES,863772,128000960,04-Feb-16,"1,300.35",PENNA PLC,SP0006290
WANDSWORTH COUNCIL,Revenue,CS,,INDIRECT,STAFF ADVERTISING - VACANCIES,865481,128000960,09-Feb-16,"2,188.50",PENNA PLC,SP0006290
WANDSWORTH COUNCIL,Revenue,CS,,INDIRECT,STAFF ADVERTISING - VACANCIES,867155,128000960,09-Feb-16,550.03,PENNA PLC,SP0006290
WANDSWORTH COUNCIL,Revenue,CS,,INDIRECT,STAFF ADVERTISING - VACANCIES,867157,128000960,09-Feb-16,550.03,PENNA PLC,SP0006290
WANDSWORTH COUNCIL,Revenue,CS,,INDIRECT,STAFF ADVERTISING - VACANCIES,871327,128000960,15-Feb-16,"2,173.06",PENNA PLC,SP0006290
WANDSWORTH COUNCIL,Revenue,CS,,INDIRECT,STAFF ADVERTISING - VACANCIES,872269,128000960,15-Feb-16,"2,183.06",PENNA PLC,SP0006290
WANDSWORTH COUNCIL,Revenue,CS,,INDIRECT,STAFF ADVERTISING - VACANCIES,872270,128000960,15-Feb-16,"2,183.06",PENNA PLC,SP0006290
WANDSWORTH COUNCIL,Revenue,CS,,INDIRECT,STAFF ADVERTISING - VACANCIES,874661,128000960,16-Feb-16,"4,083.00",PENNA PLC,SP0006290
WANDSWORTH COUNCIL,Revenue,CS,,INDIRECT,STAFF ADVERTISING - VACANCIES,884606,128000960,29-Feb-16,"7,450.00",PENNA PLC,SP0006290
WANDSWORTH COUNCIL,Revenue,ASC,SOCIAL SERVICES,HIRE,HIRE - TRANSPORT,879245,130020410,19-Feb-16,"1,566.00",BECKETT CORPORATION LTD T/A TINAS CARS,SP0000729
WANDSWORTH COUNCIL,Revenue,ASC,SOCIAL SERVICES,HIRE,HIRE - TRANSPORT,872108,130020410,11-Feb-16,890.00,A STAR TRANSPORT LTD,SP0000866
WANDSWORTH COUNCIL,Revenue,ASC,SOCIAL SERVICES,HIRE,HIRE - TRANSPORT,865799,130020410,04-Feb-16,180.00,PARKER CARS LIMITED,SP0005826
WANDSWORTH COUNCIL,Revenue,ASC,SOCIAL SERVICES,PRIVATE,EXTERNAL DAYCARE,869851,130045290,09-Feb-16,891.45,SHARE COMMUNITY,SP0000329
WANDSWORTH COUNCIL,Revenue,ASC,SOCIAL SERVICES,PRIVATE,EXTERNAL RESIDENTIAL CARE,881533,130045330,23-Feb-16,"8,617.14",LONDON CARE PARTNERSHIP LTD,SP0001138
WANDSWORTH COUNCIL,Revenue,ASC,SOCIAL SERVICES,HIRE,HIRE - TRANSPORT,879240,130220410,19-Feb-16,599.67,BECKETT CORPORATION LTD T/A TINAS CARS,SP0000729
WANDSWORTH COUNCIL,Revenue,ASC,SOCIAL SERVICES,HIRE,HIRE - TRANSPORT,879244,130220410,19-Feb-16,488.87,BECKETT CORPORATION LTD T/A TINAS CARS,SP0000729
WANDSWORTH COUNCIL,Revenue,ASC,SOCIAL SERVICES,HIRE,HIRE - TRANSPORT,879248,130220410,19-Feb-16,137.12,BECKETT CORPORATION LTD T/A TINAS CARS,SP0000729
WANDSWORTH COUNCIL,Revenue,ASC,SOCIAL SERVICES,HIRE,HIRE - TRANSPORT,879250,130220410,19-Feb-16,490.72,BECKETT CORPORATION LTD T/A TINAS CARS,SP0000729
WANDSWORTH COUNCIL,Revenue,ASC,SOCIAL SERVICES,HIRE,HIRE - TRANSPORT,879251,130220410,19-Feb-16,"1,190.00",BECKETT CORPORATION LTD T/A TINAS CARS,SP0000729
WANDSWORTH COUNCIL,Revenue,ASC,SOCIAL SERVICES,HIRE,HIRE - TRANSPORT,879252,130220410,19-Feb-16,432.00,BECKETT CORPORATION LTD T/A TINAS CARS,SP0000729
WANDSWORTH COUNCIL,Revenue,ASC,SOCIAL SERVICES,HIRE,HIRE - TRANSPORT,879253,130220410,19-Feb-16,"1,707.75",BECKETT CORPORATION LTD T/A TINAS CARS,SP0000729
WANDSWORTH COUNCIL,Revenue,ASC,SOCIAL SERVICES,HIRE,HIRE - TRANSPORT,879255,130220410,19-Feb-16,701.72,BECKETT CORPORATION LTD T/A TINAS CARS,SP0000729
WANDSWORTH COUNCIL,Revenue,ASC,SOCIAL SERVICES,HIRE,HIRE - TRANSPORT,879256,130220410,19-Feb-16,500.00,BECKETT CORPORATION LTD T/A TINAS CARS,SP0000729
WANDSWORTH COUNCIL,Revenue,ASC,SOCIAL SERVICES,HIRE,HIRE - TRANSPORT,879257,130220410,19-Feb-16,700.00,BECKETT CORPORATION LTD T/A TINAS CARS,SP0000729
WANDSWORTH COUNCIL,Revenue,ASC,SOCIAL SERVICES,HIRE,HIRE - TRANSPORT,879258,130220410,19-Feb-16,"1,360.00",BECKETT CORPORATION LTD T/A TINAS CARS,SP0000729
WANDSWORTH COUNCIL,Revenue,ASC,SOCIAL SERVICES,HIRE,HIRE - TRANSPORT,879259,130220410,19-Feb-16,"1,365.00",BECKETT CORPORATION LTD T/A TINAS CARS,SP0000729
WANDSWORTH COUNCIL,Revenue,ASC,SOCIAL SERVICES,HIRE,HIRE - TRANSPORT,879260,130220410,19-Feb-16,"1,200.00",BECKETT CORPORATION LTD T/A TINAS CARS,SP0000729
WANDSWORTH COUNCIL,Revenue,ASC,SOCIAL SERVICES,HIRE,HIRE - TRANSPORT,879261,130220410,19-Feb-16,741.00,BECKETT CORPORATION LTD T/A TINAS CARS,SP0000729
WANDSWORTH COUNCIL,Revenue,ASC,SOCIAL SERVICES,HIRE,HIRE - TRANSPORT,879262,130220410,19-Feb-16,"2,090.00",BECKETT CORPORATION LTD T/A TINAS CARS,SP0000729
WANDSWORTH COUNCIL,Revenue,ASC,SOCIAL SERVICES,HIRE,HIRE - TRANSPORT,879266,130220410,19-Feb-16,500.00,BECKETT CORPORATION LTD T/A TINAS CARS,SP0000729
WANDSWORTH COUNCIL,Revenue,ASC,SOCIAL SERVICES,HIRE,HIRE - TRANSPORT,881960,130220410,23-Feb-16,660.00,BECKETT CORPORATION LTD T/A TINAS CARS,SP0000729
WANDSWORTH COUNCIL,Revenue,ASC,SOCIAL SERVICES,HIRE,HIRE - TRANSPORT,881961,130220410,23-Feb-16,"1,330.00",BECKETT CORPORATION LTD T/A TINAS CARS,SP0000729
WANDSWORTH COUNCIL,Revenue,ASC,SOCIAL SERVICES,HIRE,HIRE - TRANSPORT,881962,130220410,23-Feb-16,"1,057.50",BECKETT CORPORATION LTD T/A TINAS CARS,SP0000729
WANDSWORTH COUNCIL,Revenue,ASC,SOCIAL SERVICES,HIRE,HIRE - TRANSPORT,872062,130220410,11-Feb-16,748.50,A STAR TRANSPORT LTD,SP0000866
WANDSWORTH COUNCIL,Revenue,ASC,SOCIAL SERVICES,HIRE,HIRE - TRANSPORT,872063,130220410,11-Feb-16,598.50,A STAR TRANSPORT LTD,SP0000866
WANDSWORTH COUNCIL,Revenue,ASC,SOCIAL SERVICES,HIRE,HIRE - TRANSPORT,872064,130220410,11-Feb-16,328.00,A STAR TRANSPORT LTD,SP0000866
WANDSWORTH COUNCIL,Revenue,ASC,SOCIAL SERVICES,HIRE,HIRE - TRANSPORT,872067,130220410,11-Feb-16,516.00,A STAR TRANSPORT LTD,SP0000866
WANDSWORTH COUNCIL,Revenue,ASC,SOCIAL SERVICES,HIRE,HIRE - TRANSPORT,872068,130220410,11-Feb-16,616.00,A STAR TRANSPORT LTD,SP0000866
WANDSWORTH COUNCIL,Revenue,ASC,SOCIAL SERVICES,HIRE,HIRE - TRANSPORT,872069,130220410,11-Feb-16,454.00,A STAR TRANSPORT LTD,SP0000866
WANDSWORTH COUNCIL,Revenue,ASC,SOCIAL SERVICES,HIRE,HIRE - TRANSPORT,872070,130220410,11-Feb-16,604.00,A STAR TRANSPORT LTD,SP0000866
WANDSWORTH COUNCIL,Revenue,ASC,SOCIAL SERVICES,HIRE,HIRE - TRANSPORT,872071,130220410,11-Feb-16,"1,152.00",A STAR TRANSPORT LTD,SP0000866
WANDSWORTH COUNCIL,Revenue,ASC,SOCIAL SERVICES,HIRE,HIRE - TRANSPORT,872073,130220410,11-Feb-16,900.00,A STAR TRANSPORT LTD,SP0000866
WANDSWORTH COUNCIL,Revenue,ASC,SOCIAL SERVICES,HIRE,HIRE - TRANSPORT,872076,130220410,11-Feb-16,512.00,A STAR TRANSPORT LTD,SP0000866
WANDSWORTH COUNCIL,Revenue,ASC,SOCIAL SERVICES,HIRE,HIRE - TRANSPORT,872077,130220410,11-Feb-16,697.92,A STAR TRANSPORT LTD,SP0000866
WANDSWORTH COUNCIL,Revenue,ASC,SOCIAL SERVICES,HIRE,HIRE - TRANSPORT,872078,130220410,11-Feb-16,572.00,A STAR TRANSPORT LTD,SP0000866
WANDSWORTH COUNCIL,Revenue,ASC,SOCIAL SERVICES,HIRE,HIRE - TRANSPORT,872079,130220410,11-Feb-16,"1,116.00",A STAR TRANSPORT LTD,SP0000866
WANDSWORTH COUNCIL,Revenue,ASC,SOCIAL SERVICES,HIRE,HIRE - TRANSPORT,872081,130220410,11-Feb-16,484.22,A STAR TRANSPORT LTD,SP0000866
WANDSWORTH COUNCIL,Revenue,ASC,SOCIAL SERVICES,HIRE,HIRE - TRANSPORT,872086,130220410,11-Feb-16,447.00,A STAR TRANSPORT LTD,SP0000866
WANDSWORTH COUNCIL,Revenue,ASC,SOCIAL SERVICES,HIRE,HIRE - TRANSPORT,872090,130220410,11-Feb-16,524.00,A STAR TRANSPORT LTD,SP0000866
WANDSWORTH COUNCIL,Revenue,ASC,SOCIAL SERVICES,HIRE,HIRE - TRANSPORT,872094,130220410,11-Feb-16,486.00,A STAR TRANSPORT LTD,SP0000866
WANDSWORTH COUNCIL,Revenue,ASC,SOCIAL SERVICES,HIRE,HIRE - TRANSPORT,872095,130220410,11-Feb-16,441.00,A STAR TRANSPORT LTD,SP0000866
WANDSWORTH COUNCIL,Revenue,ASC,SOCIAL SERVICES,HIRE,HIRE - TRANSPORT,872101,130220410,11-Feb-16,"1,764.00",A STAR TRANSPORT LTD,SP0000866
WANDSWORTH COUNCIL,Revenue,ASC,SOCIAL SERVICES,HIRE,HIRE - TRANSPORT,872102,130220410,11-Feb-16,"1,027.00",A STAR TRANSPORT LTD,SP0000866
WANDSWORTH COUNCIL,Revenue,ASC,SOCIAL SERVICES,HIRE,HIRE - TRANSPORT,872103,130220410,11-Feb-16,"1,064.00",A STAR TRANSPORT LTD,SP0000866
WANDSWORTH COUNCIL,Revenue,ASC,SOCIAL SERVICES,HIRE,HIRE - TRANSPORT,872104,130220410,11-Feb-16,"1,260.00",A STAR TRANSPORT LTD,SP0000866
WANDSWORTH COUNCIL,Revenue,ASC,SOCIAL SERVICES,HIRE,HIRE - TRANSPORT,872109,130220410,11-Feb-16,588.00,A STAR TRANSPORT LTD,SP0000866
WANDSWORTH COUNCIL,Revenue,ASC,SOCIAL SERVICES,HIRE,HIRE - TRANSPORT,872110,130220410,11-Feb-16,588.00,A STAR TRANSPORT LTD,SP0000866
WANDSWORTH COUNCIL,Revenue,ASC,SOCIAL SERVICES,HIRE,HIRE - TRANSPORT,872112,130220410,11-Feb-16,430.35,A STAR TRANSPORT LTD,SP0000866
WANDSWORTH COUNCIL,Revenue,ASC,SOCIAL SERVICES,HIRE,HIRE - TRANSPORT,865799,130220410,04-Feb-16,285.30,PARKER CARS LIMITED,SP0005826
WANDSWORTH COUNCIL,Revenue,ASC,SOCIAL SERVICES,HIRE,HIRE - TRANSPORT,865801,130220410,04-Feb-16,522.00,PARKER CARS LIMITED,SP0005826
WANDSWORTH COUNCIL,Revenue,ASC,SOCIAL SERVICES,HIRE,NEW TRANSPORT CONTRACT,879246,130220430,19-Feb-16,"1,566.00",BECKETT CORPORATION LTD T/A TINAS CARS,SP0000729
WANDSWORTH COUNCIL,Revenue,ASC,SOCIAL SERVICES,HIRE,NEW TRANSPORT CONTRACT,879248,130220430,19-Feb-16,367.52,BECKETT CORPORATION LTD T/A TINAS CARS,SP0000729
WANDSWORTH COUNCIL,Revenue,ASC,SOCIAL SERVICES,HIRE,NEW TRANSPORT CONTRACT,872064,130220430,11-Feb-16,176.00,A STAR TRANSPORT LTD,SP0000866
WANDSWORTH COUNCIL,Revenue,ASC,SOCIAL SERVICES,SERVICES,TRAVEL BUDDY SCHEME,863492,130234970,01-Feb-16,659.58,HARINGEY ASSOCIATION FOR INDEPENDENT LIV,SP0000222
WANDSWORTH COUNCIL,Revenue,ASC,SOCIAL SERVICES,SERVICES,TRAVEL BUDDY SCHEME,863495,130234970,01-Feb-16,585.71,HARINGEY ASSOCIATION FOR INDEPENDENT LIV,SP0000222
WANDSWORTH COUNCIL,Revenue,ASC,SOCIAL SERVICES,SERVICES,TRAVEL BUDDY SCHEME,863497,130234970,01-Feb-16,510.52,HARINGEY ASSOCIATION FOR INDEPENDENT LIV,SP0000222
WANDSWORTH COUNCIL,Revenue,ASC,SOCIAL SERVICES,SERVICES,TRAVEL BUDDY SCHEME,863500,130234970,01-Feb-16,530.31,HARINGEY ASSOCIATION FOR INDEPENDENT LIV,SP0000222
WANDSWORTH COUNCIL,Revenue,ASC,SOCIAL SERVICES,SERVICES,TRAVEL BUDDY SCHEME,863502,130234970,01-Feb-16,506.56,HARINGEY ASSOCIATION FOR INDEPENDENT LIV,SP0000222
WANDSWORTH COUNCIL,Revenue,ASC,SOCIAL SERVICES,SERVICES,TRAVEL BUDDY SCHEME,863509,130234970,01-Feb-16,510.52,HARINGEY ASSOCIATION FOR INDEPENDENT LIV,SP0000222
WANDSWORTH COUNCIL,Revenue,ASC,SOCIAL SERVICES,SERVICES,TRAVEL BUDDY SCHEME,863515,130234970,01-Feb-16,617.37,HARINGEY ASSOCIATION FOR INDEPENDENT LIV,SP0000222
WANDSWORTH COUNCIL,Revenue,ASC,SOCIAL SERVICES,SERVICES,TRAVEL BUDDY SCHEME,883897,130234970,25-Feb-16,506.56,HARINGEY ASSOCIATION FOR INDEPENDENT LIV,SP0000222
WANDSWORTH COUNCIL,Revenue,ASC,SOCIAL SERVICES,SERVICES,TRAVEL BUDDY SCHEME,883899,130234970,25-Feb-16,617.37,HARINGEY ASSOCIATION FOR INDEPENDENT LIV,SP0000222
WANDSWORTH COUNCIL,Revenue,ASC,SOCIAL SERVICES,SERVICES,TRAVEL BUDDY SCHEME,883900,130234970,25-Feb-16,633.20,HARINGEY ASSOCIATION FOR INDEPENDENT LIV,SP0000222
WANDSWORTH COUNCIL,Revenue,ASC,SOCIAL SERVICES,SERVICES,TRAVEL BUDDY SCHEME,883904,130234970,25-Feb-16,514.48,HARINGEY ASSOCIATION FOR INDEPENDENT LIV,SP0000222
WANDSWORTH COUNCIL,Revenue,ASC,SOCIAL SERVICES,SERVICES,TRAVEL BUDDY SCHEME,883906,130234970,25-Feb-16,506.56,HARINGEY ASSOCIATION FOR INDEPENDENT LIV,SP0000222
WANDSWORTH COUNCIL,Revenue,ASC,SOCIAL SERVICES,SERVICES,TRAVEL BUDDY SCHEME,883911,130234970,25-Feb-16,664.86,HARINGEY ASSOCIATION FOR INDEPENDENT LIV,SP0000222
WANDSWORTH COUNCIL,Revenue,ASC,SOCIAL SERVICES,SERVICES,TRAVEL BUDDY SCHEME,883914,130234970,25-Feb-16,601.54,HARINGEY ASSOCIATION FOR INDEPENDENT LIV,SP0000222
WANDSWORTH COUNCIL,Revenue,ASC,SOCIAL SERVICES,SERVICES,TRAVEL BUDDY SCHEME,883916,130234970,25-Feb-16,680.69,HARINGEY ASSOCIATION FOR INDEPENDENT LIV,SP0000222
WANDSWORTH COUNCIL,Revenue,ASC,SOCIAL SERVICES,SERVICES,TRAVEL BUDDY SCHEME,883921,130234970,25-Feb-16,509.20,HARINGEY ASSOCIATION FOR INDEPENDENT LIV,SP0000222
WANDSWORTH COUNCIL,Revenue,ASC,SOCIAL SERVICES,SERVICES,TRAVEL BUDDY SCHEME,865661,130234970,04-Feb-16,616.68,SOUTHSIDE PARTNERSHIP,SP0000692
WANDSWORTH COUNCIL,Revenue,ASC,SOCIAL SERVICES,SERVICES,TRAVEL BUDDY SCHEME,865662,130234970,04-Feb-16,670.20,SOUTHSIDE PARTNERSHIP,SP0000692
WANDSWORTH COUNCIL,Revenue,ASC,SOCIAL SERVICES,SERVICES,TRAVEL BUDDY SCHEME,865663,130234970,04-Feb-16,603.10,SOUTHSIDE PARTNERSHIP,SP0000692
WANDSWORTH COUNCIL,Revenue,ASC,SOCIAL SERVICES,SERVICES,TRAVEL BUDDY SCHEME,865664,130234970,04-Feb-16,603.10,SOUTHSIDE PARTNERSHIP,SP0000692
WANDSWORTH COUNCIL,Revenue,ASC,SOCIAL SERVICES,SERVICES,TRAVEL BUDDY SCHEME,865667,130234970,04-Feb-16,619.40,SOUTHSIDE PARTNERSHIP,SP0000692
WANDSWORTH COUNCIL,Revenue,ASC,SOCIAL SERVICES,SERVICES,TRAVEL BUDDY SCHEME,865668,130234970,04-Feb-16,537.90,SOUTHSIDE PARTNERSHIP,SP0000692
WANDSWORTH COUNCIL,Revenue,ASC,SOCIAL SERVICES,SERVICES,TRAVEL BUDDY SCHEME,865671,130234970,04-Feb-16,652.00,SOUTHSIDE PARTNERSHIP,SP0000692
WANDSWORTH COUNCIL,Revenue,ASC,SOCIAL SERVICES,SERVICES,TRAVEL BUDDY SCHEME,865672,130234970,04-Feb-16,554.20,SOUTHSIDE PARTNERSHIP,SP0000692
WANDSWORTH COUNCIL,Revenue,ASC,SOCIAL SERVICES,SERVICES,TRAVEL BUDDY SCHEME,876977,130234970,17-Feb-16,616.68,SOUTHSIDE PARTNERSHIP,SP0000692
WANDSWORTH COUNCIL,Revenue,ASC,SOCIAL SERVICES,SERVICES,TRAVEL BUDDY SCHEME,876978,130234970,17-Feb-16,584.08,SOUTHSIDE PARTNERSHIP,SP0000692
WANDSWORTH COUNCIL,Revenue,ASC,SOCIAL SERVICES,SERVICES,TRAVEL BUDDY SCHEME,876979,130234970,17-Feb-16,551.48,SOUTHSIDE PARTNERSHIP,SP0000692
WANDSWORTH COUNCIL,Revenue,ASC,SOCIAL SERVICES,SERVICES,TRAVEL BUDDY SCHEME,876982,130234970,17-Feb-16,751.85,SOUTHSIDE PARTNERSHIP,SP0000692
WANDSWORTH COUNCIL,Revenue,ASC,SOCIAL SERVICES,SERVICES,TRAVEL BUDDY SCHEME,876983,130234970,17-Feb-16,619.40,SOUTHSIDE PARTNERSHIP,SP0000692
WANDSWORTH COUNCIL,Revenue,ASC,SOCIAL SERVICES,SERVICES,TRAVEL BUDDY SCHEME,876984,130234970,17-Feb-16,619.40,SOUTHSIDE PARTNERSHIP,SP0000692
WANDSWORTH COUNCIL,Revenue,ASC,SOCIAL SERVICES,SERVICES,TRAVEL BUDDY SCHEME,876985,130234970,17-Feb-16,696.10,SOUTHSIDE PARTNERSHIP,SP0000692
WANDSWORTH COUNCIL,Revenue,ASC,SOCIAL SERVICES,HEALTH,EXT RES S28A 100% OLD LONGSTAY,881448,130241010,23-Feb-16,"3,615.80",PARKGATE MANOR,SP0000521
WANDSWORTH COUNCIL,Revenue,ASC,SOCIAL SERVICES,HEALTH,EXTERNAL RESIDENTIAL CARE S28A,881489,130241080,23-Feb-16,"6,750.33",PROGRESS HOUSING LULWORTH,SP0000921
WANDSWORTH COUNCIL,Revenue,ASC,SOCIAL SERVICES,HEALTH,EXT RES CARE S28A 100%,871930,130241090,11-Feb-16,"9,857.14",LONDON CARE PARTNERSHIP LTD,SP0001138
WANDSWORTH COUNCIL,Revenue,ASC,SOCIAL SERVICES,HEALTH,EXT RES CARE S28A 100%,871931,130241090,11-Feb-16,"10,185.71",LONDON CARE PARTNERSHIP LTD,SP0001138
WANDSWORTH COUNCIL,Revenue,ASC,SOCIAL SERVICES,HEALTH,EXT RES CARE S28A 100%,871932,130241090,11-Feb-16,"10,185.71",LONDON CARE PARTNERSHIP LTD,SP0001138
WANDSWORTH COUNCIL,Revenue,ASC,SOCIAL SERVICES,HEALTH,EXT RES CARE S28A 100%,871933,130241090,11-Feb-16,"9,528.57",LONDON CARE PARTNERSHIP LTD,SP0001138
WANDSWORTH COUNCIL,Revenue,ASC,SOCIAL SERVICES,HEALTH,EXT RES CARE S28A 100%,873739,130241090,12-Feb-16,"4,600.00",LONDON CARE PARTNERSHIP LTD,SP0001138
WANDSWORTH COUNCIL,Revenue,ASC,SOCIAL SERVICES,HEALTH,EXT RES CARE S28A 100%,873740,130241090,12-Feb-16,"9,857.14",LONDON CARE PARTNERSHIP LTD,SP0001138
WANDSWORTH COUNCIL,Revenue,ASC,SOCIAL SERVICES,HEALTH,EXT RES CARE S28A 100%,873741,130241090,12-Feb-16,"10,185.71",LONDON CARE PARTNERSHIP LTD,SP0001138
WANDSWORTH COUNCIL,Revenue,ASC,SOCIAL SERVICES,HEALTH,EXT RES CARE S28A 100%,881605,130241090,23-Feb-16,"6,310.81",HOME FROM HOME CARE LIMITED,SP0001373
WANDSWORTH COUNCIL,Revenue,ASC,SOCIAL SERVICES,HEALTH,EXT RES S28A OLD LONG STAY,869678,130241110,09-Feb-16,"2,975.96",ELEANOR NURSING & SOCIAL CARE,SP0000110
WANDSWORTH COUNCIL,Revenue,ASC,SOCIAL SERVICES,HEALTH,EXT RES S28A OLD LONG STAY,881520,130241110,23-Feb-16,"4,647.21",THE COMMUNITY CARE COMPANY UK LTD,SP0000576
WANDSWORTH COUNCIL,Revenue,ASC,SOCIAL SERVICES,HEALTH,EXT RES S28A OLD LONG STAY,867376,130241110,08-Feb-16,"4,709.79",METROPOLITAN HOUSING TRUST,SP0000626
WANDSWORTH COUNCIL,Revenue,ASC,SOCIAL SERVICES,HEALTH,EXT RES S28A OLD LONG STAY,866430,130241110,05-Feb-16,"2,690.16",ASHTON CARE,SP0000695
WANDSWORTH COUNCIL,Revenue,ASC,SOCIAL SERVICES,HEALTH,EXT RES S28A OLD LONG STAY,883225,130241110,24-Feb-16,"2,690.16",ASHTON CARE,SP0000695
WANDSWORTH COUNCIL,Revenue,ASC,SOCIAL SERVICES,OTHER AGENCIES,ENABLERS/EDUCATION FEES,874957,130243280,16-Feb-16,"25,572.00",ST  JOHN'S SCHOOL & COLLEGE,SP0001374
WANDSWORTH COUNCIL,Revenue,ASC,SOCIAL SERVICES,OTHER AGENCIES,ENABLERS/EDUCATION FEES,883792,130243280,25-Feb-16,"11,464.78",ST  JOHN'S SCHOOL & COLLEGE,SP0001374
WANDSWORTH COUNCIL,Revenue,ASC,SOCIAL SERVICES,OTHER AGENCIES,ENABLERS/EDUCATION FEES,871929,130243280,11-Feb-16,"12,936.12",CAMBIAN AUTISM SERVICES LTD,SP0001589
WANDSWORTH COUNCIL,Revenue,ASC,SOCIAL SERVICES,OTHER AGENCIES,ENABLERS/EDUCATION FEES,872643,130243280,11-Feb-16,"12,654.90",CAMBIAN AUTISM SERVICES LTD,SP0001589
WANDSWORTH COUNCIL,Revenue,ASC,SOCIAL SERVICES,OTHER AGENCIES,ENABLERS/EDUCATION FEES,869676,130243280,09-Feb-16,"27,138.64",YOUNG EPILEPSY,SP0005433
WANDSWORTH COUNCIL,Revenue,ASC,SOCIAL SERVICES,OTHER AGENCIES,ENABLERS/EDUCATION FEES,865653,130243280,04-Feb-16,"2,000.00",CAMBIAN WHINFELL SCHOOL LTD,SP0008913
WANDSWORTH COUNCIL,Revenue,ASC,SOCIAL SERVICES,OTHER AGENCIES,ENABLERS/EDUCATION FEES,865654,130243280,04-Feb-16,"10,083.93",CAMBIAN WHINFELL SCHOOL LTD,SP0008913
WANDSWORTH COUNCIL,Revenue,ASC,SOCIAL SERVICES,OTHER AGENCIES,ENABLERS/EDUCATION FEES,865655,130243280,04-Feb-16,"10,083.93",CAMBIAN WHINFELL SCHOOL LTD,SP0008913
WANDSWORTH COUNCIL,Revenue,ASC,SOCIAL SERVICES,OTHER AGENCIES,ENABLERS/EDUCATION FEES,883791,130243280,25-Feb-16,"15,020.81",CAMBIAN WHINFELL SCHOOL LTD,SP0008913
WANDSWORTH COUNCIL,Revenue,ASC,SOCIAL SERVICES,OTHER AGENCIES,EXTERNAL OUTREACH,877040,130243330,17-Feb-16,"1,167.80",RAINBOW MEDICAL SERVICES,SP0000037
WANDSWORTH COUNCIL,Revenue,ASC,SOCIAL SERVICES,OTHER AGENCIES,EXTERNAL OUTREACH,877041,130243330,17-Feb-16,"2,305.74",RAINBOW MEDICAL SERVICES,SP0000037
WANDSWORTH COUNCIL,Revenue,ASC,SOCIAL SERVICES,OTHER AGENCIES,EXTERNAL OUTREACH,877042,130243330,17-Feb-16,590.60,RAINBOW MEDICAL SERVICES,SP0000037
WANDSWORTH COUNCIL,Revenue,ASC,SOCIAL SERVICES,OTHER AGENCIES,EXTERNAL OUTREACH,877043,130243330,17-Feb-16,"2,272.11",RAINBOW MEDICAL SERVICES,SP0000037
WANDSWORTH COUNCIL,Revenue,ASC,SOCIAL SERVICES,OTHER AGENCIES,EXTERNAL OUTREACH,877048,130243330,17-Feb-16,570.40,RAINBOW MEDICAL SERVICES,SP0000037
WANDSWORTH COUNCIL,Revenue,ASC,SOCIAL SERVICES,OTHER AGENCIES,EXTERNAL OUTREACH,885748,130243330,29-Feb-16,931.00,PROTOCOL EDUCATION  LTD,SP0000171
WANDSWORTH COUNCIL,Revenue,ASC,SOCIAL SERVICES,OTHER AGENCIES,EXTERNAL OUTREACH,883327,130243330,24-Feb-16,805.37,REED,SP0000295
WANDSWORTH COUNCIL,Revenue,ASC,SOCIAL SERVICES,OTHER AGENCIES,EXTERNAL OUTREACH,873839,130243330,12-Feb-16,"2,185.32",C M CARE LTD,SP0000455
WANDSWORTH COUNCIL,Revenue,ASC,SOCIAL SERVICES,OTHER AGENCIES,EXTERNAL OUTREACH,873842,130243330,12-Feb-16,"1,287.20",C M CARE LTD,SP0000455
WANDSWORTH COUNCIL,Revenue,ASC,SOCIAL SERVICES,OTHER AGENCIES,EXTERNAL OUTREACH,873844,130243330,12-Feb-16,576.00,C M CARE LTD,SP0000455
WANDSWORTH COUNCIL,Revenue,ASC,SOCIAL SERVICES,OTHER AGENCIES,EXTERNAL OUTREACH,873845,130243330,12-Feb-16,"1,540.00",C M CARE LTD,SP0000455
WANDSWORTH COUNCIL,Revenue,ASC,SOCIAL SERVICES,OTHER AGENCIES,EXTERNAL OUTREACH,885708,130243330,29-Feb-16,638.08,GENERATE OPPORTUNITIES LTD,SP0000503
WANDSWORTH COUNCIL,Revenue,ASC,SOCIAL SERVICES,OTHER AGENCIES,EXTERNAL OUTREACH,885712,130243330,29-Feb-16,"1,196.40",GENERATE OPPORTUNITIES LTD,SP0000503
WANDSWORTH COUNCIL,Revenue,ASC,SOCIAL SERVICES,OTHER AGENCIES,EXTERNAL OUTREACH,885724,130243330,29-Feb-16,"2,485.52",GENERATE OPPORTUNITIES LTD,SP0000503
WANDSWORTH COUNCIL,Revenue,ASC,SOCIAL SERVICES,OTHER AGENCIES,EXTERNAL OUTREACH,875142,130243330,16-Feb-16,"1,230.00",ROYAL ASSOCIATION FOR DEAF PEOPLE,SP0001251
WANDSWORTH COUNCIL,Revenue,ASC,SOCIAL SERVICES,OTHER AGENCIES,EXTERNAL OUTREACH,867420,130243330,08-Feb-16,"3,148.74",THE BRANDON TRUST,SP0005337
WANDSWORTH COUNCIL,Revenue,ASC,SOCIAL SERVICES,OTHER AGENCIES,EXTERNAL OUTREACH,867421,130243330,08-Feb-16,886.31,THE BRANDON TRUST,SP0005337
WANDSWORTH COUNCIL,Revenue,ASC,SOCIAL SERVICES,OTHER AGENCIES,EXTERNAL OUTREACH,869878,130243330,09-Feb-16,331.20,THE BRANDON TRUST,SP0005337
WANDSWORTH COUNCIL,Revenue,ASC,SOCIAL SERVICES,OTHER AGENCIES,EXTERNAL OUTREACH,869893,130243330,09-Feb-16,757.92,THE BRANDON TRUST,SP0005337
WANDSWORTH COUNCIL,Revenue,ASC,SOCIAL SERVICES,OTHER AGENCIES,EXTERNAL OUTREACH,869925,130243330,09-Feb-16,631.60,THE BRANDON TRUST,SP0005337
WANDSWORTH COUNCIL,Revenue,ASC,SOCIAL SERVICES,OTHER AGENCIES,EXTERNAL OUTREACH,869936,130243330,09-Feb-16,568.44,THE BRANDON TRUST,SP0005337
WANDSWORTH COUNCIL,Revenue,ASC,SOCIAL SERVICES,OTHER AGENCIES,EXTERNAL OUTREACH,869937,130243330,09-Feb-16,505.28,THE BRANDON TRUST,SP0005337
WANDSWORTH COUNCIL,Revenue,ASC,SOCIAL SERVICES,OTHER AGENCIES,EXTERNAL OUTREACH,869942,130243330,09-Feb-16,947.40,THE BRANDON TRUST,SP0005337
WANDSWORTH COUNCIL,Revenue,ASC,SOCIAL SERVICES,OTHER AGENCIES,EXTERNAL OUTREACH,869943,130243330,09-Feb-16,"1,170.80",THE BRANDON TRUST,SP0005337
WANDSWORTH COUNCIL,Revenue,ASC,SOCIAL SERVICES,OTHER AGENCIES,EXTERNAL OUTREACH,869961,130243330,09-Feb-16,189.48,THE BRANDON TRUST,SP0005337
WANDSWORTH COUNCIL,Revenue,ASC,SOCIAL SERVICES,OTHER AGENCIES,EXTERNAL OUTREACH,869973,130243330,09-Feb-16,694.76,THE BRANDON TRUST,SP0005337
WANDSWORTH COUNCIL,Revenue,ASC,SOCIAL SERVICES,OTHER AGENCIES,EXTERNAL OUTREACH,873862,130243330,12-Feb-16,"2,640.00",RELIABLE PERSONNEL LTD,SP0005657
WANDSWORTH COUNCIL,Revenue,ASC,SOCIAL SERVICES,PRIVATE,EXTERNAL DAYCARE,885725,130245290,29-Feb-16,"4,189.24",CMG HOMES LTD,SP0000075
WANDSWORTH COUNCIL,Revenue,ASC,SOCIAL SERVICES,PRIVATE,EXTERNAL DAYCARE,885726,130245290,29-Feb-16,"1,999.41",CMG HOMES LTD,SP0000075
WANDSWORTH COUNCIL,Revenue,ASC,SOCIAL SERVICES,PRIVATE,EXTERNAL DAYCARE,884313,130245290,25-Feb-16,"1,158.59",RESIDENTIAL CARE SERVICES T/A FRANKLYN L,SP0000147
WANDSWORTH COUNCIL,Revenue,ASC,SOCIAL SERVICES,PRIVATE,EXTERNAL DAYCARE,877846,130245290,18-Feb-16,"1,736.84",ST MARYS RESIDENTIAL HOME,SP0000215
WANDSWORTH COUNCIL,Revenue,ASC,SOCIAL SERVICES,PRIVATE,EXTERNAL DAYCARE,877847,130245290,18-Feb-16,708.52,ST MARYS RESIDENTIAL HOME,SP0000215
WANDSWORTH COUNCIL,Revenue,ASC,SOCIAL SERVICES,PRIVATE,EXTERNAL DAYCARE,877851,130245290,18-Feb-16,956.80,ST MARYS RESIDENTIAL HOME,SP0000215
WANDSWORTH COUNCIL,Revenue,ASC,SOCIAL SERVICES,PRIVATE,EXTERNAL DAYCARE,877854,130245290,18-Feb-16,534.28,ST MARYS RESIDENTIAL HOME,SP0000215
WANDSWORTH COUNCIL,Revenue,ASC,SOCIAL SERVICES,PRIVATE,EXTERNAL DAYCARE,871000,130245290,10-Feb-16,"3,781.40",NAS SERVICES LIMITED,SP0000217
WANDSWORTH COUNCIL,Revenue,ASC,SOCIAL SERVICES,PRIVATE,EXTERNAL DAYCARE,872769,130245290,11-Feb-16,518.70,PARCHMENT TRUST LTD,SP0000255
WANDSWORTH COUNCIL,Revenue,ASC,SOCIAL SERVICES,PRIVATE,EXTERNAL DAYCARE,875135,130245290,16-Feb-16,806.04,CRAEGMOOR FACILITIES CO LTD,SP0000306
WANDSWORTH COUNCIL,Revenue,ASC,SOCIAL SERVICES,PRIVATE,EXTERNAL DAYCARE,869839,130245290,09-Feb-16,594.30,SHARE COMMUNITY,SP0000329
WANDSWORTH COUNCIL,Revenue,ASC,SOCIAL SERVICES,PRIVATE,EXTERNAL DAYCARE,869840,130245290,09-Feb-16,891.45,SHARE COMMUNITY,SP0000329
WANDSWORTH COUNCIL,Revenue,ASC,SOCIAL SERVICES,PRIVATE,EXTERNAL DAYCARE,869841,130245290,09-Feb-16,594.30,SHARE COMMUNITY,SP0000329
WANDSWORTH COUNCIL,Revenue,ASC,SOCIAL SERVICES,PRIVATE,EXTERNAL DAYCARE,869842,130245290,09-Feb-16,"1,188.55",SHARE COMMUNITY,SP0000329
WANDSWORTH COUNCIL,Revenue,ASC,SOCIAL SERVICES,PRIVATE,EXTERNAL DAYCARE,869843,130245290,09-Feb-16,891.45,SHARE COMMUNITY,SP0000329
WANDSWORTH COUNCIL,Revenue,ASC,SOCIAL SERVICES,PRIVATE,EXTERNAL DAYCARE,869846,130245290,09-Feb-16,891.45,SHARE COMMUNITY,SP0000329
WANDSWORTH COUNCIL,Revenue,ASC,SOCIAL SERVICES,PRIVATE,EXTERNAL DAYCARE,869847,130245290,09-Feb-16,594.30,SHARE COMMUNITY,SP0000329
WANDSWORTH COUNCIL,Revenue,ASC,SOCIAL SERVICES,PRIVATE,EXTERNAL DAYCARE,869848,130245290,09-Feb-16,"1,188.55",SHARE COMMUNITY,SP0000329
WANDSWORTH COUNCIL,Revenue,ASC,SOCIAL SERVICES,PRIVATE,EXTERNAL DAYCARE,869849,130245290,09-Feb-16,"1,188.55",SHARE COMMUNITY,SP0000329
WANDSWORTH COUNCIL,Revenue,ASC,SOCIAL SERVICES,PRIVATE,EXTERNAL DAYCARE,869850,130245290,09-Feb-16,"1,485.70",SHARE COMMUNITY,SP0000329
WANDSWORTH COUNCIL,Revenue,ASC,SOCIAL SERVICES,PRIVATE,EXTERNAL DAYCARE,869852,130245290,09-Feb-16,891.45,SHARE COMMUNITY,SP0000329
WANDSWORTH COUNCIL,Revenue,ASC,SOCIAL SERVICES,PRIVATE,EXTERNAL DAYCARE,869853,130245290,09-Feb-16,"1,188.55",SHARE COMMUNITY,SP0000329
WANDSWORTH COUNCIL,Revenue,ASC,SOCIAL SERVICES,PRIVATE,EXTERNAL DAYCARE,869856,130245290,09-Feb-16,891.45,SHARE COMMUNITY,SP0000329
WANDSWORTH COUNCIL,Revenue,ASC,SOCIAL SERVICES,PRIVATE,EXTERNAL DAYCARE,869858,130245290,09-Feb-16,742.85,SHARE COMMUNITY,SP0000329
WANDSWORTH COUNCIL,Revenue,ASC,SOCIAL SERVICES,PRIVATE,EXTERNAL DAYCARE,869859,130245290,09-Feb-16,891.45,SHARE COMMUNITY,SP0000329
WANDSWORTH COUNCIL,Revenue,ASC,SOCIAL SERVICES,PRIVATE,EXTERNAL DAYCARE,869860,130245290,09-Feb-16,891.45,SHARE COMMUNITY,SP0000329
WANDSWORTH COUNCIL,Revenue,ASC,SOCIAL SERVICES,PRIVATE,EXTERNAL DAYCARE,869861,130245290,09-Feb-16,594.30,SHARE COMMUNITY,SP0000329
WANDSWORTH COUNCIL,Revenue,ASC,SOCIAL SERVICES,PRIVATE,EXTERNAL DAYCARE,869862,130245290,09-Feb-16,594.30,SHARE COMMUNITY,SP0000329
WANDSWORTH COUNCIL,Revenue,ASC,SOCIAL SERVICES,PRIVATE,EXTERNAL DAYCARE,869864,130245290,09-Feb-16,891.45,SHARE COMMUNITY,SP0000329
WANDSWORTH COUNCIL,Revenue,ASC,SOCIAL SERVICES,PRIVATE,EXTERNAL DAYCARE,872700,130245290,11-Feb-16,713.26,SHARE COMMUNITY,SP0000329
WANDSWORTH COUNCIL,Revenue,ASC,SOCIAL SERVICES,PRIVATE,EXTERNAL DAYCARE,872702,130245290,11-Feb-16,"1,485.70",SHARE COMMUNITY,SP0000329
WANDSWORTH COUNCIL,Revenue,ASC,SOCIAL SERVICES,PRIVATE,EXTERNAL DAYCARE,872703,130245290,11-Feb-16,594.30,SHARE COMMUNITY,SP0000329
WANDSWORTH COUNCIL,Revenue,ASC,SOCIAL SERVICES,PRIVATE,EXTERNAL DAYCARE,872704,130245290,11-Feb-16,594.30,SHARE COMMUNITY,SP0000329
WANDSWORTH COUNCIL,Revenue,ASC,SOCIAL SERVICES,PRIVATE,EXTERNAL DAYCARE,872707,130245290,11-Feb-16,891.45,SHARE COMMUNITY,SP0000329
WANDSWORTH COUNCIL,Revenue,ASC,SOCIAL SERVICES,PRIVATE,EXTERNAL DAYCARE,872708,130245290,11-Feb-16,891.45,SHARE COMMUNITY,SP0000329
WANDSWORTH COUNCIL,Revenue,ASC,SOCIAL SERVICES,PRIVATE,EXTERNAL DAYCARE,872709,130245290,11-Feb-16,594.30,SHARE COMMUNITY,SP0000329
WANDSWORTH COUNCIL,Revenue,ASC,SOCIAL SERVICES,PRIVATE,EXTERNAL DAYCARE,872711,130245290,11-Feb-16,891.46,SHARE COMMUNITY,SP0000329
WANDSWORTH COUNCIL,Revenue,ASC,SOCIAL SERVICES,PRIVATE,EXTERNAL DAYCARE,872712,130245290,11-Feb-16,891.45,SHARE COMMUNITY,SP0000329
WANDSWORTH COUNCIL,Revenue,ASC,SOCIAL SERVICES,PRIVATE,EXTERNAL DAYCARE,872713,130245290,11-Feb-16,"1,188.55",SHARE COMMUNITY,SP0000329
WANDSWORTH COUNCIL,Revenue,ASC,SOCIAL SERVICES,PRIVATE,EXTERNAL DAYCARE,872714,130245290,11-Feb-16,891.45,SHARE COMMUNITY,SP0000329
WANDSWORTH COUNCIL,Revenue,ASC,SOCIAL SERVICES,PRIVATE,EXTERNAL DAYCARE,872716,130245290,11-Feb-16,"1,188.55",SHARE COMMUNITY,SP0000329
WANDSWORTH COUNCIL,Revenue,ASC,SOCIAL SERVICES,PRIVATE,EXTERNAL DAYCARE,872717,130245290,11-Feb-16,594.30,SHARE COMMUNITY,SP0000329
WANDSWORTH COUNCIL,Revenue,ASC,SOCIAL SERVICES,PRIVATE,EXTERNAL DAYCARE,872718,130245290,11-Feb-16,594.40,SHARE COMMUNITY,SP0000329
WANDSWORTH COUNCIL,Revenue,ASC,SOCIAL SERVICES,PRIVATE,EXTERNAL DAYCARE,872720,130245290,11-Feb-16,594.30,SHARE COMMUNITY,SP0000329
WANDSWORTH COUNCIL,Revenue,ASC,SOCIAL SERVICES,PRIVATE,EXTERNAL DAYCARE,872721,130245290,11-Feb-16,891.45,SHARE COMMUNITY,SP0000329
WANDSWORTH COUNCIL,Revenue,ASC,SOCIAL SERVICES,PRIVATE,EXTERNAL DAYCARE,872722,130245290,11-Feb-16,891.45,SHARE COMMUNITY,SP0000329
WANDSWORTH COUNCIL,Revenue,ASC,SOCIAL SERVICES,PRIVATE,EXTERNAL DAYCARE,872723,130245290,11-Feb-16,594.30,SHARE COMMUNITY,SP0000329
WANDSWORTH COUNCIL,Revenue,ASC,SOCIAL SERVICES,PRIVATE,EXTERNAL DAYCARE,872725,130245290,11-Feb-16,891.45,SHARE COMMUNITY,SP0000329
WANDSWORTH COUNCIL,Revenue,ASC,SOCIAL SERVICES,PRIVATE,EXTERNAL DAYCARE,872726,130245290,11-Feb-16,594.30,SHARE COMMUNITY,SP0000329
WANDSWORTH COUNCIL,Revenue,ASC,SOCIAL SERVICES,PRIVATE,EXTERNAL DAYCARE,872727,130245290,11-Feb-16,594.30,SHARE COMMUNITY,SP0000329
WANDSWORTH COUNCIL,Revenue,ASC,SOCIAL SERVICES,PRIVATE,EXTERNAL DAYCARE,872728,130245290,11-Feb-16,891.45,SHARE COMMUNITY,SP0000329
WANDSWORTH COUNCIL,Revenue,ASC,SOCIAL SERVICES,PRIVATE,EXTERNAL DAYCARE,872729,130245290,11-Feb-16,594.30,SHARE COMMUNITY,SP0000329
WANDSWORTH COUNCIL,Revenue,ASC,SOCIAL SERVICES,PRIVATE,EXTERNAL DAYCARE,872730,130245290,11-Feb-16,"1,485.70",SHARE COMMUNITY,SP0000329
WANDSWORTH COUNCIL,Revenue,ASC,SOCIAL SERVICES,PRIVATE,EXTERNAL DAYCARE,883311,130245290,24-Feb-16,973.60,DOLPHIN HOMES LTD,SP0000331
WANDSWORTH COUNCIL,Revenue,ASC,SOCIAL SERVICES,PRIVATE,EXTERNAL DAYCARE,869608,130245290,09-Feb-16,"2,055.64",NORWOOD SCHOOLS LTD,SP0000332
WANDSWORTH COUNCIL,Revenue,ASC,SOCIAL SERVICES,PRIVATE,EXTERNAL DAYCARE,869609,130245290,09-Feb-16,"2,000.16",NORWOOD SCHOOLS LTD,SP0000332
WANDSWORTH COUNCIL,Revenue,ASC,SOCIAL SERVICES,PRIVATE,EXTERNAL DAYCARE,883882,130245290,25-Feb-16,"1,057.00",ST DAVIDS CARE IN THE COMMUNITY,SP0000379
WANDSWORTH COUNCIL,Revenue,ASC,SOCIAL SERVICES,PRIVATE,EXTERNAL DAYCARE,883883,130245290,25-Feb-16,"1,057.00",ST DAVIDS CARE IN THE COMMUNITY,SP0000379
WANDSWORTH COUNCIL,Revenue,ASC,SOCIAL SERVICES,PRIVATE,EXTERNAL DAYCARE,883884,130245290,25-Feb-16,"1,057.00",ST DAVIDS CARE IN THE COMMUNITY,SP0000379
WANDSWORTH COUNCIL,Revenue,ASC,SOCIAL SERVICES,PRIVATE,EXTERNAL DAYCARE,885692,130245290,29-Feb-16,760.00,WANDSWORTH BENGALI WELFARE ASSOCIATION,SP0000479
WANDSWORTH COUNCIL,Revenue,ASC,SOCIAL SERVICES,PRIVATE,EXTERNAL DAYCARE,883312,130245290,24-Feb-16,542.30,SURREY & BORDERS PARTNERSHIP NHS TRUST,SP0000501
WANDSWORTH COUNCIL,Revenue,ASC,SOCIAL SERVICES,PRIVATE,EXTERNAL DAYCARE,883315,130245290,24-Feb-16,591.60,SURREY & BORDERS PARTNERSHIP NHS TRUST,SP0000501
WANDSWORTH COUNCIL,Revenue,ASC,SOCIAL SERVICES,PRIVATE,EXTERNAL DAYCARE,885727,130245290,29-Feb-16,517.65,SURREY & BORDERS PARTNERSHIP NHS TRUST,SP0000501
WANDSWORTH COUNCIL,Revenue,ASC,SOCIAL SERVICES,PRIVATE,EXTERNAL DAYCARE,885707,130245290,29-Feb-16,576.00,GENERATE OPPORTUNITIES LTD,SP0000503
WANDSWORTH COUNCIL,Revenue,ASC,SOCIAL SERVICES,PRIVATE,EXTERNAL DAYCARE,885709,130245290,29-Feb-16,"1,100.00",GENERATE OPPORTUNITIES LTD,SP0000503
WANDSWORTH COUNCIL,Revenue,ASC,SOCIAL SERVICES,PRIVATE,EXTERNAL DAYCARE,885724,130245290,29-Feb-16,(10.52),GENERATE OPPORTUNITIES LTD,SP0000503
WANDSWORTH COUNCIL,Revenue,ASC,SOCIAL SERVICES,PRIVATE,EXTERNAL DAYCARE,881939,130245290,23-Feb-16,"1,282.96",THE REGARD PARTNERSHIP,SP0000588
WANDSWORTH COUNCIL,Revenue,ASC,SOCIAL SERVICES,PRIVATE,EXTERNAL DAYCARE,881936,130245290,23-Feb-16,914.13,ASHFIELD CARE HOMES LTD,SP0000590
WANDSWORTH COUNCIL,Revenue,ASC,SOCIAL SERVICES,PRIVATE,EXTERNAL DAYCARE,867407,130245290,08-Feb-16,840.00,DORSET SCOPE,SP0000591
WANDSWORTH COUNCIL,Revenue,ASC,SOCIAL SERVICES,PRIVATE,EXTERNAL DAYCARE,881938,130245290,23-Feb-16,"1,057.00",THE MANOR HOUSE,SP0000728
WANDSWORTH COUNCIL,Revenue,ASC,SOCIAL SERVICES,PRIVATE,EXTERNAL DAYCARE,881562,130245290,23-Feb-16,527.36,UNITED RESPONSE,SP0000797
WANDSWORTH COUNCIL,Revenue,ASC,SOCIAL SERVICES,PRIVATE,EXTERNAL DAYCARE,883881,130245290,25-Feb-16,540.00,PROSPECTS,SP0000800
WANDSWORTH COUNCIL,Revenue,ASC,SOCIAL SERVICES,PRIVATE,EXTERNAL DAYCARE,881945,130245290,23-Feb-16,881.44,CHATSWORTH CARE,SP0000831
WANDSWORTH COUNCIL,Revenue,ASC,SOCIAL SERVICES,PRIVATE,EXTERNAL DAYCARE,869625,130245290,09-Feb-16,515.52,MENCAP OPEN DOOR,SP0000832
WANDSWORTH COUNCIL,Revenue,ASC,SOCIAL SERVICES,PRIVATE,EXTERNAL DAYCARE,869664,130245290,09-Feb-16,504.80,MENCAP OPEN DOOR,SP0000832
WANDSWORTH COUNCIL,Revenue,ASC,SOCIAL SERVICES,PRIVATE,EXTERNAL DAYCARE,877039,130245290,17-Feb-16,814.03,SCOPE,SP0000852
WANDSWORTH COUNCIL,Revenue,ASC,SOCIAL SERVICES,PRIVATE,EXTERNAL DAYCARE,877058,130245290,17-Feb-16,833.52,SCOPE,SP0000852
WANDSWORTH COUNCIL,Revenue,ASC,SOCIAL SERVICES,PRIVATE,EXTERNAL DAYCARE,871001,130245290,10-Feb-16,738.72,ACT TOO LTD,SP0000855
WANDSWORTH COUNCIL,Revenue,ASC,SOCIAL SERVICES,PRIVATE,EXTERNAL DAYCARE,871002,130245290,10-Feb-16,738.72,ACT TOO LTD,SP0000855
WANDSWORTH COUNCIL,Revenue,ASC,SOCIAL SERVICES,PRIVATE,EXTERNAL DAYCARE,871004,130245290,10-Feb-16,554.04,ACT TOO LTD,SP0000855
WANDSWORTH COUNCIL,Revenue,ASC,SOCIAL SERVICES,PRIVATE,EXTERNAL DAYCARE,871011,130245290,10-Feb-16,554.04,ACT TOO LTD,SP0000855
WANDSWORTH COUNCIL,Revenue,ASC,SOCIAL SERVICES,PRIVATE,EXTERNAL DAYCARE,871012,130245290,10-Feb-16,738.72,ACT TOO LTD,SP0000855
WANDSWORTH COUNCIL,Revenue,ASC,SOCIAL SERVICES,PRIVATE,EXTERNAL DAYCARE,871014,130245290,10-Feb-16,"1,108.08",ACT TOO LTD,SP0000855
WANDSWORTH COUNCIL,Revenue,ASC,SOCIAL SERVICES,PRIVATE,EXTERNAL DAYCARE,871018,130245290,10-Feb-16,554.04,ACT TOO LTD,SP0000855
WANDSWORTH COUNCIL,Revenue,ASC,SOCIAL SERVICES,PRIVATE,EXTERNAL DAYCARE,871019,130245290,10-Feb-16,738.72,ACT TOO LTD,SP0000855
WANDSWORTH COUNCIL,Revenue,ASC,SOCIAL SERVICES,PRIVATE,EXTERNAL DAYCARE,871024,130245290,10-Feb-16,554.04,ACT TOO LTD,SP0000855
WANDSWORTH COUNCIL,Revenue,ASC,SOCIAL SERVICES,PRIVATE,EXTERNAL DAYCARE,871025,130245290,10-Feb-16,738.72,ACT TOO LTD,SP0000855
WANDSWORTH COUNCIL,Revenue,ASC,SOCIAL SERVICES,PRIVATE,EXTERNAL DAYCARE,871026,130245290,10-Feb-16,923.40,ACT TOO LTD,SP0000855
WANDSWORTH COUNCIL,Revenue,ASC,SOCIAL SERVICES,PRIVATE,EXTERNAL DAYCARE,871027,130245290,10-Feb-16,738.72,ACT TOO LTD,SP0000855
WANDSWORTH COUNCIL,Revenue,ASC,SOCIAL SERVICES,PRIVATE,EXTERNAL DAYCARE,871028,130245290,10-Feb-16,738.72,ACT TOO LTD,SP0000855
WANDSWORTH COUNCIL,Revenue,ASC,SOCIAL SERVICES,PRIVATE,EXTERNAL DAYCARE,871031,130245290,10-Feb-16,738.72,ACT TOO LTD,SP0000855
WANDSWORTH COUNCIL,Revenue,ASC,SOCIAL SERVICES,PRIVATE,EXTERNAL DAYCARE,871032,130245290,10-Feb-16,554.04,ACT TOO LTD,SP0000855
WANDSWORTH COUNCIL,Revenue,ASC,SOCIAL SERVICES,PRIVATE,EXTERNAL DAYCARE,871034,130245290,10-Feb-16,554.04,ACT TOO LTD,SP0000855
WANDSWORTH COUNCIL,Revenue,ASC,SOCIAL SERVICES,PRIVATE,EXTERNAL DAYCARE,871036,130245290,10-Feb-16,554.04,ACT TOO LTD,SP0000855
WANDSWORTH COUNCIL,Revenue,ASC,SOCIAL SERVICES,PRIVATE,EXTERNAL DAYCARE,871037,130245290,10-Feb-16,923.40,ACT TOO LTD,SP0000855
WANDSWORTH COUNCIL,Revenue,ASC,SOCIAL SERVICES,PRIVATE,EXTERNAL DAYCARE,871043,130245290,10-Feb-16,923.40,ACT TOO LTD,SP0000855
WANDSWORTH COUNCIL,Revenue,ASC,SOCIAL SERVICES,PRIVATE,EXTERNAL DAYCARE,871045,130245290,10-Feb-16,738.72,ACT TOO LTD,SP0000855
WANDSWORTH COUNCIL,Revenue,ASC,SOCIAL SERVICES,PRIVATE,EXTERNAL DAYCARE,871048,130245290,10-Feb-16,554.04,ACT TOO LTD,SP0000855
WANDSWORTH COUNCIL,Revenue,ASC,SOCIAL SERVICES,PRIVATE,EXTERNAL DAYCARE,871050,130245290,10-Feb-16,554.04,ACT TOO LTD,SP0000855
WANDSWORTH COUNCIL,Revenue,ASC,SOCIAL SERVICES,PRIVATE,EXTERNAL DAYCARE,871051,130245290,10-Feb-16,"1,108.08",ACT TOO LTD,SP0000855
WANDSWORTH COUNCIL,Revenue,ASC,SOCIAL SERVICES,PRIVATE,EXTERNAL DAYCARE,871052,130245290,10-Feb-16,554.04,ACT TOO LTD,SP0000855
WANDSWORTH COUNCIL,Revenue,ASC,SOCIAL SERVICES,PRIVATE,EXTERNAL DAYCARE,871053,130245290,10-Feb-16,554.04,ACT TOO LTD,SP0000855
WANDSWORTH COUNCIL,Revenue,ASC,SOCIAL SERVICES,PRIVATE,EXTERNAL DAYCARE,871056,130245290,10-Feb-16,554.04,ACT TOO LTD,SP0000855
WANDSWORTH COUNCIL,Revenue,ASC,SOCIAL SERVICES,PRIVATE,EXTERNAL DAYCARE,871058,130245290,10-Feb-16,554.04,ACT TOO LTD,SP0000855
WANDSWORTH COUNCIL,Revenue,ASC,SOCIAL SERVICES,PRIVATE,EXTERNAL DAYCARE,871064,130245290,10-Feb-16,923.40,ACT TOO LTD,SP0000855
WANDSWORTH COUNCIL,Revenue,ASC,SOCIAL SERVICES,PRIVATE,EXTERNAL DAYCARE,871067,130245290,10-Feb-16,554.04,ACT TOO LTD,SP0000855
WANDSWORTH COUNCIL,Revenue,ASC,SOCIAL SERVICES,PRIVATE,EXTERNAL DAYCARE,871068,130245290,10-Feb-16,554.04,ACT TOO LTD,SP0000855
WANDSWORTH COUNCIL,Revenue,ASC,SOCIAL SERVICES,PRIVATE,EXTERNAL DAYCARE,871072,130245290,10-Feb-16,738.72,ACT TOO LTD,SP0000855
WANDSWORTH COUNCIL,Revenue,ASC,SOCIAL SERVICES,PRIVATE,EXTERNAL DAYCARE,871074,130245290,10-Feb-16,554.04,ACT TOO LTD,SP0000855
WANDSWORTH COUNCIL,Revenue,ASC,SOCIAL SERVICES,PRIVATE,EXTERNAL DAYCARE,866543,130245290,05-Feb-16,"1,138.40",RIDGEWOOD CARE SERVICES LTD,SP0000969
WANDSWORTH COUNCIL,Revenue,ASC,SOCIAL SERVICES,PRIVATE,EXTERNAL DAYCARE,867406,130245290,08-Feb-16,"1,138.40",RIDGEWOOD CARE SERVICES LTD,SP0000969
WANDSWORTH COUNCIL,Revenue,ASC,SOCIAL SERVICES,PRIVATE,EXTERNAL DAYCARE,873700,130245290,12-Feb-16,"1,176.00",RIDGEWOOD CARE SERVICES LTD,SP0000969
WANDSWORTH COUNCIL,Revenue,ASC,SOCIAL SERVICES,PRIVATE,EXTERNAL DAYCARE,881940,130245290,23-Feb-16,895.20,SCOPE,SP0000991
WANDSWORTH COUNCIL,Revenue,ASC,SOCIAL SERVICES,PRIVATE,EXTERNAL DAYCARE,881941,130245290,23-Feb-16,596.80,SCOPE,SP0000991
WANDSWORTH COUNCIL,Revenue,ASC,SOCIAL SERVICES,PRIVATE,EXTERNAL DAYCARE,883220,130245290,24-Feb-16,"1,172.50",SUSSEX HEALTH CARE,SP0001115
WANDSWORTH COUNCIL,Revenue,ASC,SOCIAL SERVICES,PRIVATE,EXTERNAL DAYCARE,881527,130245290,23-Feb-16,"1,451.16",LONDON CARE PARTNERSHIP LTD,SP0001138
WANDSWORTH COUNCIL,Revenue,ASC,SOCIAL SERVICES,PRIVATE,EXTERNAL DAYCARE,873800,130245290,12-Feb-16,"1,126.08",WORKSHOP 305,SP0001403
WANDSWORTH COUNCIL,Revenue,ASC,SOCIAL SERVICES,PRIVATE,EXTERNAL DAYCARE,873807,130245290,12-Feb-16,962.88,WORKSHOP 305,SP0001403
WANDSWORTH COUNCIL,Revenue,ASC,SOCIAL SERVICES,PRIVATE,EXTERNAL DAYCARE,873811,130245290,12-Feb-16,722.16,WORKSHOP 305,SP0001403
WANDSWORTH COUNCIL,Revenue,ASC,SOCIAL SERVICES,PRIVATE,EXTERNAL DAYCARE,873818,130245290,12-Feb-16,844.56,WORKSHOP 305,SP0001403
WANDSWORTH COUNCIL,Revenue,ASC,SOCIAL SERVICES,PRIVATE,EXTERNAL DAYCARE,873819,130245290,12-Feb-16,722.16,WORKSHOP 305,SP0001403
WANDSWORTH COUNCIL,Revenue,ASC,SOCIAL SERVICES,PRIVATE,EXTERNAL DAYCARE,873821,130245290,12-Feb-16,722.16,WORKSHOP 305,SP0001403
WANDSWORTH COUNCIL,Revenue,ASC,SOCIAL SERVICES,PRIVATE,EXTERNAL DAYCARE,873826,130245290,12-Feb-16,722.16,WORKSHOP 305,SP0001403
WANDSWORTH COUNCIL,Revenue,ASC,SOCIAL SERVICES,PRIVATE,EXTERNAL DAYCARE,873837,130245290,12-Feb-16,962.88,WORKSHOP 305,SP0001403
WANDSWORTH COUNCIL,Revenue,ASC,SOCIAL SERVICES,PRIVATE,EXTERNAL DAYCARE,869865,130245290,09-Feb-16,650.00,THE CAMDEN SOCIETY,SP0001674
WANDSWORTH COUNCIL,Revenue,ASC,SOCIAL SERVICES,PRIVATE,EXTERNAL DAYCARE,869866,130245290,09-Feb-16,650.00,THE CAMDEN SOCIETY,SP0001674
WANDSWORTH COUNCIL,Revenue,ASC,SOCIAL SERVICES,PRIVATE,EXTERNAL DAYCARE,869867,130245290,09-Feb-16,650.00,THE CAMDEN SOCIETY,SP0001674
WANDSWORTH COUNCIL,Revenue,ASC,SOCIAL SERVICES,PRIVATE,EXTERNAL DAYCARE,869868,130245290,09-Feb-16,650.00,THE CAMDEN SOCIETY,SP0001674
WANDSWORTH COUNCIL,Revenue,ASC,SOCIAL SERVICES,PRIVATE,EXTERNAL DAYCARE,869869,130245290,09-Feb-16,650.00,THE CAMDEN SOCIETY,SP0001674
WANDSWORTH COUNCIL,Revenue,ASC,SOCIAL SERVICES,PRIVATE,EXTERNAL DAYCARE,869870,130245290,09-Feb-16,650.00,THE CAMDEN SOCIETY,SP0001674
WANDSWORTH COUNCIL,Revenue,ASC,SOCIAL SERVICES,PRIVATE,EXTERNAL DAYCARE,879233,130245290,19-Feb-16,"7,813.09",ORCHARD HILL COLLEGE,SP0007179
WANDSWORTH COUNCIL,Revenue,ASC,SOCIAL SERVICES,PRIVATE,EXTERNAL DAYCARE,879234,130245290,19-Feb-16,"7,813.09",ORCHARD HILL COLLEGE,SP0007179
WANDSWORTH COUNCIL,Revenue,ASC,SOCIAL SERVICES,PRIVATE,EXTERNAL HOMECARE,877020,130245300,17-Feb-16,"1,139.94",RAINBOW MEDICAL SERVICES,SP0000037
WANDSWORTH COUNCIL,Revenue,ASC,SOCIAL SERVICES,PRIVATE,EXTERNAL HOMECARE,867395,130245300,08-Feb-16,757.13,ASIAN ELDERS SUPPORT SCHEME,SP0000190
WANDSWORTH COUNCIL,Revenue,ASC,SOCIAL SERVICES,PRIVATE,EXTERNAL HOMECARE,866466,130245300,05-Feb-16,600.16,MUSHKIL AASAAN LTD,SP0000978
WANDSWORTH COUNCIL,Revenue,ASC,SOCIAL SERVICES,PRIVATE,EXTERNAL HOMECARE,866534,130245300,05-Feb-16,832.50,MUSHKIL AASAAN LTD,SP0000978
WANDSWORTH COUNCIL,Revenue,ASC,SOCIAL SERVICES,PRIVATE,EXTERNAL HOMECARE,865695,130245300,04-Feb-16,"3,232.00",CHRISTIES CARE LTD,SP0005440
WANDSWORTH COUNCIL,Revenue,ASC,SOCIAL SERVICES,PRIVATE,EXTERNAL HOMECARE,874977,130245300,16-Feb-16,621.96,LONDON HOMECARE LTD,SP0009029
WANDSWORTH COUNCIL,Revenue,ASC,SOCIAL SERVICES,PRIVATE,EXTERNAL HOMECARE,874981,130245300,16-Feb-16,"1,778.88",LONDON HOMECARE LTD,SP0009029
WANDSWORTH COUNCIL,Revenue,ASC,SOCIAL SERVICES,PRIVATE,EXTERNAL HOMECARE,875019,130245300,16-Feb-16,720.02,LONDON HOMECARE LTD,SP0009029
WANDSWORTH COUNCIL,Revenue,ASC,SOCIAL SERVICES,PRIVATE,EXTERNAL HOMECARE,875031,130245300,16-Feb-16,626.22,LONDON HOMECARE LTD,SP0009029
WANDSWORTH COUNCIL,Revenue,ASC,SOCIAL SERVICES,PRIVATE,EXTERNAL HOMECARE,875106,130245300,16-Feb-16,746.00,LONDON HOMECARE LTD,SP0009029
WANDSWORTH COUNCIL,Revenue,ASC,SOCIAL SERVICES,PRIVATE,EXTERNAL NURSING CARE,866431,130245310,05-Feb-16,"6,111.24",WINGHAM COURT,SP0000025
WANDSWORTH COUNCIL,Revenue,ASC,SOCIAL SERVICES,PRIVATE,EXTERNAL NURSING CARE,884186,130245310,25-Feb-16,"3,231.43",ROSEDENE NURSING HOME,SP0000316
WANDSWORTH COUNCIL,Revenue,ASC,SOCIAL SERVICES,PRIVATE,EXTERNAL NURSING CARE,869685,130245310,09-Feb-16,"3,065.88",YEW TREE NURSING HOME,SP0000454
WANDSWORTH COUNCIL,Revenue,ASC,SOCIAL SERVICES,PRIVATE,EXTERNAL NURSING CARE,881521,130245310,23-Feb-16,"8,395.79",THE COMMUNITY CARE COMPANY UK LTD,SP0000576
WANDSWORTH COUNCIL,Revenue,ASC,SOCIAL SERVICES,PRIVATE,EXTERNAL NURSING CARE,884700,130245310,26-Feb-16,"7,317.64",BUPA CARE SERVICES BACS RECEIPTS,SP0000644
WANDSWORTH COUNCIL,Revenue,ASC,SOCIAL SERVICES,PRIVATE,EXTERNAL NURSING CARE,884728,130245310,26-Feb-16,"3,058.12",BUPA CARE SERVICES BACS RECEIPTS,SP0000644
WANDSWORTH COUNCIL,Revenue,ASC,SOCIAL SERVICES,PRIVATE,EXTERNAL NURSING CARE,884751,130245310,26-Feb-16,"3,058.12",BUPA CARE SERVICES BACS RECEIPTS,SP0000644
WANDSWORTH COUNCIL,Revenue,ASC,SOCIAL SERVICES,PRIVATE,EXTERNAL NURSING CARE,884876,130245310,26-Feb-16,"2,857.72",TRINITY COURT NURSING HOME,SP0001001
WANDSWORTH COUNCIL,Revenue,ASC,SOCIAL SERVICES,PRIVATE,EXTERNAL RESIDENTIAL CARE,865628,130245330,04-Feb-16,"5,674.36",CMG HOMES LTD,SP0000075
WANDSWORTH COUNCIL,Revenue,ASC,SOCIAL SERVICES,PRIVATE,EXTERNAL RESIDENTIAL CARE,865630,130245330,04-Feb-16,"3,940.80",CMG HOMES LTD,SP0000075
WANDSWORTH COUNCIL,Revenue,ASC,SOCIAL SERVICES,PRIVATE,EXTERNAL RESIDENTIAL CARE,865631,130245330,04-Feb-16,"6,052.16",CMG HOMES LTD,SP0000075
WANDSWORTH COUNCIL,Revenue,ASC,SOCIAL SERVICES,PRIVATE,EXTERNAL RESIDENTIAL CARE,865632,130245330,04-Feb-16,"5,594.64",CMG HOMES LTD,SP0000075
WANDSWORTH COUNCIL,Revenue,ASC,SOCIAL SERVICES,PRIVATE,EXTERNAL RESIDENTIAL CARE,865633,130245330,04-Feb-16,"4,404.80",CMG HOMES LTD,SP0000075
WANDSWORTH COUNCIL,Revenue,ASC,SOCIAL SERVICES,PRIVATE,EXTERNAL RESIDENTIAL CARE,865634,130245330,04-Feb-16,"8,121.44",CMG HOMES LTD,SP0000075
WANDSWORTH COUNCIL,Revenue,ASC,SOCIAL SERVICES,PRIVATE,EXTERNAL RESIDENTIAL CARE,865635,130245330,04-Feb-16,"4,902.84",CMG HOMES LTD,SP0000075
WANDSWORTH COUNCIL,Revenue,ASC,SOCIAL SERVICES,PRIVATE,EXTERNAL RESIDENTIAL CARE,865636,130245330,04-Feb-16,"4,680.84",CMG HOMES LTD,SP0000075
WANDSWORTH COUNCIL,Revenue,ASC,SOCIAL SERVICES,PRIVATE,EXTERNAL RESIDENTIAL CARE,865637,130245330,04-Feb-16,"7,177.08",CMG HOMES LTD,SP0000075
WANDSWORTH COUNCIL,Revenue,ASC,SOCIAL SERVICES,PRIVATE,EXTERNAL RESIDENTIAL CARE,865638,130245330,04-Feb-16,"4,448.72",CMG HOMES LTD,SP0000075
WANDSWORTH COUNCIL,Revenue,ASC,SOCIAL SERVICES,PRIVATE,EXTERNAL RESIDENTIAL CARE,883227,130245330,24-Feb-16,"6,195.85",NATIONAL SOCIETY FOR EPILEPSY,SP0000120
WANDSWORTH COUNCIL,Revenue,ASC,SOCIAL SERVICES,PRIVATE,EXTERNAL RESIDENTIAL CARE,884771,130245330,26-Feb-16,"2,481.72",SANCTUARY CARE LTD,SP0000121
WANDSWORTH COUNCIL,Revenue,ASC,SOCIAL SERVICES,PRIVATE,EXTERNAL RESIDENTIAL CARE,881537,130245330,23-Feb-16,"4,523.92",FRANCES TAYLOR FOUNDATION,SP0000142
WANDSWORTH COUNCIL,Revenue,ASC,SOCIAL SERVICES,PRIVATE,EXTERNAL RESIDENTIAL CARE,881538,130245330,23-Feb-16,"4,063.23",FRANCES TAYLOR FOUNDATION,SP0000142
WANDSWORTH COUNCIL,Revenue,ASC,SOCIAL SERVICES,PRIVATE,EXTERNAL RESIDENTIAL CARE,881539,130245330,23-Feb-16,"3,920.76",FRANCES TAYLOR FOUNDATION,SP0000142
WANDSWORTH COUNCIL,Revenue,ASC,SOCIAL SERVICES,PRIVATE,EXTERNAL RESIDENTIAL CARE,884214,130245330,25-Feb-16,"4,062.44",RESIDENTIAL CARE SERVICES T/A FRANKLYN L,SP0000147
WANDSWORTH COUNCIL,Revenue,ASC,SOCIAL SERVICES,PRIVATE,EXTERNAL RESIDENTIAL CARE,883251,130245330,24-Feb-16,"4,415.60",TANGLEWOOD CARE HOME,SP0000167
WANDSWORTH COUNCIL,Revenue,ASC,SOCIAL SERVICES,PRIVATE,EXTERNAL RESIDENTIAL CARE,866432,130245330,05-Feb-16,"4,273.02",TRELOAR SCHOOL,SP0000200
WANDSWORTH COUNCIL,Revenue,ASC,SOCIAL SERVICES,PRIVATE,EXTERNAL RESIDENTIAL CARE,866433,130245330,05-Feb-16,"9,248.75",TRELOAR SCHOOL,SP0000200
WANDSWORTH COUNCIL,Revenue,ASC,SOCIAL SERVICES,PRIVATE,EXTERNAL RESIDENTIAL CARE,876956,130245330,17-Feb-16,"3,956.18",ST MARYS RESIDENTIAL HOME,SP0000215
WANDSWORTH COUNCIL,Revenue,ASC,SOCIAL SERVICES,PRIVATE,EXTERNAL RESIDENTIAL CARE,876957,130245330,17-Feb-16,"3,898.74",ST MARYS RESIDENTIAL HOME,SP0000215
WANDSWORTH COUNCIL,Revenue,ASC,SOCIAL SERVICES,PRIVATE,EXTERNAL RESIDENTIAL CARE,876958,130245330,17-Feb-16,"3,569.83",ST MARYS RESIDENTIAL HOME,SP0000215
WANDSWORTH COUNCIL,Revenue,ASC,SOCIAL SERVICES,PRIVATE,EXTERNAL RESIDENTIAL CARE,876959,130245330,17-Feb-16,"3,711.63",ST MARYS RESIDENTIAL HOME,SP0000215
WANDSWORTH COUNCIL,Revenue,ASC,SOCIAL SERVICES,PRIVATE,EXTERNAL RESIDENTIAL CARE,876960,130245330,17-Feb-16,"3,134.19",ST MARYS RESIDENTIAL HOME,SP0000215
WANDSWORTH COUNCIL,Revenue,ASC,SOCIAL SERVICES,PRIVATE,EXTERNAL RESIDENTIAL CARE,876961,130245330,17-Feb-16,"5,040.24",ST MARYS RESIDENTIAL HOME,SP0000215
WANDSWORTH COUNCIL,Revenue,ASC,SOCIAL SERVICES,PRIVATE,EXTERNAL RESIDENTIAL CARE,876962,130245330,17-Feb-16,"3,619.79",ST MARYS RESIDENTIAL HOME,SP0000215
WANDSWORTH COUNCIL,Revenue,ASC,SOCIAL SERVICES,PRIVATE,EXTERNAL RESIDENTIAL CARE,876963,130245330,17-Feb-16,"3,582.71",ST MARYS RESIDENTIAL HOME,SP0000215
WANDSWORTH COUNCIL,Revenue,ASC,SOCIAL SERVICES,PRIVATE,EXTERNAL RESIDENTIAL CARE,876964,130245330,17-Feb-16,"3,542.86",ST MARYS RESIDENTIAL HOME,SP0000215
WANDSWORTH COUNCIL,Revenue,ASC,SOCIAL SERVICES,PRIVATE,EXTERNAL RESIDENTIAL CARE,876965,130245330,17-Feb-16,"2,313.48",ST MARYS RESIDENTIAL HOME,SP0000215
WANDSWORTH COUNCIL,Revenue,ASC,SOCIAL SERVICES,PRIVATE,EXTERNAL RESIDENTIAL CARE,876966,130245330,17-Feb-16,"3,048.85",ST MARYS RESIDENTIAL HOME,SP0000215
WANDSWORTH COUNCIL,Revenue,ASC,SOCIAL SERVICES,PRIVATE,EXTERNAL RESIDENTIAL CARE,876967,130245330,17-Feb-16,"3,539.72",ST MARYS RESIDENTIAL HOME,SP0000215
WANDSWORTH COUNCIL,Revenue,ASC,SOCIAL SERVICES,PRIVATE,EXTERNAL RESIDENTIAL CARE,877832,130245330,18-Feb-16,"3,700.94",ST MARYS RESIDENTIAL HOME,SP0000215
WANDSWORTH COUNCIL,Revenue,ASC,SOCIAL SERVICES,PRIVATE,EXTERNAL RESIDENTIAL CARE,877833,130245330,18-Feb-16,"3,647.20",ST MARYS RESIDENTIAL HOME,SP0000215
WANDSWORTH COUNCIL,Revenue,ASC,SOCIAL SERVICES,PRIVATE,EXTERNAL RESIDENTIAL CARE,877834,130245330,18-Feb-16,"3,339.51",ST MARYS RESIDENTIAL HOME,SP0000215
WANDSWORTH COUNCIL,Revenue,ASC,SOCIAL SERVICES,PRIVATE,EXTERNAL RESIDENTIAL CARE,877835,130245330,18-Feb-16,"3,472.18",ST MARYS RESIDENTIAL HOME,SP0000215
WANDSWORTH COUNCIL,Revenue,ASC,SOCIAL SERVICES,PRIVATE,EXTERNAL RESIDENTIAL CARE,877836,130245330,18-Feb-16,"2,850.37",ST MARYS RESIDENTIAL HOME,SP0000215
WANDSWORTH COUNCIL,Revenue,ASC,SOCIAL SERVICES,PRIVATE,EXTERNAL RESIDENTIAL CARE,877837,130245330,18-Feb-16,"2,164.22",ST MARYS RESIDENTIAL HOME,SP0000215
WANDSWORTH COUNCIL,Revenue,ASC,SOCIAL SERVICES,PRIVATE,EXTERNAL RESIDENTIAL CARE,877838,130245330,18-Feb-16,"4,715.07",ST MARYS RESIDENTIAL HOME,SP0000215
WANDSWORTH COUNCIL,Revenue,ASC,SOCIAL SERVICES,PRIVATE,EXTERNAL RESIDENTIAL CARE,877839,130245330,18-Feb-16,"3,404.28",ST MARYS RESIDENTIAL HOME,SP0000215
WANDSWORTH COUNCIL,Revenue,ASC,SOCIAL SERVICES,PRIVATE,EXTERNAL RESIDENTIAL CARE,877840,130245330,18-Feb-16,"3,351.57",ST MARYS RESIDENTIAL HOME,SP0000215
WANDSWORTH COUNCIL,Revenue,ASC,SOCIAL SERVICES,PRIVATE,EXTERNAL RESIDENTIAL CARE,877841,130245330,18-Feb-16,"3,556.22",ST MARYS RESIDENTIAL HOME,SP0000215
WANDSWORTH COUNCIL,Revenue,ASC,SOCIAL SERVICES,PRIVATE,EXTERNAL RESIDENTIAL CARE,877842,130245330,18-Feb-16,"3,314.28",ST MARYS RESIDENTIAL HOME,SP0000215
WANDSWORTH COUNCIL,Revenue,ASC,SOCIAL SERVICES,PRIVATE,EXTERNAL RESIDENTIAL CARE,881606,130245330,23-Feb-16,"2,595.40",ST MARYS RESIDENTIAL HOME,SP0000215
WANDSWORTH COUNCIL,Revenue,ASC,SOCIAL SERVICES,PRIVATE,EXTERNAL RESIDENTIAL CARE,873563,130245330,12-Feb-16,"5,515.16",NAS SERVICES LIMITED,SP0000217
WANDSWORTH COUNCIL,Revenue,ASC,SOCIAL SERVICES,PRIVATE,EXTERNAL RESIDENTIAL CARE,881502,130245330,23-Feb-16,"7,211.60",THE DISABILITIES TRUST,SP0000239
WANDSWORTH COUNCIL,Revenue,ASC,SOCIAL SERVICES,PRIVATE,EXTERNAL RESIDENTIAL CARE,870998,130245330,10-Feb-16,"4,689.36",CAMERON LODGE LIMITED,SP0000271
WANDSWORTH COUNCIL,Revenue,ASC,SOCIAL SERVICES,PRIVATE,EXTERNAL RESIDENTIAL CARE,881460,130245330,23-Feb-16,"7,527.41",BROOKDALE CARE,SP0000282
WANDSWORTH COUNCIL,Revenue,ASC,SOCIAL SERVICES,PRIVATE,EXTERNAL RESIDENTIAL CARE,874963,130245330,16-Feb-16,"2,950.92",CRAEGMOOR FACILITIES CO LTD,SP0000306
WANDSWORTH COUNCIL,Revenue,ASC,SOCIAL SERVICES,PRIVATE,EXTERNAL RESIDENTIAL CARE,883230,130245330,24-Feb-16,"4,946.29",DOLPHIN HOMES LTD,SP0000331
WANDSWORTH COUNCIL,Revenue,ASC,SOCIAL SERVICES,PRIVATE,EXTERNAL RESIDENTIAL CARE,883231,130245330,24-Feb-16,"3,893.95",DOLPHIN HOMES LTD,SP0000331
WANDSWORTH COUNCIL,Revenue,ASC,SOCIAL SERVICES,PRIVATE,EXTERNAL RESIDENTIAL CARE,869500,130245330,09-Feb-16,"6,154.44",NORWOOD SCHOOLS LTD,SP0000332
WANDSWORTH COUNCIL,Revenue,ASC,SOCIAL SERVICES,PRIVATE,EXTERNAL RESIDENTIAL CARE,869501,130245330,09-Feb-16,"6,409.80",NORWOOD SCHOOLS LTD,SP0000332
WANDSWORTH COUNCIL,Revenue,ASC,SOCIAL SERVICES,PRIVATE,EXTERNAL RESIDENTIAL CARE,885609,130245330,29-Feb-16,"2,405.55",HEYWOODS GRANGE LTD,SP0000361
WANDSWORTH COUNCIL,Revenue,ASC,SOCIAL SERVICES,PRIVATE,EXTERNAL RESIDENTIAL CARE,885610,130245330,29-Feb-16,"3,210.71",HEYWOODS GRANGE LTD,SP0000361
WANDSWORTH COUNCIL,Revenue,ASC,SOCIAL SERVICES,PRIVATE,EXTERNAL RESIDENTIAL CARE,881494,130245330,23-Feb-16,"2,037.47",ST DAVIDS CARE IN THE COMMUNITY,SP0000379
WANDSWORTH COUNCIL,Revenue,ASC,SOCIAL SERVICES,PRIVATE,EXTERNAL RESIDENTIAL CARE,881495,130245330,23-Feb-16,"2,455.63",ST DAVIDS CARE IN THE COMMUNITY,SP0000379
WANDSWORTH COUNCIL,Revenue,ASC,SOCIAL SERVICES,PRIVATE,EXTERNAL RESIDENTIAL CARE,881496,130245330,23-Feb-16,"2,037.47",ST DAVIDS CARE IN THE COMMUNITY,SP0000379
WANDSWORTH COUNCIL,Revenue,ASC,SOCIAL SERVICES,PRIVATE,EXTERNAL RESIDENTIAL CARE,881609,130245330,23-Feb-16,"5,281.85",ESSEX CARE CONSORTIUM,SP0000387
WANDSWORTH COUNCIL,Revenue,ASC,SOCIAL SERVICES,PRIVATE,EXTERNAL RESIDENTIAL CARE,885611,130245330,29-Feb-16,"3,135.60",POTENSIAL LTD,SP0000395
WANDSWORTH COUNCIL,Revenue,ASC,SOCIAL SERVICES,PRIVATE,EXTERNAL RESIDENTIAL CARE,869503,130245330,09-Feb-16,"3,976.44",KENILWORTH RESIDENTIAL HOME,SP0000432
WANDSWORTH COUNCIL,Revenue,ASC,SOCIAL SERVICES,PRIVATE,EXTERNAL RESIDENTIAL CARE,869504,130245330,09-Feb-16,"4,150.04",KENILWORTH RESIDENTIAL HOME,SP0000432
WANDSWORTH COUNCIL,Revenue,ASC,SOCIAL SERVICES,PRIVATE,EXTERNAL RESIDENTIAL CARE,881603,130245330,23-Feb-16,"4,667.40",THE WELL HOUSE,SP0000448
WANDSWORTH COUNCIL,Revenue,ASC,SOCIAL SERVICES,PRIVATE,EXTERNAL RESIDENTIAL CARE,881604,130245330,23-Feb-16,"4,415.13",THE WELL HOUSE,SP0000448
WANDSWORTH COUNCIL,Revenue,ASC,SOCIAL SERVICES,PRIVATE,EXTERNAL RESIDENTIAL CARE,881568,130245330,23-Feb-16,"5,429.64",MACINTYRE CARE,SP0000473
WANDSWORTH COUNCIL,Revenue,ASC,SOCIAL SERVICES,PRIVATE,EXTERNAL RESIDENTIAL CARE,881570,130245330,23-Feb-16,"3,759.64",MACINTYRE CARE,SP0000473
WANDSWORTH COUNCIL,Revenue,ASC,SOCIAL SERVICES,PRIVATE,EXTERNAL RESIDENTIAL CARE,881571,130245330,23-Feb-16,"5,192.48",MACINTYRE CARE,SP0000473
WANDSWORTH COUNCIL,Revenue,ASC,SOCIAL SERVICES,PRIVATE,EXTERNAL RESIDENTIAL CARE,881572,130245330,23-Feb-16,"3,737.63",MACINTYRE CARE,SP0000473
WANDSWORTH COUNCIL,Revenue,ASC,SOCIAL SERVICES,PRIVATE,EXTERNAL RESIDENTIAL CARE,881573,130245330,23-Feb-16,"3,733.39",MACINTYRE CARE,SP0000473
WANDSWORTH COUNCIL,Revenue,ASC,SOCIAL SERVICES,PRIVATE,EXTERNAL RESIDENTIAL CARE,881574,130245330,23-Feb-16,"4,918.39",MACINTYRE CARE,SP0000473
WANDSWORTH COUNCIL,Revenue,ASC,SOCIAL SERVICES,PRIVATE,EXTERNAL RESIDENTIAL CARE,881575,130245330,23-Feb-16,"5,085.71",MACINTYRE CARE,SP0000473
WANDSWORTH COUNCIL,Revenue,ASC,SOCIAL SERVICES,PRIVATE,EXTERNAL RESIDENTIAL CARE,881576,130245330,23-Feb-16,"2,301.11",MACINTYRE CARE,SP0000473
WANDSWORTH COUNCIL,Revenue,ASC,SOCIAL SERVICES,PRIVATE,EXTERNAL RESIDENTIAL CARE,881577,130245330,23-Feb-16,"8,054.44",MACINTYRE CARE,SP0000473
WANDSWORTH COUNCIL,Revenue,ASC,SOCIAL SERVICES,PRIVATE,EXTERNAL RESIDENTIAL CARE,881578,130245330,23-Feb-16,"5,030.56",MACINTYRE CARE,SP0000473
WANDSWORTH COUNCIL,Revenue,ASC,SOCIAL SERVICES,PRIVATE,EXTERNAL RESIDENTIAL CARE,881579,130245330,23-Feb-16,"5,429.76",MACINTYRE CARE,SP0000473
WANDSWORTH COUNCIL,Revenue,ASC,SOCIAL SERVICES,PRIVATE,EXTERNAL RESIDENTIAL CARE,881580,130245330,23-Feb-16,"4,907.76",MACINTYRE CARE,SP0000473
WANDSWORTH COUNCIL,Revenue,ASC,SOCIAL SERVICES,PRIVATE,EXTERNAL RESIDENTIAL CARE,881581,130245330,23-Feb-16,"4,169.70",MACINTYRE CARE,SP0000473
WANDSWORTH COUNCIL,Revenue,ASC,SOCIAL SERVICES,PRIVATE,EXTERNAL RESIDENTIAL CARE,881582,130245330,23-Feb-16,"4,909.16",MACINTYRE CARE,SP0000473
WANDSWORTH COUNCIL,Revenue,ASC,SOCIAL SERVICES,PRIVATE,EXTERNAL RESIDENTIAL CARE,881583,130245330,23-Feb-16,"4,909.16",MACINTYRE CARE,SP0000473
WANDSWORTH COUNCIL,Revenue,ASC,SOCIAL SERVICES,PRIVATE,EXTERNAL RESIDENTIAL CARE,881585,130245330,23-Feb-16,"4,904.32",MACINTYRE CARE,SP0000473
WANDSWORTH COUNCIL,Revenue,ASC,SOCIAL SERVICES,PRIVATE,EXTERNAL RESIDENTIAL CARE,881586,130245330,23-Feb-16,"4,907.76",MACINTYRE CARE,SP0000473
WANDSWORTH COUNCIL,Revenue,ASC,SOCIAL SERVICES,PRIVATE,EXTERNAL RESIDENTIAL CARE,881587,130245330,23-Feb-16,"4,885.15",MACINTYRE CARE,SP0000473
WANDSWORTH COUNCIL,Revenue,ASC,SOCIAL SERVICES,PRIVATE,EXTERNAL RESIDENTIAL CARE,881588,130245330,23-Feb-16,"4,896.27",MACINTYRE CARE,SP0000473
WANDSWORTH COUNCIL,Revenue,ASC,SOCIAL SERVICES,PRIVATE,EXTERNAL RESIDENTIAL CARE,884209,130245330,25-Feb-16,"8,982.39",SURREY & BORDERS PARTNERSHIP NHS TRUST,SP0000501
WANDSWORTH COUNCIL,Revenue,ASC,SOCIAL SERVICES,PRIVATE,EXTERNAL RESIDENTIAL CARE,884695,130245330,26-Feb-16,"5,622.80",SURREY & BORDERS PARTNERSHIP NHS TRUST,SP0000501
WANDSWORTH COUNCIL,Revenue,ASC,SOCIAL SERVICES,PRIVATE,EXTERNAL RESIDENTIAL CARE,869532,130245330,09-Feb-16,"7,717.76",LORING HALL LIMITED,SP0000511
WANDSWORTH COUNCIL,Revenue,ASC,SOCIAL SERVICES,PRIVATE,EXTERNAL RESIDENTIAL CARE,881522,130245330,23-Feb-16,"5,280.15",THE COMMUNITY CARE COMPANY UK LTD,SP0000576
WANDSWORTH COUNCIL,Revenue,ASC,SOCIAL SERVICES,PRIVATE,EXTERNAL RESIDENTIAL CARE,881523,130245330,23-Feb-16,"6,662.54",THE COMMUNITY CARE COMPANY UK LTD,SP0000576
WANDSWORTH COUNCIL,Revenue,ASC,SOCIAL SERVICES,PRIVATE,EXTERNAL RESIDENTIAL CARE,881524,130245330,23-Feb-16,"5,615.44",THE COMMUNITY CARE COMPANY UK LTD,SP0000576
WANDSWORTH COUNCIL,Revenue,ASC,SOCIAL SERVICES,PRIVATE,EXTERNAL RESIDENTIAL CARE,881525,130245330,23-Feb-16,"6,738.44",THE COMMUNITY CARE COMPANY UK LTD,SP0000576
WANDSWORTH COUNCIL,Revenue,ASC,SOCIAL SERVICES,PRIVATE,EXTERNAL RESIDENTIAL CARE,881526,130245330,23-Feb-16,"5,789.39",THE COMMUNITY CARE COMPANY UK LTD,SP0000576
WANDSWORTH COUNCIL,Revenue,ASC,SOCIAL SERVICES,PRIVATE,EXTERNAL RESIDENTIAL CARE,883782,130245330,25-Feb-16,"12,854.40",BIRCC,SP0000584
WANDSWORTH COUNCIL,Revenue,ASC,SOCIAL SERVICES,PRIVATE,EXTERNAL RESIDENTIAL CARE,864334,130245330,03-Feb-16,"5,875.84",THE REGARD PARTNERSHIP,SP0000588
WANDSWORTH COUNCIL,Revenue,ASC,SOCIAL SERVICES,PRIVATE,EXTERNAL RESIDENTIAL CARE,869506,130245330,09-Feb-16,"7,128.49",THE REGARD PARTNERSHIP,SP0000588
WANDSWORTH COUNCIL,Revenue,ASC,SOCIAL SERVICES,PRIVATE,EXTERNAL RESIDENTIAL CARE,881511,130245330,23-Feb-16,"7,000.72",THE REGARD PARTNERSHIP,SP0000588
WANDSWORTH COUNCIL,Revenue,ASC,SOCIAL SERVICES,PRIVATE,EXTERNAL RESIDENTIAL CARE,881512,130245330,23-Feb-16,"6,589.75",THE REGARD PARTNERSHIP,SP0000588
WANDSWORTH COUNCIL,Revenue,ASC,SOCIAL SERVICES,PRIVATE,EXTERNAL RESIDENTIAL CARE,881513,130245330,23-Feb-16,"6,668.59",THE REGARD PARTNERSHIP,SP0000588
WANDSWORTH COUNCIL,Revenue,ASC,SOCIAL SERVICES,PRIVATE,EXTERNAL RESIDENTIAL CARE,881514,130245330,23-Feb-16,"7,364.34",THE REGARD PARTNERSHIP,SP0000588
WANDSWORTH COUNCIL,Revenue,ASC,SOCIAL SERVICES,PRIVATE,EXTERNAL RESIDENTIAL CARE,885606,130245330,29-Feb-16,"5,875.84",THE REGARD PARTNERSHIP,SP0000588
WANDSWORTH COUNCIL,Revenue,ASC,SOCIAL SERVICES,PRIVATE,EXTERNAL RESIDENTIAL CARE,873726,130245330,12-Feb-16,"10,118.48",EVERGREEN PARTNERSHIP,SP0000597
WANDSWORTH COUNCIL,Revenue,ASC,SOCIAL SERVICES,PRIVATE,EXTERNAL RESIDENTIAL CARE,869517,130245330,09-Feb-16,"4,558.48",LAETUS LODGE,SP0000600
WANDSWORTH COUNCIL,Revenue,ASC,SOCIAL SERVICES,PRIVATE,EXTERNAL RESIDENTIAL CARE,869518,130245330,09-Feb-16,"4,792.20",LAETUS LODGE,SP0000600
WANDSWORTH COUNCIL,Revenue,ASC,SOCIAL SERVICES,PRIVATE,EXTERNAL RESIDENTIAL CARE,869519,130245330,09-Feb-16,"6,096.48",LAETUS LODGE,SP0000600
WANDSWORTH COUNCIL,Revenue,ASC,SOCIAL SERVICES,PRIVATE,EXTERNAL RESIDENTIAL CARE,869521,130245330,09-Feb-16,"6,193.48",LAETUS LODGE,SP0000600
WANDSWORTH COUNCIL,Revenue,ASC,SOCIAL SERVICES,PRIVATE,EXTERNAL RESIDENTIAL CARE,869522,130245330,09-Feb-16,"3,669.12",LAETUS LODGE,SP0000600
WANDSWORTH COUNCIL,Revenue,ASC,SOCIAL SERVICES,PRIVATE,EXTERNAL RESIDENTIAL CARE,869523,130245330,09-Feb-16,"3,759.76",LAETUS LODGE,SP0000600
WANDSWORTH COUNCIL,Revenue,ASC,SOCIAL SERVICES,PRIVATE,EXTERNAL RESIDENTIAL CARE,869524,130245330,09-Feb-16,"5,240.56",LAETUS LODGE,SP0000600
WANDSWORTH COUNCIL,Revenue,ASC,SOCIAL SERVICES,PRIVATE,EXTERNAL RESIDENTIAL CARE,876953,130245330,17-Feb-16,"3,231.51",MENCAP,SP0000604
WANDSWORTH COUNCIL,Revenue,ASC,SOCIAL SERVICES,PRIVATE,EXTERNAL RESIDENTIAL CARE,876954,130245330,17-Feb-16,"3,231.51",MENCAP,SP0000604
WANDSWORTH COUNCIL,Revenue,ASC,SOCIAL SERVICES,PRIVATE,EXTERNAL RESIDENTIAL CARE,876955,130245330,17-Feb-16,"2,237.51",MENCAP,SP0000604
WANDSWORTH COUNCIL,Revenue,ASC,SOCIAL SERVICES,PRIVATE,EXTERNAL RESIDENTIAL CARE,876971,130245330,17-Feb-16,"8,060.31",HEALTHLINC INDIVIDUAL CARE,SP0000617
WANDSWORTH COUNCIL,Revenue,ASC,SOCIAL SERVICES,PRIVATE,EXTERNAL RESIDENTIAL CARE,876972,130245330,17-Feb-16,"7,540.29",HEALTHLINC INDIVIDUAL CARE,SP0000617
WANDSWORTH COUNCIL,Revenue,ASC,SOCIAL SERVICES,PRIVATE,EXTERNAL RESIDENTIAL CARE,867362,130245330,08-Feb-16,"3,659.52",METROPOLITAN HOUSING TRUST,SP0000626
WANDSWORTH COUNCIL,Revenue,ASC,SOCIAL SERVICES,PRIVATE,EXTERNAL RESIDENTIAL CARE,867363,130245330,08-Feb-16,"3,659.52",METROPOLITAN HOUSING TRUST,SP0000626
WANDSWORTH COUNCIL,Revenue,ASC,SOCIAL SERVICES,PRIVATE,EXTERNAL RESIDENTIAL CARE,867364,130245330,08-Feb-16,"3,659.52",METROPOLITAN HOUSING TRUST,SP0000626
WANDSWORTH COUNCIL,Revenue,ASC,SOCIAL SERVICES,PRIVATE,EXTERNAL RESIDENTIAL CARE,867365,130245330,08-Feb-16,"3,659.68",METROPOLITAN HOUSING TRUST,SP0000626
WANDSWORTH COUNCIL,Revenue,ASC,SOCIAL SERVICES,PRIVATE,EXTERNAL RESIDENTIAL CARE,867366,130245330,08-Feb-16,"3,659.52",METROPOLITAN HOUSING TRUST,SP0000626
WANDSWORTH COUNCIL,Revenue,ASC,SOCIAL SERVICES,PRIVATE,EXTERNAL RESIDENTIAL CARE,867367,130245330,08-Feb-16,"3,659.52",METROPOLITAN HOUSING TRUST,SP0000626
WANDSWORTH COUNCIL,Revenue,ASC,SOCIAL SERVICES,PRIVATE,EXTERNAL RESIDENTIAL CARE,867368,130245330,08-Feb-16,"3,812.04",METROPOLITAN HOUSING TRUST,SP0000626
WANDSWORTH COUNCIL,Revenue,ASC,SOCIAL SERVICES,PRIVATE,EXTERNAL RESIDENTIAL CARE,867369,130245330,08-Feb-16,"3,659.52",METROPOLITAN HOUSING TRUST,SP0000626
WANDSWORTH COUNCIL,Revenue,ASC,SOCIAL SERVICES,PRIVATE,EXTERNAL RESIDENTIAL CARE,867370,130245330,08-Feb-16,"4,756.92",METROPOLITAN HOUSING TRUST,SP0000626
WANDSWORTH COUNCIL,Revenue,ASC,SOCIAL SERVICES,PRIVATE,EXTERNAL RESIDENTIAL CARE,867371,130245330,08-Feb-16,"4,756.88",METROPOLITAN HOUSING TRUST,SP0000626
WANDSWORTH COUNCIL,Revenue,ASC,SOCIAL SERVICES,PRIVATE,EXTERNAL RESIDENTIAL CARE,867372,130245330,08-Feb-16,"4,756.88",METROPOLITAN HOUSING TRUST,SP0000626
WANDSWORTH COUNCIL,Revenue,ASC,SOCIAL SERVICES,PRIVATE,EXTERNAL RESIDENTIAL CARE,867373,130245330,08-Feb-16,"4,427.04",METROPOLITAN HOUSING TRUST,SP0000626
WANDSWORTH COUNCIL,Revenue,ASC,SOCIAL SERVICES,PRIVATE,EXTERNAL RESIDENTIAL CARE,867374,130245330,08-Feb-16,"4,709.79",METROPOLITAN HOUSING TRUST,SP0000626
WANDSWORTH COUNCIL,Revenue,ASC,SOCIAL SERVICES,PRIVATE,EXTERNAL RESIDENTIAL CARE,867375,130245330,08-Feb-16,"4,709.79",METROPOLITAN HOUSING TRUST,SP0000626
WANDSWORTH COUNCIL,Revenue,ASC,SOCIAL SERVICES,PRIVATE,EXTERNAL RESIDENTIAL CARE,867377,130245330,08-Feb-16,"4,709.79",METROPOLITAN HOUSING TRUST,SP0000626
WANDSWORTH COUNCIL,Revenue,ASC,SOCIAL SERVICES,PRIVATE,EXTERNAL RESIDENTIAL CARE,883796,130245330,25-Feb-16,"11,475.88",LOVING CARE LTD,SP0000670
WANDSWORTH COUNCIL,Revenue,ASC,SOCIAL SERVICES,PRIVATE,EXTERNAL RESIDENTIAL CARE,883797,130245330,25-Feb-16,"11,299.97",LOVING CARE LTD,SP0000670
WANDSWORTH COUNCIL,Revenue,ASC,SOCIAL SERVICES,PRIVATE,EXTERNAL RESIDENTIAL CARE,883798,130245330,25-Feb-16,"11,282.12",LOVING CARE LTD,SP0000670
WANDSWORTH COUNCIL,Revenue,ASC,SOCIAL SERVICES,PRIVATE,EXTERNAL RESIDENTIAL CARE,883799,130245330,25-Feb-16,"11,282.12",LOVING CARE LTD,SP0000670
WANDSWORTH COUNCIL,Revenue,ASC,SOCIAL SERVICES,PRIVATE,EXTERNAL RESIDENTIAL CARE,883800,130245330,25-Feb-16,"11,475.88",LOVING CARE LTD,SP0000670
WANDSWORTH COUNCIL,Revenue,ASC,SOCIAL SERVICES,PRIVATE,EXTERNAL RESIDENTIAL CARE,883801,130245330,25-Feb-16,"11,147.13",LOVING CARE LTD,SP0000670
WANDSWORTH COUNCIL,Revenue,ASC,SOCIAL SERVICES,PRIVATE,EXTERNAL RESIDENTIAL CARE,881463,130245330,23-Feb-16,"2,899.09",THE MANOR HOUSE,SP0000728
WANDSWORTH COUNCIL,Revenue,ASC,SOCIAL SERVICES,PRIVATE,EXTERNAL RESIDENTIAL CARE,881612,130245330,23-Feb-16,"8,023.39",RALEIGH HOUSE LTD,SP0000760
WANDSWORTH COUNCIL,Revenue,ASC,SOCIAL SERVICES,PRIVATE,EXTERNAL RESIDENTIAL CARE,884185,130245330,25-Feb-16,"1,502.58",RALEIGH HOUSE LTD,SP0000760
WANDSWORTH COUNCIL,Revenue,ASC,SOCIAL SERVICES,PRIVATE,EXTERNAL RESIDENTIAL CARE,885612,130245330,29-Feb-16,"4,847.49",WHITE ROSE CARE,SP0000780
WANDSWORTH COUNCIL,Revenue,ASC,SOCIAL SERVICES,PRIVATE,EXTERNAL RESIDENTIAL CARE,869515,130245330,09-Feb-16,"3,806.64",GLENCARE GROUP,SP0000791
WANDSWORTH COUNCIL,Revenue,ASC,SOCIAL SERVICES,PRIVATE,EXTERNAL RESIDENTIAL CARE,869516,130245330,09-Feb-16,"3,806.64",GLENCARE GROUP,SP0000791
WANDSWORTH COUNCIL,Revenue,ASC,SOCIAL SERVICES,PRIVATE,EXTERNAL RESIDENTIAL CARE,881503,130245330,23-Feb-16,"6,103.44",GLENCARE GROUP,SP0000791
WANDSWORTH COUNCIL,Revenue,ASC,SOCIAL SERVICES,PRIVATE,EXTERNAL RESIDENTIAL CARE,869679,130245330,09-Feb-16,"2,267.32",FREEWAYS TRUST LTD,SP0000793
WANDSWORTH COUNCIL,Revenue,ASC,SOCIAL SERVICES,PRIVATE,EXTERNAL RESIDENTIAL CARE,869680,130245330,09-Feb-16,"2,267.32",FREEWAYS TRUST LTD,SP0000793
WANDSWORTH COUNCIL,Revenue,ASC,SOCIAL SERVICES,PRIVATE,EXTERNAL RESIDENTIAL CARE,869681,130245330,09-Feb-16,"2,267.32",FREEWAYS TRUST LTD,SP0000793
WANDSWORTH COUNCIL,Revenue,ASC,SOCIAL SERVICES,PRIVATE,EXTERNAL RESIDENTIAL CARE,869682,130245330,09-Feb-16,"2,267.32",FREEWAYS TRUST LTD,SP0000793
WANDSWORTH COUNCIL,Revenue,ASC,SOCIAL SERVICES,PRIVATE,EXTERNAL RESIDENTIAL CARE,881561,130245330,23-Feb-16,"3,140.56",UNITED RESPONSE,SP0000797
WANDSWORTH COUNCIL,Revenue,ASC,SOCIAL SERVICES,PRIVATE,EXTERNAL RESIDENTIAL CARE,884183,130245330,25-Feb-16,"3,151.20",PROSPECTS,SP0000800
WANDSWORTH COUNCIL,Revenue,ASC,SOCIAL SERVICES,PRIVATE,EXTERNAL RESIDENTIAL CARE,869687,130245330,09-Feb-16,"6,108.82",WESSEX AUTISTIC SOCIETY,SP0000805
WANDSWORTH COUNCIL,Revenue,ASC,SOCIAL SERVICES,PRIVATE,EXTERNAL RESIDENTIAL CARE,869688,130245330,09-Feb-16,"6,312.44",WESSEX AUTISTIC SOCIETY,SP0000805
WANDSWORTH COUNCIL,Revenue,ASC,SOCIAL SERVICES,PRIVATE,EXTERNAL RESIDENTIAL CARE,881608,130245330,23-Feb-16,"5,905.18",WESSEX AUTISTIC SOCIETY,SP0000805
WANDSWORTH COUNCIL,Revenue,ASC,SOCIAL SERVICES,PRIVATE,EXTERNAL RESIDENTIAL CARE,869510,130245330,09-Feb-16,"3,970.57",BEECH LODGE,SP0000807
WANDSWORTH COUNCIL,Revenue,ASC,SOCIAL SERVICES,PRIVATE,EXTERNAL RESIDENTIAL CARE,869511,130245330,09-Feb-16,"3,970.57",BEECH LODGE,SP0000807
WANDSWORTH COUNCIL,Revenue,ASC,SOCIAL SERVICES,PRIVATE,EXTERNAL RESIDENTIAL CARE,869512,130245330,09-Feb-16,"3,970.57",BEECH LODGE,SP0000807
WANDSWORTH COUNCIL,Revenue,ASC,SOCIAL SERVICES,PRIVATE,EXTERNAL RESIDENTIAL CARE,876969,130245330,17-Feb-16,"9,200.00",CHATSWORTH CARE,SP0000831
WANDSWORTH COUNCIL,Revenue,ASC,SOCIAL SERVICES,PRIVATE,EXTERNAL RESIDENTIAL CARE,883780,130245330,25-Feb-16,"7,445.63",CHATSWORTH CARE,SP0000831
WANDSWORTH COUNCIL,Revenue,ASC,SOCIAL SERVICES,PRIVATE,EXTERNAL RESIDENTIAL CARE,883224,130245330,24-Feb-16,"7,531.72",FIRCROFT,SP0000840
WANDSWORTH COUNCIL,Revenue,ASC,SOCIAL SERVICES,PRIVATE,EXTERNAL RESIDENTIAL CARE,865657,130245330,04-Feb-16,"5,840.68",ROYAL MENCAP SOCIETY,SP0000842
WANDSWORTH COUNCIL,Revenue,ASC,SOCIAL SERVICES,PRIVATE,EXTERNAL RESIDENTIAL CARE,865658,130245330,04-Feb-16,"4,197.68",ROYAL MENCAP SOCIETY,SP0000842
WANDSWORTH COUNCIL,Revenue,ASC,SOCIAL SERVICES,PRIVATE,EXTERNAL RESIDENTIAL CARE,871912,130245330,11-Feb-16,"4,197.68",ROYAL MENCAP SOCIETY,SP0000842
WANDSWORTH COUNCIL,Revenue,ASC,SOCIAL SERVICES,PRIVATE,EXTERNAL RESIDENTIAL CARE,871913,130245330,11-Feb-16,"5,840.68",ROYAL MENCAP SOCIETY,SP0000842
WANDSWORTH COUNCIL,Revenue,ASC,SOCIAL SERVICES,PRIVATE,EXTERNAL RESIDENTIAL CARE,881589,130245330,23-Feb-16,"3,047.12",STALLCOMBE HOUSE,SP0000843
WANDSWORTH COUNCIL,Revenue,ASC,SOCIAL SERVICES,PRIVATE,EXTERNAL RESIDENTIAL CARE,881590,130245330,23-Feb-16,"5,096.95",STALLCOMBE HOUSE,SP0000843
WANDSWORTH COUNCIL,Revenue,ASC,SOCIAL SERVICES,PRIVATE,EXTERNAL RESIDENTIAL CARE,876951,130245330,17-Feb-16,"2,449.43",SCOPE,SP0000852
WANDSWORTH COUNCIL,Revenue,ASC,SOCIAL SERVICES,PRIVATE,EXTERNAL RESIDENTIAL CARE,876952,130245330,17-Feb-16,"2,585.24",SCOPE,SP0000852
WANDSWORTH COUNCIL,Revenue,ASC,SOCIAL SERVICES,PRIVATE,EXTERNAL RESIDENTIAL CARE,881557,130245330,23-Feb-16,"10,581.48",ASHCROFT CARE SERVICES,SP0000872
WANDSWORTH COUNCIL,Revenue,ASC,SOCIAL SERVICES,PRIVATE,EXTERNAL RESIDENTIAL CARE,877831,130245330,18-Feb-16,"5,187.36",229 MITCHAM LANE LTD,SP0000884
WANDSWORTH COUNCIL,Revenue,ASC,SOCIAL SERVICES,PRIVATE,EXTERNAL RESIDENTIAL CARE,884210,130245330,25-Feb-16,"4,222.82",229 MITCHAM LANE LTD,SP0000884
WANDSWORTH COUNCIL,Revenue,ASC,SOCIAL SERVICES,PRIVATE,EXTERNAL RESIDENTIAL CARE,884211,130245330,25-Feb-16,844.54,229 MITCHAM LANE LTD,SP0000884
WANDSWORTH COUNCIL,Revenue,ASC,SOCIAL SERVICES,PRIVATE,EXTERNAL RESIDENTIAL CARE,884212,130245330,25-Feb-16,"5,236.30",229 MITCHAM LANE LTD,SP0000884
WANDSWORTH COUNCIL,Revenue,ASC,SOCIAL SERVICES,PRIVATE,EXTERNAL RESIDENTIAL CARE,884213,130245330,25-Feb-16,"5,236.30",229 MITCHAM LANE LTD,SP0000884
WANDSWORTH COUNCIL,Revenue,ASC,SOCIAL SERVICES,PRIVATE,EXTERNAL RESIDENTIAL CARE,883249,130245330,24-Feb-16,"5,308.31",TRACS,SP0000914
WANDSWORTH COUNCIL,Revenue,ASC,SOCIAL SERVICES,PRIVATE,EXTERNAL RESIDENTIAL CARE,883250,130245330,24-Feb-16,"4,965.84",TRACS,SP0000914
WANDSWORTH COUNCIL,Revenue,ASC,SOCIAL SERVICES,PRIVATE,EXTERNAL RESIDENTIAL CARE,872646,130245330,11-Feb-16,"7,271.56",CORICH COMMUNITY CARE LTD,SP0000915
WANDSWORTH COUNCIL,Revenue,ASC,SOCIAL SERVICES,PRIVATE,EXTERNAL RESIDENTIAL CARE,881490,130245330,23-Feb-16,"7,910.70",PROGRESS HOUSING MARLOW,SP0000952
WANDSWORTH COUNCIL,Revenue,ASC,SOCIAL SERVICES,PRIVATE,EXTERNAL RESIDENTIAL CARE,872657,130245330,11-Feb-16,"2,930.00",MISSION CARE,SP0000958
WANDSWORTH COUNCIL,Revenue,ASC,SOCIAL SERVICES,PRIVATE,EXTERNAL RESIDENTIAL CARE,881462,130245330,23-Feb-16,"3,769.79",DOWNING (CHERTSEY ROAD) LTD,SP0000959
WANDSWORTH COUNCIL,Revenue,ASC,SOCIAL SERVICES,PRIVATE,EXTERNAL RESIDENTIAL CARE,869513,130245330,09-Feb-16,"3,990.72",CHERRY LODGE,SP0000965
WANDSWORTH COUNCIL,Revenue,ASC,SOCIAL SERVICES,PRIVATE,EXTERNAL RESIDENTIAL CARE,866435,130245330,05-Feb-16,"6,493.16",RIDGEWOOD CARE SERVICES LTD,SP0000969
WANDSWORTH COUNCIL,Revenue,ASC,SOCIAL SERVICES,PRIVATE,EXTERNAL RESIDENTIAL CARE,873697,130245330,12-Feb-16,"6,493.16",RIDGEWOOD CARE SERVICES LTD,SP0000969
WANDSWORTH COUNCIL,Revenue,ASC,SOCIAL SERVICES,PRIVATE,EXTERNAL RESIDENTIAL CARE,873698,130245330,12-Feb-16,"3,538.76",RIDGEWOOD CARE SERVICES LTD,SP0000969
WANDSWORTH COUNCIL,Revenue,ASC,SOCIAL SERVICES,PRIVATE,EXTERNAL RESIDENTIAL CARE,873699,130245330,12-Feb-16,"3,766.44",RIDGEWOOD CARE SERVICES LTD,SP0000969
WANDSWORTH COUNCIL,Revenue,ASC,SOCIAL SERVICES,PRIVATE,EXTERNAL RESIDENTIAL CARE,873727,130245330,12-Feb-16,"3,538.76",RIDGEWOOD CARE SERVICES LTD,SP0000969
WANDSWORTH COUNCIL,Revenue,ASC,SOCIAL SERVICES,PRIVATE,EXTERNAL RESIDENTIAL CARE,869528,130245330,09-Feb-16,"4,359.84",LEONARD CHESHIRE,SP0000976
WANDSWORTH COUNCIL,Revenue,ASC,SOCIAL SERVICES,PRIVATE,EXTERNAL RESIDENTIAL CARE,869529,130245330,09-Feb-16,"6,402.96",LEONARD CHESHIRE,SP0000976
WANDSWORTH COUNCIL,Revenue,ASC,SOCIAL SERVICES,PRIVATE,EXTERNAL RESIDENTIAL CARE,869694,130245330,09-Feb-16,"4,702.61",LEONARD CHESHIRE,SP0000976
WANDSWORTH COUNCIL,Revenue,ASC,SOCIAL SERVICES,PRIVATE,EXTERNAL RESIDENTIAL CARE,869695,130245330,09-Feb-16,"4,348.99",LEONARD CHESHIRE,SP0000976
WANDSWORTH COUNCIL,Revenue,ASC,SOCIAL SERVICES,PRIVATE,EXTERNAL RESIDENTIAL CARE,867361,130245330,08-Feb-16,"5,544.13",M JINGREE T/A SUNLIGHT HOUSE,SP0001024
WANDSWORTH COUNCIL,Revenue,ASC,SOCIAL SERVICES,PRIVATE,EXTERNAL RESIDENTIAL CARE,869531,130245330,09-Feb-16,"6,060.62",LIVING AMBITIONS LIMITED,SP0001039
WANDSWORTH COUNCIL,Revenue,ASC,SOCIAL SERVICES,PRIVATE,EXTERNAL RESIDENTIAL CARE,867357,130245330,08-Feb-16,"3,708.20",THE HOME FARM TRUST LTD,SP0001048
WANDSWORTH COUNCIL,Revenue,ASC,SOCIAL SERVICES,PRIVATE,EXTERNAL RESIDENTIAL CARE,877843,130245330,18-Feb-16,"2,743.88",THE HOME FARM TRUST LTD,SP0001048
WANDSWORTH COUNCIL,Revenue,ASC,SOCIAL SERVICES,PRIVATE,EXTERNAL RESIDENTIAL CARE,877844,130245330,18-Feb-16,"2,323.00",THE HOME FARM TRUST LTD,SP0001048
WANDSWORTH COUNCIL,Revenue,ASC,SOCIAL SERVICES,PRIVATE,EXTERNAL RESIDENTIAL CARE,877845,130245330,18-Feb-16,"2,457.40",THE HOME FARM TRUST LTD,SP0001048
WANDSWORTH COUNCIL,Revenue,ASC,SOCIAL SERVICES,PRIVATE,EXTERNAL RESIDENTIAL CARE,883217,130245330,24-Feb-16,"4,053.25",ALLIED CARE (MHS) LTD,SP0001069
WANDSWORTH COUNCIL,Revenue,ASC,SOCIAL SERVICES,PRIVATE,EXTERNAL RESIDENTIAL CARE,883221,130245330,24-Feb-16,"6,599.82",ALLIED CARE (MHS) LTD,SP0001069
WANDSWORTH COUNCIL,Revenue,ASC,SOCIAL SERVICES,PRIVATE,EXTERNAL RESIDENTIAL CARE,883222,130245330,24-Feb-16,"4,677.70",ALLIED CARE (MHS) LTD,SP0001069
WANDSWORTH COUNCIL,Revenue,ASC,SOCIAL SERVICES,PRIVATE,EXTERNAL RESIDENTIAL CARE,883223,130245330,24-Feb-16,"4,630.48",ALLIED CARE (MHS) LTD,SP0001069
WANDSWORTH COUNCIL,Revenue,ASC,SOCIAL SERVICES,PRIVATE,EXTERNAL RESIDENTIAL CARE,881493,130245330,23-Feb-16,"2,173.44",SAXON COURT,SP0001100
WANDSWORTH COUNCIL,Revenue,ASC,SOCIAL SERVICES,PRIVATE,EXTERNAL RESIDENTIAL CARE,869526,130245330,09-Feb-16,"7,395.80",TOTTERDOWN,SP0001113
WANDSWORTH COUNCIL,Revenue,ASC,SOCIAL SERVICES,PRIVATE,EXTERNAL RESIDENTIAL CARE,869527,130245330,09-Feb-16,"3,671.24",TOTTERDOWN,SP0001113
WANDSWORTH COUNCIL,Revenue,ASC,SOCIAL SERVICES,PRIVATE,EXTERNAL RESIDENTIAL CARE,883220,130245330,24-Feb-16,"6,886.81",SUSSEX HEALTH CARE,SP0001115
WANDSWORTH COUNCIL,Revenue,ASC,SOCIAL SERVICES,PRIVATE,EXTERNAL RESIDENTIAL CARE,881527,130245330,23-Feb-16,"6,470.40",LONDON CARE PARTNERSHIP LTD,SP0001138
WANDSWORTH COUNCIL,Revenue,ASC,SOCIAL SERVICES,PRIVATE,EXTERNAL RESIDENTIAL CARE,881528,130245330,23-Feb-16,"8,265.00",LONDON CARE PARTNERSHIP LTD,SP0001138
WANDSWORTH COUNCIL,Revenue,ASC,SOCIAL SERVICES,PRIVATE,EXTERNAL RESIDENTIAL CARE,881529,130245330,23-Feb-16,"7,664.28",LONDON CARE PARTNERSHIP LTD,SP0001138
WANDSWORTH COUNCIL,Revenue,ASC,SOCIAL SERVICES,PRIVATE,EXTERNAL RESIDENTIAL CARE,881530,130245330,23-Feb-16,"7,767.86",LONDON CARE PARTNERSHIP LTD,SP0001138
WANDSWORTH COUNCIL,Revenue,ASC,SOCIAL SERVICES,PRIVATE,EXTERNAL RESIDENTIAL CARE,881531,130245330,23-Feb-16,"7,767.86",LONDON CARE PARTNERSHIP LTD,SP0001138
WANDSWORTH COUNCIL,Revenue,ASC,SOCIAL SERVICES,PRIVATE,EXTERNAL RESIDENTIAL CARE,881532,130245330,23-Feb-16,"7,975.00",LONDON CARE PARTNERSHIP LTD,SP0001138
WANDSWORTH COUNCIL,Revenue,ASC,SOCIAL SERVICES,PRIVATE,EXTERNAL RESIDENTIAL CARE,865651,130245330,04-Feb-16,"7,194.44",CHOICE CARE GROUP,SP0001367
WANDSWORTH COUNCIL,Revenue,ASC,SOCIAL SERVICES,PRIVATE,EXTERNAL RESIDENTIAL CARE,885601,130245330,29-Feb-16,"7,194.44",CHOICE CARE GROUP,SP0001367
WANDSWORTH COUNCIL,Revenue,ASC,SOCIAL SERVICES,PRIVATE,EXTERNAL RESIDENTIAL CARE,869502,130245330,09-Feb-16,"4,967.48",LARKFIELD HALL LTD T/A PEPENBURY,SP0001378
WANDSWORTH COUNCIL,Revenue,ASC,SOCIAL SERVICES,PRIVATE,EXTERNAL RESIDENTIAL CARE,881560,130245330,23-Feb-16,"3,523.28",CRAEGMOOR OLD RECTORY BREDE PRIORY,SP0001621
WANDSWORTH COUNCIL,Revenue,ASC,SOCIAL SERVICES,PRIVATE,EXTERNAL RESIDENTIAL CARE,869514,130245330,09-Feb-16,"8,192.86",CONDOVER COLLEGE LTD,SP0001641
WANDSWORTH COUNCIL,Revenue,ASC,SOCIAL SERVICES,PRIVATE,EXTERNAL RESIDENTIAL CARE,881500,130245330,23-Feb-16,"7,664.29",CONDOVER COLLEGE LTD,SP0001641
WANDSWORTH COUNCIL,Revenue,ASC,SOCIAL SERVICES,PRIVATE,EXTERNAL RESIDENTIAL CARE,880497,130245330,22-Feb-16,"12,005.80",ACH OF LONDON LLP,SP0001688
WANDSWORTH COUNCIL,Revenue,ASC,SOCIAL SERVICES,PRIVATE,EXTERNAL RESIDENTIAL CARE,885604,130245330,29-Feb-16,"4,767.15",ACH OF LONDON LLP,SP0001688
WANDSWORTH COUNCIL,Revenue,ASC,SOCIAL SERVICES,PRIVATE,EXTERNAL RESIDENTIAL CARE,867360,130245330,08-Feb-16,"10,219.46",SALISBURY SUPPORT 4 AUTISM LTD,SP0001691
WANDSWORTH COUNCIL,Revenue,ASC,SOCIAL SERVICES,PRIVATE,EXTERNAL RESIDENTIAL CARE,881484,130245330,23-Feb-16,"7,092.36",PATHWAY HEALTHCARE,SP0001779
WANDSWORTH COUNCIL,Revenue,ASC,SOCIAL SERVICES,PRIVATE,EXTERNAL RESIDENTIAL CARE,881485,130245330,23-Feb-16,"6,673.94",PATHWAY HEALTHCARE,SP0001779
WANDSWORTH COUNCIL,Revenue,ASC,SOCIAL SERVICES,PRIVATE,EXTERNAL RESIDENTIAL CARE,869505,130245330,09-Feb-16,"6,408.96",THE BRANDON TRUST,SP0005337
WANDSWORTH COUNCIL,Revenue,ASC,SOCIAL SERVICES,PRIVATE,EXTERNAL RESIDENTIAL CARE,883793,130245330,25-Feb-16,"2,755.56",HASTINGS & BEXHILL MENCAP SOCIETY,SP0005380
WANDSWORTH COUNCIL,Revenue,ASC,SOCIAL SERVICES,PRIVATE,EXTERNAL RESIDENTIAL CARE,883794,130245330,25-Feb-16,"2,755.56",HASTINGS & BEXHILL MENCAP SOCIETY,SP0005380
WANDSWORTH COUNCIL,Revenue,ASC,SOCIAL SERVICES,PRIVATE,EXTERNAL RESIDENTIAL CARE,883795,130245330,25-Feb-16,"2,755.56",HASTINGS & BEXHILL MENCAP SOCIETY,SP0005380
WANDSWORTH COUNCIL,Revenue,ASC,SOCIAL SERVICES,PRIVATE,EXTERNAL RESIDENTIAL CARE,881468,130245330,23-Feb-16,"3,100.64",INGLESIDE CHILDRENS HOME LTD,SP0005426
WANDSWORTH COUNCIL,Revenue,ASC,SOCIAL SERVICES,PRIVATE,EXTERNAL RESIDENTIAL CARE,884184,130245330,25-Feb-16,"9,884.86",SEQUENCE CARE GROUP,SP0009709
WANDSWORTH COUNCIL,Revenue,ASC,SOCIAL SERVICES,PRIVATE,EXTERNAL RESIDENTIAL CARE,870999,130245330,10-Feb-16,"4,566.84",ALLIED CARE LTD T/A ASHSTEAD HOUSE LTD,SP0009950
WANDSWORTH COUNCIL,Revenue,ASC,SOCIAL SERVICES,PRIVATE,EXTERNAL RESIDENTIAL CARE,874953,130245330,16-Feb-16,"7,420.00",C.H.O.I.C.E LIMITED,SP0010438
WANDSWORTH COUNCIL,Revenue,ASC,SOCIAL SERVICES,PRIVATE,EXTERNAL RESIDENTIAL CARE,869677,130245330,09-Feb-16,"30,639.54","CRAEGMOOR, PARKCARE HOMES (NO2) LTD TA W",SP0010529
WANDSWORTH COUNCIL,Revenue,ASC,SOCIAL SERVICES,PRIVATE,EXTERNAL RESIDENTIAL CARE,881559,130245330,23-Feb-16,"9,861.00","CRAEGMOOR, PARKCARE HOMES (NO2) LTD TA W",SP0010529
WANDSWORTH COUNCIL,Revenue,ASC,SOCIAL SERVICES,PRIVATE,EXTERNAL RESI RESPITE CARE,874956,130245340,16-Feb-16,"2,595.42",ST MARYS RESIDENTIAL HOME,SP0000215
WANDSWORTH COUNCIL,Revenue,ASC,SOCIAL SERVICES,PRIVATE,EXTERNAL RESI RESPITE CARE,874964,130245340,16-Feb-16,"1,196.72",ST MARYS RESIDENTIAL HOME,SP0000215
WANDSWORTH COUNCIL,Revenue,ASC,SOCIAL SERVICES,PRIVATE,ONE TO ONE CARE,877046,130246220,17-Feb-16,"1,066.80",RAINBOW MEDICAL SERVICES,SP0000037
WANDSWORTH COUNCIL,Revenue,ASC,SOCIAL SERVICES,PRIVATE,ONE TO ONE CARE,877047,130246220,17-Feb-16,"2,813.30",RAINBOW MEDICAL SERVICES,SP0000037
WANDSWORTH COUNCIL,Revenue,ASC,SOCIAL SERVICES,PRIVATE,ONE TO ONE CARE,877049,130246220,17-Feb-16,"2,077.85",RAINBOW MEDICAL SERVICES,SP0000037
WANDSWORTH COUNCIL,Revenue,ASC,SOCIAL SERVICES,PRIVATE,ONE TO ONE CARE,867418,130246220,08-Feb-16,"1,619.00",ASIAN ELDERS SUPPORT SCHEME,SP0000190
WANDSWORTH COUNCIL,Revenue,ASC,SOCIAL SERVICES,PRIVATE,ONE TO ONE CARE,877051,130246220,17-Feb-16,648.83,ST MARYS RESIDENTIAL HOME,SP0000215
WANDSWORTH COUNCIL,Revenue,ASC,SOCIAL SERVICES,PRIVATE,ONE TO ONE CARE,877855,130246220,18-Feb-16,649.02,ST MARYS RESIDENTIAL HOME,SP0000215
WANDSWORTH COUNCIL,Revenue,ASC,SOCIAL SERVICES,PRIVATE,ONE TO ONE CARE,877856,130246220,18-Feb-16,606.97,ST MARYS RESIDENTIAL HOME,SP0000215
WANDSWORTH COUNCIL,Revenue,ASC,SOCIAL SERVICES,PRIVATE,ONE TO ONE CARE,872733,130246220,11-Feb-16,547.60,LIFEWAYS COMMUNITY CARE LTD,SP0000364
WANDSWORTH COUNCIL,Revenue,ASC,SOCIAL SERVICES,PRIVATE,ONE TO ONE CARE,873847,130246220,12-Feb-16,"1,350.52",MACINTYRE CARE,SP0000473
WANDSWORTH COUNCIL,Revenue,ASC,SOCIAL SERVICES,PRIVATE,ONE TO ONE CARE,873848,130246220,12-Feb-16,"1,350.52",MACINTYRE CARE,SP0000473
WANDSWORTH COUNCIL,Revenue,ASC,SOCIAL SERVICES,PRIVATE,ONE TO ONE CARE,873849,130246220,12-Feb-16,"1,910.04",MACINTYRE CARE,SP0000473
WANDSWORTH COUNCIL,Revenue,ASC,SOCIAL SERVICES,PRIVATE,ONE TO ONE CARE,873850,130246220,12-Feb-16,"1,350.52",MACINTYRE CARE,SP0000473
WANDSWORTH COUNCIL,Revenue,ASC,SOCIAL SERVICES,PRIVATE,ONE TO ONE CARE,873851,130246220,12-Feb-16,694.56,MACINTYRE CARE,SP0000473
WANDSWORTH COUNCIL,Revenue,ASC,SOCIAL SERVICES,PRIVATE,ONE TO ONE CARE,881954,130246220,23-Feb-16,"1,089.28",THE COMMUNITY CARE COMPANY UK LTD,SP0000576
WANDSWORTH COUNCIL,Revenue,ASC,SOCIAL SERVICES,PRIVATE,ONE TO ONE CARE,881955,130246220,23-Feb-16,"1,242.28",THE COMMUNITY CARE COMPANY UK LTD,SP0000576
WANDSWORTH COUNCIL,Revenue,ASC,SOCIAL SERVICES,PRIVATE,ONE TO ONE CARE,867408,130246220,08-Feb-16,"2,492.16",METROPOLITAN HOUSING TRUST,SP0000626
WANDSWORTH COUNCIL,Revenue,ASC,SOCIAL SERVICES,PRIVATE,ONE TO ONE CARE,867411,130246220,08-Feb-16,"2,459.52",METROPOLITAN HOUSING TRUST,SP0000626
WANDSWORTH COUNCIL,Revenue,ASC,SOCIAL SERVICES,PRIVATE,ONE TO ONE CARE,867412,130246220,08-Feb-16,"1,812.48",METROPOLITAN HOUSING TRUST,SP0000626
WANDSWORTH COUNCIL,Revenue,ASC,SOCIAL SERVICES,PRIVATE,ONE TO ONE CARE,867414,130246220,08-Feb-16,"1,844.64",METROPOLITAN HOUSING TRUST,SP0000626
WANDSWORTH COUNCIL,Revenue,ASC,SOCIAL SERVICES,PRIVATE,ONE TO ONE CARE,872647,130246220,11-Feb-16,"1,600.44",CORICH COMMUNITY CARE LTD,SP0000915
WANDSWORTH COUNCIL,Revenue,ASC,SOCIAL SERVICES,PRIVATE,ONE TO ONE CARE,881953,130246220,23-Feb-16,"2,698.66",DOWNING (CHERTSEY ROAD) LTD,SP0000959
WANDSWORTH COUNCIL,Revenue,ASC,SOCIAL SERVICES,PRIVATE,ONE TO ONE CARE,869629,130246220,09-Feb-16,"1,597.44",TOTTERDOWN,SP0001113
WANDSWORTH COUNCIL,Revenue,ASC,SOCIAL SERVICES,PRIVATE,ONE TO ONE CARE,869646,130246220,09-Feb-16,590.40,FRONTIER SUPPORT SERVICES LTD,SP0001132
WANDSWORTH COUNCIL,Revenue,ASC,SOCIAL SERVICES,PRIVATE,ONE TO ONE CARE,869647,130246220,09-Feb-16,177.00,FRONTIER SUPPORT SERVICES LTD,SP0001132
WANDSWORTH COUNCIL,Revenue,ASC,SOCIAL SERVICES,PRIVATE,ONE TO ONE CARE,869650,130246220,09-Feb-16,708.24,FRONTIER SUPPORT SERVICES LTD,SP0001132
WANDSWORTH COUNCIL,Revenue,ASC,SOCIAL SERVICES,PRIVATE,ONE TO ONE CARE,869628,130246220,09-Feb-16,802.08,LARKFIELD HALL LTD T/A PEPENBURY,SP0001378
WANDSWORTH COUNCIL,Revenue,ASC,SOCIAL SERVICES,PRIVATE,ONE TO ONE CARE,872123,130246220,11-Feb-16,"11,186.28",CAMBIAN AUTISM SERVICES LTD,SP0001589
WANDSWORTH COUNCIL,Revenue,ASC,SOCIAL SERVICES,PRIVATE,ONE TO ONE CARE,872731,130246220,11-Feb-16,"10,943.10",CAMBIAN AUTISM SERVICES LTD,SP0001589
WANDSWORTH COUNCIL,Revenue,ASC,SOCIAL SERVICES,PRIVATE,ONE TO ONE CARE,881957,130246220,23-Feb-16,"3,000.00",CRAEGMOOR OLD RECTORY BREDE PRIORY,SP0001621
WANDSWORTH COUNCIL,Revenue,ASC,SOCIAL SERVICES,PRIVATE,ONE TO ONE CARE,885739,130246220,29-Feb-16,"1,887.90",ACH OF LONDON LLP,SP0001688
WANDSWORTH COUNCIL,Revenue,ASC,SOCIAL SERVICES,PRIVATE,ONE TO ONE CARE,869876,130246220,09-Feb-16,324.00,THE BRANDON TRUST,SP0005337
WANDSWORTH COUNCIL,Revenue,ASC,SOCIAL SERVICES,PRIVATE,ONE TO ONE CARE,869906,130246220,09-Feb-16,"1,987.20",THE BRANDON TRUST,SP0005337
WANDSWORTH COUNCIL,Revenue,ASC,SOCIAL SERVICES,PRIVATE,ONE TO ONE CARE,869907,130246220,09-Feb-16,"1,312.00",THE BRANDON TRUST,SP0005337
WANDSWORTH COUNCIL,Revenue,ASC,SOCIAL SERVICES,PRIVATE,ONE TO ONE CARE,869910,130246220,09-Feb-16,"2,450.88",THE BRANDON TRUST,SP0005337
WANDSWORTH COUNCIL,Revenue,ASC,SOCIAL SERVICES,PRIVATE,ONE TO ONE CARE,869956,130246220,09-Feb-16,600.04,THE BRANDON TRUST,SP0005337
WANDSWORTH COUNCIL,Revenue,ASC,SOCIAL SERVICES,PRIVATE,ONE TO ONE CARE,869966,130246220,09-Feb-16,331.20,THE BRANDON TRUST,SP0005337
WANDSWORTH COUNCIL,Revenue,ASC,SOCIAL SERVICES,PRIVATE,ONE TO ONE CARE,869968,130246220,09-Feb-16,331.20,THE BRANDON TRUST,SP0005337
WANDSWORTH COUNCIL,Revenue,ASC,SOCIAL SERVICES,VOL ASS,SUPPORTED HOUSING PROGRAMME,883872,130248030,25-Feb-16,"3,247.28",HARINGEY ASSOCIATION FOR INDEPENDENT LIV,SP0000222
WANDSWORTH COUNCIL,Revenue,ASC,SOCIAL SERVICES,VOL ASS,SUPPORTED HOUSING PROGRAMME,883873,130248030,25-Feb-16,"1,521.52",HARINGEY ASSOCIATION FOR INDEPENDENT LIV,SP0000222
WANDSWORTH COUNCIL,Revenue,ASC,SOCIAL SERVICES,VOL ASS,SUPPORTED HOUSING PROGRAMME,872734,130248030,11-Feb-16,"3,885.44",LIFEWAYS COMMUNITY CARE LTD,SP0000364
WANDSWORTH COUNCIL,Revenue,ASC,SOCIAL SERVICES,VOL ASS,SUPPORTED HOUSING PROGRAMME,872735,130248030,11-Feb-16,"2,596.04",LIFEWAYS COMMUNITY CARE LTD,SP0000364
WANDSWORTH COUNCIL,Revenue,ASC,SOCIAL SERVICES,VOL ASS,SUPPORTED HOUSING PROGRAMME,872736,130248030,11-Feb-16,"2,166.24",LIFEWAYS COMMUNITY CARE LTD,SP0000364
WANDSWORTH COUNCIL,Revenue,ASC,SOCIAL SERVICES,VOL ASS,SUPPORTED HOUSING PROGRAMME,872737,130248030,11-Feb-16,"2,227.64",LIFEWAYS COMMUNITY CARE LTD,SP0000364
WANDSWORTH COUNCIL,Revenue,ASC,SOCIAL SERVICES,VOL ASS,SUPPORTED HOUSING PROGRAMME,872738,130248030,11-Feb-16,"1,982.04",LIFEWAYS COMMUNITY CARE LTD,SP0000364
WANDSWORTH COUNCIL,Revenue,ASC,SOCIAL SERVICES,VOL ASS,SUPPORTED HOUSING PROGRAMME,872740,130248030,11-Feb-16,"2,289.04",LIFEWAYS COMMUNITY CARE LTD,SP0000364
WANDSWORTH COUNCIL,Revenue,ASC,SOCIAL SERVICES,VOL ASS,SUPPORTED HOUSING PROGRAMME,872741,130248030,11-Feb-16,"1,982.04",LIFEWAYS COMMUNITY CARE LTD,SP0000364
WANDSWORTH COUNCIL,Revenue,ASC,SOCIAL SERVICES,VOL ASS,SUPPORTED HOUSING PROGRAMME,872742,130248030,11-Feb-16,"2,227.64",LIFEWAYS COMMUNITY CARE LTD,SP0000364
WANDSWORTH COUNCIL,Revenue,ASC,SOCIAL SERVICES,VOL ASS,SUPPORTED HOUSING PROGRAMME,872743,130248030,11-Feb-16,"2,411.84",LIFEWAYS COMMUNITY CARE LTD,SP0000364
WANDSWORTH COUNCIL,Revenue,ASC,SOCIAL SERVICES,VOL ASS,SUPPORTED HOUSING PROGRAMME,872744,130248030,11-Feb-16,"1,736.44",LIFEWAYS COMMUNITY CARE LTD,SP0000364
WANDSWORTH COUNCIL,Revenue,ASC,SOCIAL SERVICES,VOL ASS,SUPPORTED HOUSING PROGRAMME,872745,130248030,11-Feb-16,"1,920.64",LIFEWAYS COMMUNITY CARE LTD,SP0000364
WANDSWORTH COUNCIL,Revenue,ASC,SOCIAL SERVICES,VOL ASS,SUPPORTED HOUSING PROGRAMME,872746,130248030,11-Feb-16,"3,210.04",LIFEWAYS COMMUNITY CARE LTD,SP0000364
WANDSWORTH COUNCIL,Revenue,ASC,SOCIAL SERVICES,VOL ASS,SUPPORTED HOUSING PROGRAMME,872749,130248030,11-Feb-16,"2,394.20",LIFEWAYS COMMUNITY CARE LTD,SP0000364
WANDSWORTH COUNCIL,Revenue,ASC,SOCIAL SERVICES,VOL ASS,SUPPORTED HOUSING PROGRAMME,872750,130248030,11-Feb-16,"2,551.16",LIFEWAYS COMMUNITY CARE LTD,SP0000364
WANDSWORTH COUNCIL,Revenue,ASC,SOCIAL SERVICES,VOL ASS,SUPPORTED HOUSING PROGRAMME,872751,130248030,11-Feb-16,"3,335.96",LIFEWAYS COMMUNITY CARE LTD,SP0000364
WANDSWORTH COUNCIL,Revenue,ASC,SOCIAL SERVICES,VOL ASS,SUPPORTED HOUSING PROGRAMME,872752,130248030,11-Feb-16,"2,603.48",LIFEWAYS COMMUNITY CARE LTD,SP0000364
WANDSWORTH COUNCIL,Revenue,ASC,SOCIAL SERVICES,VOL ASS,SUPPORTED HOUSING PROGRAMME,872753,130248030,11-Feb-16,"2,969.72",LIFEWAYS COMMUNITY CARE LTD,SP0000364
WANDSWORTH COUNCIL,Revenue,ASC,SOCIAL SERVICES,VOL ASS,SUPPORTED HOUSING PROGRAMME,872754,130248030,11-Feb-16,"2,341.88",LIFEWAYS COMMUNITY CARE LTD,SP0000364
WANDSWORTH COUNCIL,Revenue,ASC,SOCIAL SERVICES,VOL ASS,SUPPORTED HOUSING PROGRAMME,872755,130248030,11-Feb-16,"2,551.16",LIFEWAYS COMMUNITY CARE LTD,SP0000364
WANDSWORTH COUNCIL,Revenue,ASC,SOCIAL SERVICES,VOL ASS,SUPPORTED HOUSING PROGRAMME,872756,130248030,11-Feb-16,"1,444.56",LIFEWAYS COMMUNITY CARE LTD,SP0000364
WANDSWORTH COUNCIL,Revenue,ASC,SOCIAL SERVICES,VOL ASS,SUPPORTED HOUSING PROGRAMME,872757,130248030,11-Feb-16,"2,025.24",LIFEWAYS COMMUNITY CARE LTD,SP0000364
WANDSWORTH COUNCIL,Revenue,ASC,SOCIAL SERVICES,VOL ASS,SUPPORTED HOUSING PROGRAMME,872758,130248030,11-Feb-16,"2,025.24",LIFEWAYS COMMUNITY CARE LTD,SP0000364
WANDSWORTH COUNCIL,Revenue,ASC,SOCIAL SERVICES,VOL ASS,SUPPORTED HOUSING PROGRAMME,872759,130248030,11-Feb-16,"2,025.24",LIFEWAYS COMMUNITY CARE LTD,SP0000364
WANDSWORTH COUNCIL,Revenue,ASC,SOCIAL SERVICES,VOL ASS,SUPPORTED HOUSING PROGRAMME,872760,130248030,11-Feb-16,"2,244.28",LIFEWAYS COMMUNITY CARE LTD,SP0000364
WANDSWORTH COUNCIL,Revenue,ASC,SOCIAL SERVICES,VOL ASS,SUPPORTED HOUSING PROGRAMME,872761,130248030,11-Feb-16,"2,518.08",LIFEWAYS COMMUNITY CARE LTD,SP0000364
WANDSWORTH COUNCIL,Revenue,ASC,SOCIAL SERVICES,VOL ASS,SUPPORTED HOUSING PROGRAMME,872762,130248030,11-Feb-16,"2,025.24",LIFEWAYS COMMUNITY CARE LTD,SP0000364
WANDSWORTH COUNCIL,Revenue,ASC,SOCIAL SERVICES,VOL ASS,SUPPORTED HOUSING PROGRAMME,872763,130248030,11-Feb-16,"2,244.28",LIFEWAYS COMMUNITY CARE LTD,SP0000364
WANDSWORTH COUNCIL,Revenue,ASC,SOCIAL SERVICES,VOL ASS,SUPPORTED HOUSING PROGRAMME,872764,130248030,11-Feb-16,"1,860.96",LIFEWAYS COMMUNITY CARE LTD,SP0000364
WANDSWORTH COUNCIL,Revenue,ASC,SOCIAL SERVICES,VOL ASS,SUPPORTED HOUSING PROGRAMME,872765,130248030,11-Feb-16,"2,345.32",LIFEWAYS COMMUNITY CARE LTD,SP0000364
WANDSWORTH COUNCIL,Revenue,ASC,SOCIAL SERVICES,VOL ASS,SUPPORTED HOUSING PROGRAMME,872766,130248030,11-Feb-16,"2,867.20",LIFEWAYS COMMUNITY CARE LTD,SP0000364
WANDSWORTH COUNCIL,Revenue,ASC,SOCIAL SERVICES,VOL ASS,SUPPORTED HOUSING PROGRAMME,875132,130248030,16-Feb-16,"7,336.00",LIFEWAYS COMMUNITY CARE LTD,SP0000364
WANDSWORTH COUNCIL,Revenue,ASC,SOCIAL SERVICES,VOL ASS,SUPPORTED HOUSING PROGRAMME,875133,130248030,16-Feb-16,"7,336.00",LIFEWAYS COMMUNITY CARE LTD,SP0000364
WANDSWORTH COUNCIL,Revenue,ASC,SOCIAL SERVICES,VOL ASS,SUPPORTED HOUSING PROGRAMME,879166,130248030,19-Feb-16,"7,972.24",CHOICE SUPPORT,SP0000398
WANDSWORTH COUNCIL,Revenue,ASC,SOCIAL SERVICES,VOL ASS,SUPPORTED HOUSING PROGRAMME,873843,130248030,12-Feb-16,"1,687.76",C M CARE LTD,SP0000455
WANDSWORTH COUNCIL,Revenue,ASC,SOCIAL SERVICES,VOL ASS,SUPPORTED HOUSING PROGRAMME,865802,130248030,04-Feb-16,"2,491.28",ROYAL MENCAP SOCIETY,SP0000842
WANDSWORTH COUNCIL,Revenue,ASC,SOCIAL SERVICES,VOL ASS,SUPPORTED HOUSING PROGRAMME,865803,130248030,04-Feb-16,"2,251.52",ROYAL MENCAP SOCIETY,SP0000842
WANDSWORTH COUNCIL,Revenue,ASC,SOCIAL SERVICES,VOL ASS,SUPPORTED HOUSING PROGRAMME,865805,130248030,04-Feb-16,"5,204.28",ROYAL MENCAP SOCIETY,SP0000842
WANDSWORTH COUNCIL,Revenue,ASC,SOCIAL SERVICES,VOL ASS,SUPPORTED HOUSING PROGRAMME,865807,130248030,04-Feb-16,"2,441.20",ROYAL MENCAP SOCIETY,SP0000842
WANDSWORTH COUNCIL,Revenue,ASC,SOCIAL SERVICES,VOL ASS,SUPPORTED HOUSING PROGRAMME,865808,130248030,04-Feb-16,"7,069.80",ROYAL MENCAP SOCIETY,SP0000842
WANDSWORTH COUNCIL,Revenue,ASC,SOCIAL SERVICES,VOL ASS,SUPPORTED HOUSING PROGRAMME,865809,130248030,04-Feb-16,"3,273.32",ROYAL MENCAP SOCIETY,SP0000842
WANDSWORTH COUNCIL,Revenue,ASC,SOCIAL SERVICES,VOL ASS,SUPPORTED HOUSING PROGRAMME,865810,130248030,04-Feb-16,"3,246.40",ROYAL MENCAP SOCIETY,SP0000842
WANDSWORTH COUNCIL,Revenue,ASC,SOCIAL SERVICES,VOL ASS,SUPPORTED HOUSING PROGRAMME,865811,130248030,04-Feb-16,897.32,ROYAL MENCAP SOCIETY,SP0000842
WANDSWORTH COUNCIL,Revenue,ASC,SOCIAL SERVICES,VOL ASS,SUPPORTED HOUSING PROGRAMME,865812,130248030,04-Feb-16,"1,748.04",ROYAL MENCAP SOCIETY,SP0000842
WANDSWORTH COUNCIL,Revenue,ASC,SOCIAL SERVICES,VOL ASS,SUPPORTED HOUSING PROGRAMME,872045,130248030,11-Feb-16,"7,069.80",ROYAL MENCAP SOCIETY,SP0000842
WANDSWORTH COUNCIL,Revenue,ASC,SOCIAL SERVICES,VOL ASS,SUPPORTED HOUSING PROGRAMME,872046,130248030,11-Feb-16,"2,491.28",ROYAL MENCAP SOCIETY,SP0000842
WANDSWORTH COUNCIL,Revenue,ASC,SOCIAL SERVICES,VOL ASS,SUPPORTED HOUSING PROGRAMME,872048,130248030,11-Feb-16,"2,441.20",ROYAL MENCAP SOCIETY,SP0000842
WANDSWORTH COUNCIL,Revenue,ASC,SOCIAL SERVICES,VOL ASS,SUPPORTED HOUSING PROGRAMME,872049,130248030,11-Feb-16,"3,273.32",ROYAL MENCAP SOCIETY,SP0000842
WANDSWORTH COUNCIL,Revenue,ASC,SOCIAL SERVICES,VOL ASS,SUPPORTED HOUSING PROGRAMME,872050,130248030,11-Feb-16,"2,251.52",ROYAL MENCAP SOCIETY,SP0000842
WANDSWORTH COUNCIL,Revenue,ASC,SOCIAL SERVICES,VOL ASS,SUPPORTED HOUSING PROGRAMME,872052,130248030,11-Feb-16,"5,204.28",ROYAL MENCAP SOCIETY,SP0000842
WANDSWORTH COUNCIL,Revenue,ASC,SOCIAL SERVICES,VOL ASS,SUPPORTED HOUSING PROGRAMME,872053,130248030,11-Feb-16,"1,748.04",ROYAL MENCAP SOCIETY,SP0000842
WANDSWORTH COUNCIL,Revenue,ASC,SOCIAL SERVICES,VOL ASS,SUPPORTED HOUSING PROGRAMME,872054,130248030,11-Feb-16,897.32,ROYAL MENCAP SOCIETY,SP0000842
WANDSWORTH COUNCIL,Revenue,ASC,SOCIAL SERVICES,VOL ASS,SUPPORTED HOUSING PROGRAMME,872055,130248030,11-Feb-16,"3,246.40",ROYAL MENCAP SOCIETY,SP0000842
WANDSWORTH COUNCIL,Revenue,ASC,SOCIAL SERVICES,VOL ASS,SUPPORTED HOUSING PROGRAMME,869645,130248030,09-Feb-16,"15,870.84",FRONTIER SUPPORT SERVICES LTD,SP0001132
WANDSWORTH COUNCIL,Revenue,ASC,SOCIAL SERVICES,VOL ASS,SUPPORTED HOUSING PROGRAMME,869647,130248030,09-Feb-16,"1,370.04",FRONTIER SUPPORT SERVICES LTD,SP0001132
WANDSWORTH COUNCIL,Revenue,ASC,SOCIAL SERVICES,VOL ASS,SUPPORTED HOUSING PROGRAMME,869648,130248030,09-Feb-16,"1,535.04",FRONTIER SUPPORT SERVICES LTD,SP0001132
WANDSWORTH COUNCIL,Revenue,ASC,SOCIAL SERVICES,VOL ASS,SUPPORTED HOUSING PROGRAMME,869649,130248030,09-Feb-16,"1,251.12",FRONTIER SUPPORT SERVICES LTD,SP0001132
WANDSWORTH COUNCIL,Revenue,ASC,SOCIAL SERVICES,VOL ASS,SUPPORTED HOUSING PROGRAMME,869650,130248030,09-Feb-16,"1,097.60",FRONTIER SUPPORT SERVICES LTD,SP0001132
WANDSWORTH COUNCIL,Revenue,ASC,SOCIAL SERVICES,VOL ASS,SUPPORTED HOUSING PROGRAMME,869651,130248030,09-Feb-16,"1,533.00",FRONTIER SUPPORT SERVICES LTD,SP0001132
WANDSWORTH COUNCIL,Revenue,ASC,SOCIAL SERVICES,VOL ASS,SUPPORTED HOUSING PROGRAMME,869652,130248030,09-Feb-16,"1,864.88",FRONTIER SUPPORT SERVICES LTD,SP0001132
WANDSWORTH COUNCIL,Revenue,ASC,SOCIAL SERVICES,VOL ASS,SUPPORTED HOUSING PROGRAMME,869653,130248030,09-Feb-16,"1,353.32",FRONTIER SUPPORT SERVICES LTD,SP0001132
WANDSWORTH COUNCIL,Revenue,ASC,SOCIAL SERVICES,VOL ASS,SUPPORTED HOUSING PROGRAMME,869654,130248030,09-Feb-16,"1,353.88",FRONTIER SUPPORT SERVICES LTD,SP0001132
WANDSWORTH COUNCIL,Revenue,ASC,SOCIAL SERVICES,VOL ASS,SUPPORTED HOUSING PROGRAMME,869657,130248030,09-Feb-16,"1,097.52",FRONTIER SUPPORT SERVICES LTD,SP0001132
WANDSWORTH COUNCIL,Revenue,ASC,SOCIAL SERVICES,VOL ASS,SUPPORTED HOUSING PROGRAMME,869658,130248030,09-Feb-16,"2,509.20",FRONTIER SUPPORT SERVICES LTD,SP0001132
WANDSWORTH COUNCIL,Revenue,ASC,SOCIAL SERVICES,VOL ASS,SUPPORTED HOUSING PROGRAMME,869659,130248030,09-Feb-16,"1,685.92",FRONTIER SUPPORT SERVICES LTD,SP0001132
WANDSWORTH COUNCIL,Revenue,ASC,SOCIAL SERVICES,VOL ASS,SUPPORTED HOUSING PROGRAMME,869661,130248030,09-Feb-16,657.80,FRONTIER SUPPORT SERVICES LTD,SP0001132
WANDSWORTH COUNCIL,Revenue,ASC,SOCIAL SERVICES,VOL ASS,SUPPORTED HOUSING PROGRAMME,869670,130248030,09-Feb-16,"9,036.32",PRECIOUS HOMES LTD,SP0001459
WANDSWORTH COUNCIL,Revenue,ASC,SOCIAL SERVICES,VOL ASS,SUPPORTED HOUSING PROGRAMME,869671,130248030,09-Feb-16,"2,869.71",PRECIOUS HOMES LTD,SP0001459
WANDSWORTH COUNCIL,Revenue,ASC,SOCIAL SERVICES,VOL ASS,SUPPORTED HOUSING PROGRAMME,872043,130248030,11-Feb-16,"5,614.28",INDEPENDENCE HOMES LTD,SP0004378
WANDSWORTH COUNCIL,Revenue,ASC,SOCIAL SERVICES,VOL ASS,SUPPORTED HOUSING PROGRAMME,872044,130248030,11-Feb-16,"5,362.48",INDEPENDENCE HOMES LTD,SP0004378
WANDSWORTH COUNCIL,Revenue,ASC,SOCIAL SERVICES,VOL ASS,SUPPORTED HOUSING PROGRAMME,869873,130248030,09-Feb-16,"1,551.32",THE BRANDON TRUST,SP0005337
WANDSWORTH COUNCIL,Revenue,ASC,SOCIAL SERVICES,VOL ASS,SUPPORTED HOUSING PROGRAMME,869874,130248030,09-Feb-16,"1,936.52",THE BRANDON TRUST,SP0005337
WANDSWORTH COUNCIL,Revenue,ASC,SOCIAL SERVICES,VOL ASS,SUPPORTED HOUSING PROGRAMME,869875,130248030,09-Feb-16,"7,764.16",THE BRANDON TRUST,SP0005337
WANDSWORTH COUNCIL,Revenue,ASC,SOCIAL SERVICES,VOL ASS,SUPPORTED HOUSING PROGRAMME,869876,130248030,09-Feb-16,"2,327.04",THE BRANDON TRUST,SP0005337
WANDSWORTH COUNCIL,Revenue,ASC,SOCIAL SERVICES,VOL ASS,SUPPORTED HOUSING PROGRAMME,869877,130248030,09-Feb-16,"5,629.64",THE BRANDON TRUST,SP0005337
WANDSWORTH COUNCIL,Revenue,ASC,SOCIAL SERVICES,VOL ASS,SUPPORTED HOUSING PROGRAMME,869878,130248030,09-Feb-16,"2,969.16",THE BRANDON TRUST,SP0005337
WANDSWORTH COUNCIL,Revenue,ASC,SOCIAL SERVICES,VOL ASS,SUPPORTED HOUSING PROGRAMME,869879,130248030,09-Feb-16,"2,979.92",THE BRANDON TRUST,SP0005337
WANDSWORTH COUNCIL,Revenue,ASC,SOCIAL SERVICES,VOL ASS,SUPPORTED HOUSING PROGRAMME,869880,130248030,09-Feb-16,"2,186.04",THE BRANDON TRUST,SP0005337
WANDSWORTH COUNCIL,Revenue,ASC,SOCIAL SERVICES,VOL ASS,SUPPORTED HOUSING PROGRAMME,869881,130248030,09-Feb-16,"2,160.00",THE BRANDON TRUST,SP0005337
WANDSWORTH COUNCIL,Revenue,ASC,SOCIAL SERVICES,VOL ASS,SUPPORTED HOUSING PROGRAMME,869882,130248030,09-Feb-16,"1,125.08",THE BRANDON TRUST,SP0005337
WANDSWORTH COUNCIL,Revenue,ASC,SOCIAL SERVICES,VOL ASS,SUPPORTED HOUSING PROGRAMME,869883,130248030,09-Feb-16,"1,155.88",THE BRANDON TRUST,SP0005337
WANDSWORTH COUNCIL,Revenue,ASC,SOCIAL SERVICES,VOL ASS,SUPPORTED HOUSING PROGRAMME,869884,130248030,09-Feb-16,"1,854.72",THE BRANDON TRUST,SP0005337
WANDSWORTH COUNCIL,Revenue,ASC,SOCIAL SERVICES,VOL ASS,SUPPORTED HOUSING PROGRAMME,869885,130248030,09-Feb-16,"1,380.64",THE BRANDON TRUST,SP0005337
WANDSWORTH COUNCIL,Revenue,ASC,SOCIAL SERVICES,VOL ASS,SUPPORTED HOUSING PROGRAMME,869886,130248030,09-Feb-16,"1,466.16",THE BRANDON TRUST,SP0005337
WANDSWORTH COUNCIL,Revenue,ASC,SOCIAL SERVICES,VOL ASS,SUPPORTED HOUSING PROGRAMME,869887,130248030,09-Feb-16,"1,513.68",THE BRANDON TRUST,SP0005337
WANDSWORTH COUNCIL,Revenue,ASC,SOCIAL SERVICES,VOL ASS,SUPPORTED HOUSING PROGRAMME,869888,130248030,09-Feb-16,"1,513.68",THE BRANDON TRUST,SP0005337
WANDSWORTH COUNCIL,Revenue,ASC,SOCIAL SERVICES,VOL ASS,SUPPORTED HOUSING PROGRAMME,869889,130248030,09-Feb-16,"2,856.96",THE BRANDON TRUST,SP0005337
WANDSWORTH COUNCIL,Revenue,ASC,SOCIAL SERVICES,VOL ASS,SUPPORTED HOUSING PROGRAMME,869890,130248030,09-Feb-16,"2,260.80",THE BRANDON TRUST,SP0005337
WANDSWORTH COUNCIL,Revenue,ASC,SOCIAL SERVICES,VOL ASS,SUPPORTED HOUSING PROGRAMME,869891,130248030,09-Feb-16,"3,453.12",THE BRANDON TRUST,SP0005337
WANDSWORTH COUNCIL,Revenue,ASC,SOCIAL SERVICES,VOL ASS,SUPPORTED HOUSING PROGRAMME,869892,130248030,09-Feb-16,"2,804.72",THE BRANDON TRUST,SP0005337
WANDSWORTH COUNCIL,Revenue,ASC,SOCIAL SERVICES,VOL ASS,SUPPORTED HOUSING PROGRAMME,869894,130248030,09-Feb-16,"1,886.40",THE BRANDON TRUST,SP0005337
WANDSWORTH COUNCIL,Revenue,ASC,SOCIAL SERVICES,VOL ASS,SUPPORTED HOUSING PROGRAMME,869895,130248030,09-Feb-16,"1,797.12",THE BRANDON TRUST,SP0005337
WANDSWORTH COUNCIL,Revenue,ASC,SOCIAL SERVICES,VOL ASS,SUPPORTED HOUSING PROGRAMME,869896,130248030,09-Feb-16,"2,062.08",THE BRANDON TRUST,SP0005337
WANDSWORTH COUNCIL,Revenue,ASC,SOCIAL SERVICES,VOL ASS,SUPPORTED HOUSING PROGRAMME,869897,130248030,09-Feb-16,"3,520.16",THE BRANDON TRUST,SP0005337
WANDSWORTH COUNCIL,Revenue,ASC,SOCIAL SERVICES,VOL ASS,SUPPORTED HOUSING PROGRAMME,869898,130248030,09-Feb-16,"2,580.17",THE BRANDON TRUST,SP0005337
WANDSWORTH COUNCIL,Revenue,ASC,SOCIAL SERVICES,VOL ASS,SUPPORTED HOUSING PROGRAMME,869899,130248030,09-Feb-16,"3,453.12",THE BRANDON TRUST,SP0005337
WANDSWORTH COUNCIL,Revenue,ASC,SOCIAL SERVICES,VOL ASS,SUPPORTED HOUSING PROGRAMME,869900,130248030,09-Feb-16,"2,923.88",THE BRANDON TRUST,SP0005337
WANDSWORTH COUNCIL,Revenue,ASC,SOCIAL SERVICES,VOL ASS,SUPPORTED HOUSING PROGRAMME,869901,130248030,09-Feb-16,"4,688.56",THE BRANDON TRUST,SP0005337
WANDSWORTH COUNCIL,Revenue,ASC,SOCIAL SERVICES,VOL ASS,SUPPORTED HOUSING PROGRAMME,869902,130248030,09-Feb-16,"3,320.64",THE BRANDON TRUST,SP0005337
WANDSWORTH COUNCIL,Revenue,ASC,SOCIAL SERVICES,VOL ASS,SUPPORTED HOUSING PROGRAMME,869903,130248030,09-Feb-16,"3,702.20",THE BRANDON TRUST,SP0005337
WANDSWORTH COUNCIL,Revenue,ASC,SOCIAL SERVICES,VOL ASS,SUPPORTED HOUSING PROGRAMME,869904,130248030,09-Feb-16,"3,718.08",THE BRANDON TRUST,SP0005337
WANDSWORTH COUNCIL,Revenue,ASC,SOCIAL SERVICES,VOL ASS,SUPPORTED HOUSING PROGRAMME,869905,130248030,09-Feb-16,"3,121.92",THE BRANDON TRUST,SP0005337
WANDSWORTH COUNCIL,Revenue,ASC,SOCIAL SERVICES,VOL ASS,SUPPORTED HOUSING PROGRAMME,869906,130248030,09-Feb-16,"5,688.08",THE BRANDON TRUST,SP0005337
WANDSWORTH COUNCIL,Revenue,ASC,SOCIAL SERVICES,VOL ASS,SUPPORTED HOUSING PROGRAMME,869907,130248030,09-Feb-16,"5,983.44",THE BRANDON TRUST,SP0005337
WANDSWORTH COUNCIL,Revenue,ASC,SOCIAL SERVICES,VOL ASS,SUPPORTED HOUSING PROGRAMME,869908,130248030,09-Feb-16,"4,827.60",THE BRANDON TRUST,SP0005337
WANDSWORTH COUNCIL,Revenue,ASC,SOCIAL SERVICES,VOL ASS,SUPPORTED HOUSING PROGRAMME,869909,130248030,09-Feb-16,"6,344.92",THE BRANDON TRUST,SP0005337
WANDSWORTH COUNCIL,Revenue,ASC,SOCIAL SERVICES,VOL ASS,SUPPORTED HOUSING PROGRAMME,869910,130248030,09-Feb-16,"3,324.96",THE BRANDON TRUST,SP0005337
WANDSWORTH COUNCIL,Revenue,ASC,SOCIAL SERVICES,VOL ASS,SUPPORTED HOUSING PROGRAMME,869911,130248030,09-Feb-16,"2,886.04",THE BRANDON TRUST,SP0005337
WANDSWORTH COUNCIL,Revenue,ASC,SOCIAL SERVICES,VOL ASS,SUPPORTED HOUSING PROGRAMME,869912,130248030,09-Feb-16,"2,856.96",THE BRANDON TRUST,SP0005337
WANDSWORTH COUNCIL,Revenue,ASC,SOCIAL SERVICES,VOL ASS,SUPPORTED HOUSING PROGRAMME,869913,130248030,09-Feb-16,"2,128.32",THE BRANDON TRUST,SP0005337
WANDSWORTH COUNCIL,Revenue,ASC,SOCIAL SERVICES,VOL ASS,SUPPORTED HOUSING PROGRAMME,869914,130248030,09-Feb-16,"6,198.76",THE BRANDON TRUST,SP0005337
WANDSWORTH COUNCIL,Revenue,ASC,SOCIAL SERVICES,VOL ASS,SUPPORTED HOUSING PROGRAMME,869915,130248030,09-Feb-16,"1,465.92",THE BRANDON TRUST,SP0005337
WANDSWORTH COUNCIL,Revenue,ASC,SOCIAL SERVICES,VOL ASS,SUPPORTED HOUSING PROGRAMME,869916,130248030,09-Feb-16,"1,548.72",THE BRANDON TRUST,SP0005337
WANDSWORTH COUNCIL,Revenue,ASC,SOCIAL SERVICES,VOL ASS,SUPPORTED HOUSING PROGRAMME,869917,130248030,09-Feb-16,"2,592.60",THE BRANDON TRUST,SP0005337
WANDSWORTH COUNCIL,Revenue,ASC,SOCIAL SERVICES,VOL ASS,SUPPORTED HOUSING PROGRAMME,869918,130248030,09-Feb-16,"2,724.48",THE BRANDON TRUST,SP0005337
WANDSWORTH COUNCIL,Revenue,ASC,SOCIAL SERVICES,VOL ASS,SUPPORTED HOUSING PROGRAMME,869919,130248030,09-Feb-16,"3,564.56",THE BRANDON TRUST,SP0005337
WANDSWORTH COUNCIL,Revenue,ASC,SOCIAL SERVICES,VOL ASS,SUPPORTED HOUSING PROGRAMME,869920,130248030,09-Feb-16,"3,416.80",THE BRANDON TRUST,SP0005337
WANDSWORTH COUNCIL,Revenue,ASC,SOCIAL SERVICES,VOL ASS,SUPPORTED HOUSING PROGRAMME,869921,130248030,09-Feb-16,"2,848.72",THE BRANDON TRUST,SP0005337
WANDSWORTH COUNCIL,Revenue,ASC,SOCIAL SERVICES,VOL ASS,SUPPORTED HOUSING PROGRAMME,869922,130248030,09-Feb-16,"2,327.24",THE BRANDON TRUST,SP0005337
WANDSWORTH COUNCIL,Revenue,ASC,SOCIAL SERVICES,VOL ASS,SUPPORTED HOUSING PROGRAMME,869923,130248030,09-Feb-16,"2,327.24",THE BRANDON TRUST,SP0005337
WANDSWORTH COUNCIL,Revenue,ASC,SOCIAL SERVICES,VOL ASS,SUPPORTED HOUSING PROGRAMME,869924,130248030,09-Feb-16,"2,065.12",THE BRANDON TRUST,SP0005337
WANDSWORTH COUNCIL,Revenue,ASC,SOCIAL SERVICES,VOL ASS,SUPPORTED HOUSING PROGRAMME,869941,130248030,09-Feb-16,591.04,THE BRANDON TRUST,SP0005337
WANDSWORTH COUNCIL,Revenue,ASC,SOCIAL SERVICES,VOL ASS,SUPPORTED HOUSING PROGRAMME,869944,130248030,09-Feb-16,"1,034.48",THE BRANDON TRUST,SP0005337
WANDSWORTH COUNCIL,Revenue,ASC,SOCIAL SERVICES,VOL ASS,SUPPORTED HOUSING PROGRAMME,869961,130248030,09-Feb-16,"1,625.36",THE BRANDON TRUST,SP0005337
WANDSWORTH COUNCIL,Revenue,ASC,SOCIAL SERVICES,VOL ASS,SUPPORTED HOUSING PROGRAMME,869962,130248030,09-Feb-16,"1,674.84",THE BRANDON TRUST,SP0005337
WANDSWORTH COUNCIL,Revenue,ASC,SOCIAL SERVICES,VOL ASS,SUPPORTED HOUSING PROGRAMME,869963,130248030,09-Feb-16,"5,630.08",THE BRANDON TRUST,SP0005337
WANDSWORTH COUNCIL,Revenue,ASC,SOCIAL SERVICES,VOL ASS,SUPPORTED HOUSING PROGRAMME,869966,130248030,09-Feb-16,"2,459.52",THE BRANDON TRUST,SP0005337
WANDSWORTH COUNCIL,Revenue,ASC,SOCIAL SERVICES,VOL ASS,SUPPORTED HOUSING PROGRAMME,869967,130248030,09-Feb-16,"3,883.68",THE BRANDON TRUST,SP0005337
WANDSWORTH COUNCIL,Revenue,ASC,SOCIAL SERVICES,VOL ASS,SUPPORTED HOUSING PROGRAMME,869968,130248030,09-Feb-16,"2,618.48",THE BRANDON TRUST,SP0005337
WANDSWORTH COUNCIL,Revenue,ASC,SOCIAL SERVICES,VOL ASS,SUPPORTED HOUSING PROGRAMME,869969,130248030,09-Feb-16,"1,730.88",THE BRANDON TRUST,SP0005337
WANDSWORTH COUNCIL,Revenue,ASC,SOCIAL SERVICES,VOL ASS,SUPPORTED HOUSING PROGRAMME,869977,130248030,09-Feb-16,"1,465.92",THE BRANDON TRUST,SP0005337
WANDSWORTH COUNCIL,Revenue,ASC,SOCIAL SERVICES,VOL ASS,SUPPORTED HOUSING PROGRAMME,869978,130248030,09-Feb-16,"2,606.80",THE BRANDON TRUST,SP0005337
WANDSWORTH COUNCIL,Revenue,ASC,SOCIAL SERVICES,VOL ASS,SUPPORTED HOUSING PROGRAMME,869980,130248030,09-Feb-16,"2,631.48",THE BRANDON TRUST,SP0005337
WANDSWORTH COUNCIL,Revenue,ASC,SOCIAL SERVICES,VOL ASS,SUPPORTED HOUSING PROGRAMME,869983,130248030,09-Feb-16,"4,177.52",THE BRANDON TRUST,SP0005337
WANDSWORTH COUNCIL,Revenue,ASC,SOCIAL SERVICES,VOL ASS,SUPPORTED HOUSING PROGRAMME,873861,130248030,12-Feb-16,"6,120.00",RELIABLE PERSONNEL LTD,SP0005657
WANDSWORTH COUNCIL,Revenue,ASC,SOCIAL SERVICES,VOL ASS,SUPPORTED HOUSING PROGRAMME,865795,130248030,04-Feb-16,570.76,MCCALLUM CARE LTD CAREMARK (WANDSWORTH),SP0006036
WANDSWORTH COUNCIL,Revenue,ASC,SOCIAL SERVICES,VOL ASS,SUPPORTED HOUSING PROGRAMME,883889,130248030,25-Feb-16,562.74,MCCALLUM CARE LTD CAREMARK (WANDSWORTH),SP0006036
WANDSWORTH COUNCIL,Revenue,ASC,SOCIAL SERVICES,VOL ASS,SUPPORTED HOUSING PROGRAMME,885744,130248030,29-Feb-16,550.76,MCCALLUM CARE LTD CAREMARK (WANDSWORTH),SP0006036
WANDSWORTH COUNCIL,Revenue,ASC,SOCIAL SERVICES,VOL ASS,SUPPORTED HOUSING PROGRAMME,885753,130248030,29-Feb-16,"4,400.00",MORTON GARDENS,SP0008639
WANDSWORTH COUNCIL,Revenue,ASC,SOCIAL SERVICES,VOL ASS,SUPPORTED HOUSING PROGRAMME,885754,130248030,29-Feb-16,"3,000.00",LIVE TOO LIMITED,SP0010112
WANDSWORTH COUNCIL,Revenue,ASC,SOCIAL SERVICES,VOL ASS,SUPPORTED HOUSING PROGRAMME,885755,130248030,29-Feb-16,"1,530.59",LIVE TOO LIMITED,SP0010112
WANDSWORTH COUNCIL,Revenue,ASC,SOCIAL SERVICES,VOL ASS,SUPPORTED HOUSING PROGRAMME,865790,130248030,04-Feb-16,"7,822.08",CURANS CARE LTD,SP0010190
WANDSWORTH COUNCIL,Revenue,ASC,SOCIAL SERVICES,VOL ASS,SUPPORTED HOUSING PROGRAMME,885743,130248030,29-Feb-16,"3,940.00",STEP 4 YOU,SP0010196
WANDSWORTH COUNCIL,Revenue,ASC,SOCIAL SERVICES,VOL ASS,SUPPORTED HOUSING PROGRAMME,871077,130248030,10-Feb-16,792.18,MS J DAVIES-BENNETTS T/A HANDSON HORSES,SP0010539
WANDSWORTH COUNCIL,Revenue,ASC,SOCIAL SERVICES,DIRECT,DIRECT PAYMENTS,881006,130250380,22-Feb-16,838.12,VIBRANCE,SP0005489
WANDSWORTH COUNCIL,Revenue,ASC,SOCIAL SERVICES,DIRECT,DIRECT PAYMENTS,881015,130250380,22-Feb-16,760.24,VIBRANCE,SP0005489
WANDSWORTH COUNCIL,Revenue,ASC,SOCIAL SERVICES,DIRECT,DIRECT PAYMENTS,881020,130250380,22-Feb-16,"1,065.52",VIBRANCE,SP0005489
WANDSWORTH COUNCIL,Revenue,ASC,SOCIAL SERVICES,DIRECT,DIRECT PAYMENTS,869187,130250380,09-Feb-16,"5,466.27",I DECIDE LTD (DIRECT PAYMENT),SP0006159
WANDSWORTH COUNCIL,Revenue,ASC,SOCIAL SERVICES,DIRECT,DIRECT PAYMENTS,869188,130250380,09-Feb-16,"2,247.00",I DECIDE LTD (DIRECT PAYMENT),SP0006159
WANDSWORTH COUNCIL,Revenue,ASC,SOCIAL SERVICES,DIRECT,DIRECT PAYMENTS,880705,130250380,22-Feb-16,"3,176.28",I DECIDE LTD (DIRECT PAYMENT),SP0006159
WANDSWORTH COUNCIL,Revenue,ASC,SOCIAL SERVICES,DIRECT,DIRECT PAYMENTS,880709,130250380,22-Feb-16,"1,884.96",I DECIDE LTD (DIRECT PAYMENT),SP0006159
WANDSWORTH COUNCIL,Revenue,ASC,SOCIAL SERVICES,DIRECT,DIRECT PAYMENTS,880714,130250380,22-Feb-16,"1,018.48",I DECIDE LTD (DIRECT PAYMENT),SP0006159
WANDSWORTH COUNCIL,Revenue,ASC,SOCIAL SERVICES,DIRECT,DIRECT PAYMENTS,880719,130250380,22-Feb-16,741.20,I DECIDE LTD (DIRECT PAYMENT),SP0006159
WANDSWORTH COUNCIL,Revenue,ASC,SOCIAL SERVICES,DIRECT,DIRECT PAYMENTS,880720,130250380,22-Feb-16,"3,156.28",I DECIDE LTD (DIRECT PAYMENT),SP0006159
WANDSWORTH COUNCIL,Revenue,ASC,SOCIAL SERVICES,DIRECT,DIRECT PAYMENTS,880746,130250380,22-Feb-16,717.32,I DECIDE LTD (DIRECT PAYMENT),SP0006159
WANDSWORTH COUNCIL,Revenue,ASC,SOCIAL SERVICES,DIRECT,DIRECT PAYMENTS,880748,130250380,22-Feb-16,"2,247.00",I DECIDE LTD (DIRECT PAYMENT),SP0006159
WANDSWORTH COUNCIL,Revenue,ASC,SOCIAL SERVICES,DIRECT,DIRECT PAYMENTS,880756,130250380,22-Feb-16,"31,306.50",I DECIDE LTD (DIRECT PAYMENT),SP0006159
WANDSWORTH COUNCIL,Revenue,ASC,SOCIAL SERVICES,DIRECT,DIRECT PAYMENTS,880649,130250380,22-Feb-16,"2,218.20",EPAYROLLUK LTD,SP0009092
WANDSWORTH COUNCIL,Revenue,ASC,SOCIAL SERVICES,CUSTOMER & CLIENT RECPTS - EXT,CL CONT EXT RESIDEN S28A 100%,869678,130280680,09-Feb-16,(505.20),ELEANOR NURSING & SOCIAL CARE,SP0000110
WANDSWORTH COUNCIL,Revenue,ASC,SOCIAL SERVICES,CUSTOMER & CLIENT RECPTS - EXT,CL CONT EXT RESIDEN S28A 100%,876964,130280680,17-Feb-16,(559.33),ST MARYS RESIDENTIAL HOME,SP0000215
WANDSWORTH COUNCIL,Revenue,ASC,SOCIAL SERVICES,CUSTOMER & CLIENT RECPTS - EXT,CL CONT EXTERNAL RESIDENT S28A,877842,130280710,18-Feb-16,(523.24),ST MARYS RESIDENTIAL HOME,SP0000215
WANDSWORTH COUNCIL,Revenue,ASC,SOCIAL SERVICES,CUSTOMER & CLIENT RECPTS - EXT,CL CONT EXTERNAL RESIDENT S28A,884209,130280710,25-Feb-16,(321.80),SURREY & BORDERS PARTNERSHIP NHS TRUST,SP0000501
WANDSWORTH COUNCIL,Revenue,ASC,SOCIAL SERVICES,CUSTOMER & CLIENT RECPTS - EXT,CL CONT EXTERNAL RESIDENT S28A,881448,130280710,23-Feb-16,(333.29),PARKGATE MANOR,SP0000521
WANDSWORTH COUNCIL,Revenue,ASC,SOCIAL SERVICES,CUSTOMER & CLIENT RECPTS - EXT,CL CONT EXTERNAL RESIDENT S28A,881520,130280710,23-Feb-16,(523.24),THE COMMUNITY CARE COMPANY UK LTD,SP0000576
WANDSWORTH COUNCIL,Revenue,ASC,SOCIAL SERVICES,CUSTOMER & CLIENT RECPTS - EXT,CL CONT EXTERNAL RESIDENT S28A,867366,130280710,08-Feb-16,(510.64),METROPOLITAN HOUSING TRUST,SP0000626
WANDSWORTH COUNCIL,Revenue,ASC,SOCIAL SERVICES,CUSTOMER & CLIENT RECPTS - EXT,CL CONT EXTERNAL RESIDENT S28A,867376,130280710,08-Feb-16,(321.80),METROPOLITAN HOUSING TRUST,SP0000626
WANDSWORTH COUNCIL,Revenue,ASC,SOCIAL SERVICES,CUSTOMER & CLIENT RECPTS - EXT,CL CONT EXTERNAL RESIDENT S28A,866430,130280710,05-Feb-16,(505.20),ASHTON CARE,SP0000695
WANDSWORTH COUNCIL,Revenue,ASC,SOCIAL SERVICES,CUSTOMER & CLIENT RECPTS - EXT,CL CONT EXTERNAL RESIDENT S28A,883225,130280710,24-Feb-16,(505.20),ASHTON CARE,SP0000695
WANDSWORTH COUNCIL,Revenue,ASC,SOCIAL SERVICES,CUSTOMER & CLIENT RECPTS - EXT,CL CONT EXTERNAL RESIDENTIAL,865628,130280720,04-Feb-16,(400.60),CMG HOMES LTD,SP0000075
WANDSWORTH COUNCIL,Revenue,ASC,SOCIAL SERVICES,CUSTOMER & CLIENT RECPTS - EXT,CL CONT EXTERNAL RESIDENTIAL,865630,130280720,04-Feb-16,(343.80),CMG HOMES LTD,SP0000075
WANDSWORTH COUNCIL,Revenue,ASC,SOCIAL SERVICES,CUSTOMER & CLIENT RECPTS - EXT,CL CONT EXTERNAL RESIDENTIAL,865632,130280720,04-Feb-16,(400.60),CMG HOMES LTD,SP0000075
WANDSWORTH COUNCIL,Revenue,ASC,SOCIAL SERVICES,CUSTOMER & CLIENT RECPTS - EXT,CL CONT EXTERNAL RESIDENTIAL,865633,130280720,04-Feb-16,(132.00),CMG HOMES LTD,SP0000075
WANDSWORTH COUNCIL,Revenue,ASC,SOCIAL SERVICES,CUSTOMER & CLIENT RECPTS - EXT,CL CONT EXTERNAL RESIDENTIAL,865634,130280720,04-Feb-16,(400.60),CMG HOMES LTD,SP0000075
WANDSWORTH COUNCIL,Revenue,ASC,SOCIAL SERVICES,CUSTOMER & CLIENT RECPTS - EXT,CL CONT EXTERNAL RESIDENTIAL,865635,130280720,04-Feb-16,(321.80),CMG HOMES LTD,SP0000075
WANDSWORTH COUNCIL,Revenue,ASC,SOCIAL SERVICES,CUSTOMER & CLIENT RECPTS - EXT,CL CONT EXTERNAL RESIDENTIAL,865636,130280720,04-Feb-16,(505.20),CMG HOMES LTD,SP0000075
WANDSWORTH COUNCIL,Revenue,ASC,SOCIAL SERVICES,CUSTOMER & CLIENT RECPTS - EXT,CL CONT EXTERNAL RESIDENTIAL,865637,130280720,04-Feb-16,(348.60),CMG HOMES LTD,SP0000075
WANDSWORTH COUNCIL,Revenue,ASC,SOCIAL SERVICES,CUSTOMER & CLIENT RECPTS - EXT,CL CONT EXTERNAL RESIDENTIAL,865638,130280720,04-Feb-16,(321.80),CMG HOMES LTD,SP0000075
WANDSWORTH COUNCIL,Revenue,ASC,SOCIAL SERVICES,CUSTOMER & CLIENT RECPTS - EXT,CL CONT EXTERNAL RESIDENTIAL,883227,130280720,24-Feb-16,(361.05),NATIONAL SOCIETY FOR EPILEPSY,SP0000120
WANDSWORTH COUNCIL,Revenue,ASC,SOCIAL SERVICES,CUSTOMER & CLIENT RECPTS - EXT,CL CONT EXTERNAL RESIDENTIAL,884771,130280720,26-Feb-16,(321.80),SANCTUARY CARE LTD,SP0000121
WANDSWORTH COUNCIL,Revenue,ASC,SOCIAL SERVICES,CUSTOMER & CLIENT RECPTS - EXT,CL CONT EXTERNAL RESIDENTIAL,881537,130280720,23-Feb-16,(349.66),FRANCES TAYLOR FOUNDATION,SP0000142
WANDSWORTH COUNCIL,Revenue,ASC,SOCIAL SERVICES,CUSTOMER & CLIENT RECPTS - EXT,CL CONT EXTERNAL RESIDENTIAL,881538,130280720,23-Feb-16,(333.29),FRANCES TAYLOR FOUNDATION,SP0000142
WANDSWORTH COUNCIL,Revenue,ASC,SOCIAL SERVICES,CUSTOMER & CLIENT RECPTS - EXT,CL CONT EXTERNAL RESIDENTIAL,881539,130280720,23-Feb-16,(414.91),FRANCES TAYLOR FOUNDATION,SP0000142
WANDSWORTH COUNCIL,Revenue,ASC,SOCIAL SERVICES,CUSTOMER & CLIENT RECPTS - EXT,CL CONT EXTERNAL RESIDENTIAL,884214,130280720,25-Feb-16,(321.80),RESIDENTIAL CARE SERVICES T/A FRANKLYN L,SP0000147
WANDSWORTH COUNCIL,Revenue,ASC,SOCIAL SERVICES,CUSTOMER & CLIENT RECPTS - EXT,CL CONT EXTERNAL RESIDENTIAL,883251,130280720,24-Feb-16,(80.45),TANGLEWOOD CARE HOME,SP0000167
WANDSWORTH COUNCIL,Revenue,ASC,SOCIAL SERVICES,CUSTOMER & CLIENT RECPTS - EXT,CL CONT EXTERNAL RESIDENTIAL,866433,130280720,05-Feb-16,(192.00),TRELOAR SCHOOL,SP0000200
WANDSWORTH COUNCIL,Revenue,ASC,SOCIAL SERVICES,CUSTOMER & CLIENT RECPTS - EXT,CL CONT EXTERNAL RESIDENTIAL,876956,130280720,17-Feb-16,(269.70),ST MARYS RESIDENTIAL HOME,SP0000215
WANDSWORTH COUNCIL,Revenue,ASC,SOCIAL SERVICES,CUSTOMER & CLIENT RECPTS - EXT,CL CONT EXTERNAL RESIDENTIAL,876957,130280720,17-Feb-16,(356.28),ST MARYS RESIDENTIAL HOME,SP0000215
WANDSWORTH COUNCIL,Revenue,ASC,SOCIAL SERVICES,CUSTOMER & CLIENT RECPTS - EXT,CL CONT EXTERNAL RESIDENTIAL,876958,130280720,17-Feb-16,(559.33),ST MARYS RESIDENTIAL HOME,SP0000215
WANDSWORTH COUNCIL,Revenue,ASC,SOCIAL SERVICES,CUSTOMER & CLIENT RECPTS - EXT,CL CONT EXTERNAL RESIDENTIAL,876959,130280720,17-Feb-16,(373.77),ST MARYS RESIDENTIAL HOME,SP0000215
WANDSWORTH COUNCIL,Revenue,ASC,SOCIAL SERVICES,CUSTOMER & CLIENT RECPTS - EXT,CL CONT EXTERNAL RESIDENTIAL,876960,130280720,17-Feb-16,(356.28),ST MARYS RESIDENTIAL HOME,SP0000215
WANDSWORTH COUNCIL,Revenue,ASC,SOCIAL SERVICES,CUSTOMER & CLIENT RECPTS - EXT,CL CONT EXTERNAL RESIDENTIAL,876961,130280720,17-Feb-16,(356.28),ST MARYS RESIDENTIAL HOME,SP0000215
WANDSWORTH COUNCIL,Revenue,ASC,SOCIAL SERVICES,CUSTOMER & CLIENT RECPTS - EXT,CL CONT EXTERNAL RESIDENTIAL,876962,130280720,17-Feb-16,(559.33),ST MARYS RESIDENTIAL HOME,SP0000215
WANDSWORTH COUNCIL,Revenue,ASC,SOCIAL SERVICES,CUSTOMER & CLIENT RECPTS - EXT,CL CONT EXTERNAL RESIDENTIAL,876965,130280720,17-Feb-16,(585.90),ST MARYS RESIDENTIAL HOME,SP0000215
WANDSWORTH COUNCIL,Revenue,ASC,SOCIAL SERVICES,CUSTOMER & CLIENT RECPTS - EXT,CL CONT EXTERNAL RESIDENTIAL,876966,130280720,17-Feb-16,"(1,300.41)",ST MARYS RESIDENTIAL HOME,SP0000215
WANDSWORTH COUNCIL,Revenue,ASC,SOCIAL SERVICES,CUSTOMER & CLIENT RECPTS - EXT,CL CONT EXTERNAL RESIDENTIAL,876967,130280720,17-Feb-16,(321.80),ST MARYS RESIDENTIAL HOME,SP0000215
WANDSWORTH COUNCIL,Revenue,ASC,SOCIAL SERVICES,CUSTOMER & CLIENT RECPTS - EXT,CL CONT EXTERNAL RESIDENTIAL,877832,130280720,18-Feb-16,(252.30),ST MARYS RESIDENTIAL HOME,SP0000215
WANDSWORTH COUNCIL,Revenue,ASC,SOCIAL SERVICES,CUSTOMER & CLIENT RECPTS - EXT,CL CONT EXTERNAL RESIDENTIAL,877833,130280720,18-Feb-16,(333.29),ST MARYS RESIDENTIAL HOME,SP0000215
WANDSWORTH COUNCIL,Revenue,ASC,SOCIAL SERVICES,CUSTOMER & CLIENT RECPTS - EXT,CL CONT EXTERNAL RESIDENTIAL,877834,130280720,18-Feb-16,(523.24),ST MARYS RESIDENTIAL HOME,SP0000215
WANDSWORTH COUNCIL,Revenue,ASC,SOCIAL SERVICES,CUSTOMER & CLIENT RECPTS - EXT,CL CONT EXTERNAL RESIDENTIAL,877835,130280720,18-Feb-16,(349.66),ST MARYS RESIDENTIAL HOME,SP0000215
WANDSWORTH COUNCIL,Revenue,ASC,SOCIAL SERVICES,CUSTOMER & CLIENT RECPTS - EXT,CL CONT EXTERNAL RESIDENTIAL,877836,130280720,18-Feb-16,(333.29),ST MARYS RESIDENTIAL HOME,SP0000215
WANDSWORTH COUNCIL,Revenue,ASC,SOCIAL SERVICES,CUSTOMER & CLIENT RECPTS - EXT,CL CONT EXTERNAL RESIDENTIAL,877837,130280720,18-Feb-16,(548.10),ST MARYS RESIDENTIAL HOME,SP0000215
WANDSWORTH COUNCIL,Revenue,ASC,SOCIAL SERVICES,CUSTOMER & CLIENT RECPTS - EXT,CL CONT EXTERNAL RESIDENTIAL,877838,130280720,18-Feb-16,(333.29),ST MARYS RESIDENTIAL HOME,SP0000215
WANDSWORTH COUNCIL,Revenue,ASC,SOCIAL SERVICES,CUSTOMER & CLIENT RECPTS - EXT,CL CONT EXTERNAL RESIDENTIAL,877839,130280720,18-Feb-16,(541.28),ST MARYS RESIDENTIAL HOME,SP0000215
WANDSWORTH COUNCIL,Revenue,ASC,SOCIAL SERVICES,CUSTOMER & CLIENT RECPTS - EXT,CL CONT EXTERNAL RESIDENTIAL,873563,130280720,12-Feb-16,(400.60),NAS SERVICES LIMITED,SP0000217
WANDSWORTH COUNCIL,Revenue,ASC,SOCIAL SERVICES,CUSTOMER & CLIENT RECPTS - EXT,CL CONT EXTERNAL RESIDENTIAL,870998,130280720,10-Feb-16,(638.48),CAMERON LODGE LIMITED,SP0000271
WANDSWORTH COUNCIL,Revenue,ASC,SOCIAL SERVICES,CUSTOMER & CLIENT RECPTS - EXT,CL CONT EXTERNAL RESIDENTIAL,881460,130280720,23-Feb-16,(379.49),BROOKDALE CARE,SP0000282
WANDSWORTH COUNCIL,Revenue,ASC,SOCIAL SERVICES,CUSTOMER & CLIENT RECPTS - EXT,CL CONT EXTERNAL RESIDENTIAL,874963,130280720,16-Feb-16,(321.80),CRAEGMOOR FACILITIES CO LTD,SP0000306
WANDSWORTH COUNCIL,Revenue,ASC,SOCIAL SERVICES,CUSTOMER & CLIENT RECPTS - EXT,CL CONT EXTERNAL RESIDENTIAL,883230,130280720,24-Feb-16,(321.80),DOLPHIN HOMES LTD,SP0000331
WANDSWORTH COUNCIL,Revenue,ASC,SOCIAL SERVICES,CUSTOMER & CLIENT RECPTS - EXT,CL CONT EXTERNAL RESIDENTIAL,883231,130280720,24-Feb-16,(321.80),DOLPHIN HOMES LTD,SP0000331
WANDSWORTH COUNCIL,Revenue,ASC,SOCIAL SERVICES,CUSTOMER & CLIENT RECPTS - EXT,CL CONT EXTERNAL RESIDENTIAL,869500,130280720,09-Feb-16,(321.80),NORWOOD SCHOOLS LTD,SP0000332
WANDSWORTH COUNCIL,Revenue,ASC,SOCIAL SERVICES,CUSTOMER & CLIENT RECPTS - EXT,CL CONT EXTERNAL RESIDENTIAL,869501,130280720,09-Feb-16,(321.80),NORWOOD SCHOOLS LTD,SP0000332
WANDSWORTH COUNCIL,Revenue,ASC,SOCIAL SERVICES,CUSTOMER & CLIENT RECPTS - EXT,CL CONT EXTERNAL RESIDENTIAL,885609,130280720,29-Feb-16,(523.24),HEYWOODS GRANGE LTD,SP0000361
WANDSWORTH COUNCIL,Revenue,ASC,SOCIAL SERVICES,CUSTOMER & CLIENT RECPTS - EXT,CL CONT EXTERNAL RESIDENTIAL,881494,130280720,23-Feb-16,(333.29),ST DAVIDS CARE IN THE COMMUNITY,SP0000379
WANDSWORTH COUNCIL,Revenue,ASC,SOCIAL SERVICES,CUSTOMER & CLIENT RECPTS - EXT,CL CONT EXTERNAL RESIDENTIAL,881495,130280720,23-Feb-16,(333.29),ST DAVIDS CARE IN THE COMMUNITY,SP0000379
WANDSWORTH COUNCIL,Revenue,ASC,SOCIAL SERVICES,CUSTOMER & CLIENT RECPTS - EXT,CL CONT EXTERNAL RESIDENTIAL,881496,130280720,23-Feb-16,(333.29),ST DAVIDS CARE IN THE COMMUNITY,SP0000379
WANDSWORTH COUNCIL,Revenue,ASC,SOCIAL SERVICES,CUSTOMER & CLIENT RECPTS - EXT,CL CONT EXTERNAL RESIDENTIAL,881609,130280720,23-Feb-16,(333.29),ESSEX CARE CONSORTIUM,SP0000387
WANDSWORTH COUNCIL,Revenue,ASC,SOCIAL SERVICES,CUSTOMER & CLIENT RECPTS - EXT,CL CONT EXTERNAL RESIDENTIAL,885611,130280720,29-Feb-16,(321.80),POTENSIAL LTD,SP0000395
WANDSWORTH COUNCIL,Revenue,ASC,SOCIAL SERVICES,CUSTOMER & CLIENT RECPTS - EXT,CL CONT EXTERNAL RESIDENTIAL,869503,130280720,09-Feb-16,(321.80),KENILWORTH RESIDENTIAL HOME,SP0000432
WANDSWORTH COUNCIL,Revenue,ASC,SOCIAL SERVICES,CUSTOMER & CLIENT RECPTS - EXT,CL CONT EXTERNAL RESIDENTIAL,869504,130280720,09-Feb-16,(505.20),KENILWORTH RESIDENTIAL HOME,SP0000432
WANDSWORTH COUNCIL,Revenue,ASC,SOCIAL SERVICES,CUSTOMER & CLIENT RECPTS - EXT,CL CONT EXTERNAL RESIDENTIAL,881603,130280720,23-Feb-16,(379.48),THE WELL HOUSE,SP0000448
WANDSWORTH COUNCIL,Revenue,ASC,SOCIAL SERVICES,CUSTOMER & CLIENT RECPTS - EXT,CL CONT EXTERNAL RESIDENTIAL,881604,130280720,23-Feb-16,(333.29),THE WELL HOUSE,SP0000448
WANDSWORTH COUNCIL,Revenue,ASC,SOCIAL SERVICES,CUSTOMER & CLIENT RECPTS - EXT,CL CONT EXTERNAL RESIDENTIAL,881568,130280720,23-Feb-16,(505.20),MACINTYRE CARE,SP0000473
WANDSWORTH COUNCIL,Revenue,ASC,SOCIAL SERVICES,CUSTOMER & CLIENT RECPTS - EXT,CL CONT EXTERNAL RESIDENTIAL,881570,130280720,23-Feb-16,(321.80),MACINTYRE CARE,SP0000473
WANDSWORTH COUNCIL,Revenue,ASC,SOCIAL SERVICES,CUSTOMER & CLIENT RECPTS - EXT,CL CONT EXTERNAL RESIDENTIAL,881571,130280720,23-Feb-16,(321.80),MACINTYRE CARE,SP0000473
WANDSWORTH COUNCIL,Revenue,ASC,SOCIAL SERVICES,CUSTOMER & CLIENT RECPTS - EXT,CL CONT EXTERNAL RESIDENTIAL,881572,130280720,23-Feb-16,(353.31),MACINTYRE CARE,SP0000473
WANDSWORTH COUNCIL,Revenue,ASC,SOCIAL SERVICES,CUSTOMER & CLIENT RECPTS - EXT,CL CONT EXTERNAL RESIDENTIAL,881573,130280720,23-Feb-16,(241.35),MACINTYRE CARE,SP0000473
WANDSWORTH COUNCIL,Revenue,ASC,SOCIAL SERVICES,CUSTOMER & CLIENT RECPTS - EXT,CL CONT EXTERNAL RESIDENTIAL,881574,130280720,23-Feb-16,(241.35),MACINTYRE CARE,SP0000473
WANDSWORTH COUNCIL,Revenue,ASC,SOCIAL SERVICES,CUSTOMER & CLIENT RECPTS - EXT,CL CONT EXTERNAL RESIDENTIAL,881575,130280720,23-Feb-16,(310.31),MACINTYRE CARE,SP0000473
WANDSWORTH COUNCIL,Revenue,ASC,SOCIAL SERVICES,CUSTOMER & CLIENT RECPTS - EXT,CL CONT EXTERNAL RESIDENTIAL,881576,130280720,23-Feb-16,(321.43),MACINTYRE CARE,SP0000473
WANDSWORTH COUNCIL,Revenue,ASC,SOCIAL SERVICES,CUSTOMER & CLIENT RECPTS - EXT,CL CONT EXTERNAL RESIDENTIAL,881577,130280720,23-Feb-16,(400.60),MACINTYRE CARE,SP0000473
WANDSWORTH COUNCIL,Revenue,ASC,SOCIAL SERVICES,CUSTOMER & CLIENT RECPTS - EXT,CL CONT EXTERNAL RESIDENTIAL,881578,130280720,23-Feb-16,(321.80),MACINTYRE CARE,SP0000473
WANDSWORTH COUNCIL,Revenue,ASC,SOCIAL SERVICES,CUSTOMER & CLIENT RECPTS - EXT,CL CONT EXTERNAL RESIDENTIAL,881579,130280720,23-Feb-16,(505.20),MACINTYRE CARE,SP0000473
WANDSWORTH COUNCIL,Revenue,ASC,SOCIAL SERVICES,CUSTOMER & CLIENT RECPTS - EXT,CL CONT EXTERNAL RESIDENTIAL,881580,130280720,23-Feb-16,(321.80),MACINTYRE CARE,SP0000473
WANDSWORTH COUNCIL,Revenue,ASC,SOCIAL SERVICES,CUSTOMER & CLIENT RECPTS - EXT,CL CONT EXTERNAL RESIDENTIAL,881581,130280720,23-Feb-16,(378.90),MACINTYRE CARE,SP0000473
WANDSWORTH COUNCIL,Revenue,ASC,SOCIAL SERVICES,CUSTOMER & CLIENT RECPTS - EXT,CL CONT EXTERNAL RESIDENTIAL,881582,130280720,23-Feb-16,(505.20),MACINTYRE CARE,SP0000473
WANDSWORTH COUNCIL,Revenue,ASC,SOCIAL SERVICES,CUSTOMER & CLIENT RECPTS - EXT,CL CONT EXTERNAL RESIDENTIAL,881583,130280720,23-Feb-16,(505.20),MACINTYRE CARE,SP0000473
WANDSWORTH COUNCIL,Revenue,ASC,SOCIAL SERVICES,CUSTOMER & CLIENT RECPTS - EXT,CL CONT EXTERNAL RESIDENTIAL,881585,130280720,23-Feb-16,(521.20),MACINTYRE CARE,SP0000473
WANDSWORTH COUNCIL,Revenue,ASC,SOCIAL SERVICES,CUSTOMER & CLIENT RECPTS - EXT,CL CONT EXTERNAL RESIDENTIAL,881586,130280720,23-Feb-16,(321.80),MACINTYRE CARE,SP0000473
WANDSWORTH COUNCIL,Revenue,ASC,SOCIAL SERVICES,CUSTOMER & CLIENT RECPTS - EXT,CL CONT EXTERNAL RESIDENTIAL,881587,130280720,23-Feb-16,(363.51),MACINTYRE CARE,SP0000473
WANDSWORTH COUNCIL,Revenue,ASC,SOCIAL SERVICES,CUSTOMER & CLIENT RECPTS - EXT,CL CONT EXTERNAL RESIDENTIAL,881588,130280720,23-Feb-16,(310.31),MACINTYRE CARE,SP0000473
WANDSWORTH COUNCIL,Revenue,ASC,SOCIAL SERVICES,CUSTOMER & CLIENT RECPTS - EXT,CL CONT EXTERNAL RESIDENTIAL,884695,130280720,26-Feb-16,(505.20),SURREY & BORDERS PARTNERSHIP NHS TRUST,SP0000501
WANDSWORTH COUNCIL,Revenue,ASC,SOCIAL SERVICES,CUSTOMER & CLIENT RECPTS - EXT,CL CONT EXTERNAL RESIDENTIAL,881522,130280720,23-Feb-16,(523.24),THE COMMUNITY CARE COMPANY UK LTD,SP0000576
WANDSWORTH COUNCIL,Revenue,ASC,SOCIAL SERVICES,CUSTOMER & CLIENT RECPTS - EXT,CL CONT EXTERNAL RESIDENTIAL,881523,130280720,23-Feb-16,(414.91),THE COMMUNITY CARE COMPANY UK LTD,SP0000576
WANDSWORTH COUNCIL,Revenue,ASC,SOCIAL SERVICES,CUSTOMER & CLIENT RECPTS - EXT,CL CONT EXTERNAL RESIDENTIAL,881524,130280720,23-Feb-16,(333.29),THE COMMUNITY CARE COMPANY UK LTD,SP0000576
WANDSWORTH COUNCIL,Revenue,ASC,SOCIAL SERVICES,CUSTOMER & CLIENT RECPTS - EXT,CL CONT EXTERNAL RESIDENTIAL,881525,130280720,23-Feb-16,(349.66),THE COMMUNITY CARE COMPANY UK LTD,SP0000576
WANDSWORTH COUNCIL,Revenue,ASC,SOCIAL SERVICES,CUSTOMER & CLIENT RECPTS - EXT,CL CONT EXTERNAL RESIDENTIAL,881526,130280720,23-Feb-16,(333.29),THE COMMUNITY CARE COMPANY UK LTD,SP0000576
WANDSWORTH COUNCIL,Revenue,ASC,SOCIAL SERVICES,CUSTOMER & CLIENT RECPTS - EXT,CL CONT EXTERNAL RESIDENTIAL,883782,130280720,25-Feb-16,"(1,082.57)",BIRCC,SP0000584
WANDSWORTH COUNCIL,Revenue,ASC,SOCIAL SERVICES,CUSTOMER & CLIENT RECPTS - EXT,CL CONT EXTERNAL RESIDENTIAL,869506,130280720,09-Feb-16,(559.33),THE REGARD PARTNERSHIP,SP0000588
WANDSWORTH COUNCIL,Revenue,ASC,SOCIAL SERVICES,CUSTOMER & CLIENT RECPTS - EXT,CL CONT EXTERNAL RESIDENTIAL,881511,130280720,23-Feb-16,(414.91),THE REGARD PARTNERSHIP,SP0000588
WANDSWORTH COUNCIL,Revenue,ASC,SOCIAL SERVICES,CUSTOMER & CLIENT RECPTS - EXT,CL CONT EXTERNAL RESIDENTIAL,881512,130280720,23-Feb-16,(333.29),THE REGARD PARTNERSHIP,SP0000588
WANDSWORTH COUNCIL,Revenue,ASC,SOCIAL SERVICES,CUSTOMER & CLIENT RECPTS - EXT,CL CONT EXTERNAL RESIDENTIAL,881513,130280720,23-Feb-16,(523.24),THE REGARD PARTNERSHIP,SP0000588
WANDSWORTH COUNCIL,Revenue,ASC,SOCIAL SERVICES,CUSTOMER & CLIENT RECPTS - EXT,CL CONT EXTERNAL RESIDENTIAL,881514,130280720,23-Feb-16,(414.91),THE REGARD PARTNERSHIP,SP0000588
WANDSWORTH COUNCIL,Revenue,ASC,SOCIAL SERVICES,CUSTOMER & CLIENT RECPTS - EXT,CL CONT EXTERNAL RESIDENTIAL,873726,130280720,12-Feb-16,(321.80),EVERGREEN PARTNERSHIP,SP0000597
WANDSWORTH COUNCIL,Revenue,ASC,SOCIAL SERVICES,CUSTOMER & CLIENT RECPTS - EXT,CL CONT EXTERNAL RESIDENTIAL,869518,130280720,09-Feb-16,(321.80),LAETUS LODGE,SP0000600
WANDSWORTH COUNCIL,Revenue,ASC,SOCIAL SERVICES,CUSTOMER & CLIENT RECPTS - EXT,CL CONT EXTERNAL RESIDENTIAL,869519,130280720,09-Feb-16,(321.80),LAETUS LODGE,SP0000600
WANDSWORTH COUNCIL,Revenue,ASC,SOCIAL SERVICES,CUSTOMER & CLIENT RECPTS - EXT,CL CONT EXTERNAL RESIDENTIAL,869522,130280720,09-Feb-16,(366.40),LAETUS LODGE,SP0000600
WANDSWORTH COUNCIL,Revenue,ASC,SOCIAL SERVICES,CUSTOMER & CLIENT RECPTS - EXT,CL CONT EXTERNAL RESIDENTIAL,869523,130280720,09-Feb-16,(321.80),LAETUS LODGE,SP0000600
WANDSWORTH COUNCIL,Revenue,ASC,SOCIAL SERVICES,CUSTOMER & CLIENT RECPTS - EXT,CL CONT EXTERNAL RESIDENTIAL,869524,130280720,09-Feb-16,(321.80),LAETUS LODGE,SP0000600
WANDSWORTH COUNCIL,Revenue,ASC,SOCIAL SERVICES,CUSTOMER & CLIENT RECPTS - EXT,CL CONT EXTERNAL RESIDENTIAL,876953,130280720,17-Feb-16,(333.29),MENCAP,SP0000604
WANDSWORTH COUNCIL,Revenue,ASC,SOCIAL SERVICES,CUSTOMER & CLIENT RECPTS - EXT,CL CONT EXTERNAL RESIDENTIAL,876954,130280720,17-Feb-16,(333.29),MENCAP,SP0000604
WANDSWORTH COUNCIL,Revenue,ASC,SOCIAL SERVICES,CUSTOMER & CLIENT RECPTS - EXT,CL CONT EXTERNAL RESIDENTIAL,876955,130280720,17-Feb-16,(333.29),MENCAP,SP0000604
WANDSWORTH COUNCIL,Revenue,ASC,SOCIAL SERVICES,CUSTOMER & CLIENT RECPTS - EXT,CL CONT EXTERNAL RESIDENTIAL,867362,130280720,08-Feb-16,(321.80),METROPOLITAN HOUSING TRUST,SP0000626
WANDSWORTH COUNCIL,Revenue,ASC,SOCIAL SERVICES,CUSTOMER & CLIENT RECPTS - EXT,CL CONT EXTERNAL RESIDENTIAL,867363,130280720,08-Feb-16,(505.20),METROPOLITAN HOUSING TRUST,SP0000626
WANDSWORTH COUNCIL,Revenue,ASC,SOCIAL SERVICES,CUSTOMER & CLIENT RECPTS - EXT,CL CONT EXTERNAL RESIDENTIAL,867364,130280720,08-Feb-16,(321.80),METROPOLITAN HOUSING TRUST,SP0000626
WANDSWORTH COUNCIL,Revenue,ASC,SOCIAL SERVICES,CUSTOMER & CLIENT RECPTS - EXT,CL CONT EXTERNAL RESIDENTIAL,867365,130280720,08-Feb-16,(400.60),METROPOLITAN HOUSING TRUST,SP0000626
WANDSWORTH COUNCIL,Revenue,ASC,SOCIAL SERVICES,CUSTOMER & CLIENT RECPTS - EXT,CL CONT EXTERNAL RESIDENTIAL,867367,130280720,08-Feb-16,(400.60),METROPOLITAN HOUSING TRUST,SP0000626
WANDSWORTH COUNCIL,Revenue,ASC,SOCIAL SERVICES,CUSTOMER & CLIENT RECPTS - EXT,CL CONT EXTERNAL RESIDENTIAL,867370,130280720,08-Feb-16,(400.60),METROPOLITAN HOUSING TRUST,SP0000626
WANDSWORTH COUNCIL,Revenue,ASC,SOCIAL SERVICES,CUSTOMER & CLIENT RECPTS - EXT,CL CONT EXTERNAL RESIDENTIAL,867371,130280720,08-Feb-16,(321.80),METROPOLITAN HOUSING TRUST,SP0000626
WANDSWORTH COUNCIL,Revenue,ASC,SOCIAL SERVICES,CUSTOMER & CLIENT RECPTS - EXT,CL CONT EXTERNAL RESIDENTIAL,867372,130280720,08-Feb-16,(505.20),METROPOLITAN HOUSING TRUST,SP0000626
WANDSWORTH COUNCIL,Revenue,ASC,SOCIAL SERVICES,CUSTOMER & CLIENT RECPTS - EXT,CL CONT EXTERNAL RESIDENTIAL,867373,130280720,08-Feb-16,(321.80),METROPOLITAN HOUSING TRUST,SP0000626
WANDSWORTH COUNCIL,Revenue,ASC,SOCIAL SERVICES,CUSTOMER & CLIENT RECPTS - EXT,CL CONT EXTERNAL RESIDENTIAL,867375,130280720,08-Feb-16,(321.80),METROPOLITAN HOUSING TRUST,SP0000626
WANDSWORTH COUNCIL,Revenue,ASC,SOCIAL SERVICES,CUSTOMER & CLIENT RECPTS - EXT,CL CONT EXTERNAL RESIDENTIAL,867377,130280720,08-Feb-16,(321.80),METROPOLITAN HOUSING TRUST,SP0000626
WANDSWORTH COUNCIL,Revenue,ASC,SOCIAL SERVICES,CUSTOMER & CLIENT RECPTS - EXT,CL CONT EXTERNAL RESIDENTIAL,883796,130280720,25-Feb-16,(321.80),LOVING CARE LTD,SP0000670
WANDSWORTH COUNCIL,Revenue,ASC,SOCIAL SERVICES,CUSTOMER & CLIENT RECPTS - EXT,CL CONT EXTERNAL RESIDENTIAL,883797,130280720,25-Feb-16,(298.81),LOVING CARE LTD,SP0000670
WANDSWORTH COUNCIL,Revenue,ASC,SOCIAL SERVICES,CUSTOMER & CLIENT RECPTS - EXT,CL CONT EXTERNAL RESIDENTIAL,883798,130280720,25-Feb-16,(400.60),LOVING CARE LTD,SP0000670
WANDSWORTH COUNCIL,Revenue,ASC,SOCIAL SERVICES,CUSTOMER & CLIENT RECPTS - EXT,CL CONT EXTERNAL RESIDENTIAL,883799,130280720,25-Feb-16,(400.60),LOVING CARE LTD,SP0000670
WANDSWORTH COUNCIL,Revenue,ASC,SOCIAL SERVICES,CUSTOMER & CLIENT RECPTS - EXT,CL CONT EXTERNAL RESIDENTIAL,883800,130280720,25-Feb-16,(321.80),LOVING CARE LTD,SP0000670
WANDSWORTH COUNCIL,Revenue,ASC,SOCIAL SERVICES,CUSTOMER & CLIENT RECPTS - EXT,CL CONT EXTERNAL RESIDENTIAL,883801,130280720,25-Feb-16,(298.81),LOVING CARE LTD,SP0000670
WANDSWORTH COUNCIL,Revenue,ASC,SOCIAL SERVICES,CUSTOMER & CLIENT RECPTS - EXT,CL CONT EXTERNAL RESIDENTIAL,881463,130280720,23-Feb-16,(333.29),THE MANOR HOUSE,SP0000728
WANDSWORTH COUNCIL,Revenue,ASC,SOCIAL SERVICES,CUSTOMER & CLIENT RECPTS - EXT,CL CONT EXTERNAL RESIDENTIAL,881612,130280720,23-Feb-16,(523.24),RALEIGH HOUSE LTD,SP0000760
WANDSWORTH COUNCIL,Revenue,ASC,SOCIAL SERVICES,CUSTOMER & CLIENT RECPTS - EXT,CL CONT EXTERNAL RESIDENTIAL,884185,130280720,25-Feb-16,(108.26),RALEIGH HOUSE LTD,SP0000760
WANDSWORTH COUNCIL,Revenue,ASC,SOCIAL SERVICES,CUSTOMER & CLIENT RECPTS - EXT,CL CONT EXTERNAL RESIDENTIAL,885612,130280720,29-Feb-16,(361.05),WHITE ROSE CARE,SP0000780
WANDSWORTH COUNCIL,Revenue,ASC,SOCIAL SERVICES,CUSTOMER & CLIENT RECPTS - EXT,CL CONT EXTERNAL RESIDENTIAL,869515,130280720,09-Feb-16,(321.80),GLENCARE GROUP,SP0000791
WANDSWORTH COUNCIL,Revenue,ASC,SOCIAL SERVICES,CUSTOMER & CLIENT RECPTS - EXT,CL CONT EXTERNAL RESIDENTIAL,869516,130280720,09-Feb-16,(321.80),GLENCARE GROUP,SP0000791
WANDSWORTH COUNCIL,Revenue,ASC,SOCIAL SERVICES,CUSTOMER & CLIENT RECPTS - EXT,CL CONT EXTERNAL RESIDENTIAL,881503,130280720,23-Feb-16,(506.88),GLENCARE GROUP,SP0000791
WANDSWORTH COUNCIL,Revenue,ASC,SOCIAL SERVICES,CUSTOMER & CLIENT RECPTS - EXT,CL CONT EXTERNAL RESIDENTIAL,869679,130280720,09-Feb-16,(321.80),FREEWAYS TRUST LTD,SP0000793
WANDSWORTH COUNCIL,Revenue,ASC,SOCIAL SERVICES,CUSTOMER & CLIENT RECPTS - EXT,CL CONT EXTERNAL RESIDENTIAL,869680,130280720,09-Feb-16,(321.80),FREEWAYS TRUST LTD,SP0000793
WANDSWORTH COUNCIL,Revenue,ASC,SOCIAL SERVICES,CUSTOMER & CLIENT RECPTS - EXT,CL CONT EXTERNAL RESIDENTIAL,869681,130280720,09-Feb-16,(321.80),FREEWAYS TRUST LTD,SP0000793
WANDSWORTH COUNCIL,Revenue,ASC,SOCIAL SERVICES,CUSTOMER & CLIENT RECPTS - EXT,CL CONT EXTERNAL RESIDENTIAL,869682,130280720,09-Feb-16,(321.80),FREEWAYS TRUST LTD,SP0000793
WANDSWORTH COUNCIL,Revenue,ASC,SOCIAL SERVICES,CUSTOMER & CLIENT RECPTS - EXT,CL CONT EXTERNAL RESIDENTIAL,881561,130280720,23-Feb-16,(400.60),UNITED RESPONSE,SP0000797
WANDSWORTH COUNCIL,Revenue,ASC,SOCIAL SERVICES,CUSTOMER & CLIENT RECPTS - EXT,CL CONT EXTERNAL RESIDENTIAL,884183,130280720,25-Feb-16,(321.80),PROSPECTS,SP0000800
WANDSWORTH COUNCIL,Revenue,ASC,SOCIAL SERVICES,CUSTOMER & CLIENT RECPTS - EXT,CL CONT EXTERNAL RESIDENTIAL,869687,130280720,09-Feb-16,(344.79),WESSEX AUTISTIC SOCIETY,SP0000805
WANDSWORTH COUNCIL,Revenue,ASC,SOCIAL SERVICES,CUSTOMER & CLIENT RECPTS - EXT,CL CONT EXTERNAL RESIDENTIAL,869688,130280720,09-Feb-16,(356.28),WESSEX AUTISTIC SOCIETY,SP0000805
WANDSWORTH COUNCIL,Revenue,ASC,SOCIAL SERVICES,CUSTOMER & CLIENT RECPTS - EXT,CL CONT EXTERNAL RESIDENTIAL,881608,130280720,23-Feb-16,(333.29),WESSEX AUTISTIC SOCIETY,SP0000805
WANDSWORTH COUNCIL,Revenue,ASC,SOCIAL SERVICES,CUSTOMER & CLIENT RECPTS - EXT,CL CONT EXTERNAL RESIDENTIAL,869510,130280720,09-Feb-16,(356.28),BEECH LODGE,SP0000807
WANDSWORTH COUNCIL,Revenue,ASC,SOCIAL SERVICES,CUSTOMER & CLIENT RECPTS - EXT,CL CONT EXTERNAL RESIDENTIAL,869511,130280720,09-Feb-16,(356.28),BEECH LODGE,SP0000807
WANDSWORTH COUNCIL,Revenue,ASC,SOCIAL SERVICES,CUSTOMER & CLIENT RECPTS - EXT,CL CONT EXTERNAL RESIDENTIAL,869512,130280720,09-Feb-16,(356.28),BEECH LODGE,SP0000807
WANDSWORTH COUNCIL,Revenue,ASC,SOCIAL SERVICES,CUSTOMER & CLIENT RECPTS - EXT,CL CONT EXTERNAL RESIDENTIAL,876969,130280720,17-Feb-16,(400.60),CHATSWORTH CARE,SP0000831
WANDSWORTH COUNCIL,Revenue,ASC,SOCIAL SERVICES,CUSTOMER & CLIENT RECPTS - EXT,CL CONT EXTERNAL RESIDENTIAL,883780,130280720,25-Feb-16,(379.49),CHATSWORTH CARE,SP0000831
WANDSWORTH COUNCIL,Revenue,ASC,SOCIAL SERVICES,CUSTOMER & CLIENT RECPTS - EXT,CL CONT EXTERNAL RESIDENTIAL,883224,130280720,24-Feb-16,(344.73),FIRCROFT,SP0000840
WANDSWORTH COUNCIL,Revenue,ASC,SOCIAL SERVICES,CUSTOMER & CLIENT RECPTS - EXT,CL CONT EXTERNAL RESIDENTIAL,865657,130280720,04-Feb-16,(321.80),ROYAL MENCAP SOCIETY,SP0000842
WANDSWORTH COUNCIL,Revenue,ASC,SOCIAL SERVICES,CUSTOMER & CLIENT RECPTS - EXT,CL CONT EXTERNAL RESIDENTIAL,865658,130280720,04-Feb-16,(321.80),ROYAL MENCAP SOCIETY,SP0000842
WANDSWORTH COUNCIL,Revenue,ASC,SOCIAL SERVICES,CUSTOMER & CLIENT RECPTS - EXT,CL CONT EXTERNAL RESIDENTIAL,871912,130280720,11-Feb-16,(321.80),ROYAL MENCAP SOCIETY,SP0000842
WANDSWORTH COUNCIL,Revenue,ASC,SOCIAL SERVICES,CUSTOMER & CLIENT RECPTS - EXT,CL CONT EXTERNAL RESIDENTIAL,871913,130280720,11-Feb-16,(321.80),ROYAL MENCAP SOCIETY,SP0000842
WANDSWORTH COUNCIL,Revenue,ASC,SOCIAL SERVICES,CUSTOMER & CLIENT RECPTS - EXT,CL CONT EXTERNAL RESIDENTIAL,881589,130280720,23-Feb-16,(330.81),STALLCOMBE HOUSE,SP0000843
WANDSWORTH COUNCIL,Revenue,ASC,SOCIAL SERVICES,CUSTOMER & CLIENT RECPTS - EXT,CL CONT EXTERNAL RESIDENTIAL,881590,130280720,23-Feb-16,(333.29),STALLCOMBE HOUSE,SP0000843
WANDSWORTH COUNCIL,Revenue,ASC,SOCIAL SERVICES,CUSTOMER & CLIENT RECPTS - EXT,CL CONT EXTERNAL RESIDENTIAL,876951,130280720,17-Feb-16,(414.91),SCOPE,SP0000852
WANDSWORTH COUNCIL,Revenue,ASC,SOCIAL SERVICES,CUSTOMER & CLIENT RECPTS - EXT,CL CONT EXTERNAL RESIDENTIAL,876952,130280720,17-Feb-16,(356.08),SCOPE,SP0000852
WANDSWORTH COUNCIL,Revenue,ASC,SOCIAL SERVICES,CUSTOMER & CLIENT RECPTS - EXT,CL CONT EXTERNAL RESIDENTIAL,881557,130280720,23-Feb-16,(333.29),ASHCROFT CARE SERVICES,SP0000872
WANDSWORTH COUNCIL,Revenue,ASC,SOCIAL SERVICES,CUSTOMER & CLIENT RECPTS - EXT,CL CONT EXTERNAL RESIDENTIAL,877831,130280720,18-Feb-16,(333.29),229 MITCHAM LANE LTD,SP0000884
WANDSWORTH COUNCIL,Revenue,ASC,SOCIAL SERVICES,CUSTOMER & CLIENT RECPTS - EXT,CL CONT EXTERNAL RESIDENTIAL,884210,130280720,25-Feb-16,(287.32),229 MITCHAM LANE LTD,SP0000884
WANDSWORTH COUNCIL,Revenue,ASC,SOCIAL SERVICES,CUSTOMER & CLIENT RECPTS - EXT,CL CONT EXTERNAL RESIDENTIAL,884211,130280720,25-Feb-16,(57.04),229 MITCHAM LANE LTD,SP0000884
WANDSWORTH COUNCIL,Revenue,ASC,SOCIAL SERVICES,CUSTOMER & CLIENT RECPTS - EXT,CL CONT EXTERNAL RESIDENTIAL,884212,130280720,25-Feb-16,(356.28),229 MITCHAM LANE LTD,SP0000884
WANDSWORTH COUNCIL,Revenue,ASC,SOCIAL SERVICES,CUSTOMER & CLIENT RECPTS - EXT,CL CONT EXTERNAL RESIDENTIAL,884213,130280720,25-Feb-16,(356.28),229 MITCHAM LANE LTD,SP0000884
WANDSWORTH COUNCIL,Revenue,ASC,SOCIAL SERVICES,CUSTOMER & CLIENT RECPTS - EXT,CL CONT EXTERNAL RESIDENTIAL,883249,130280720,24-Feb-16,(405.66),TRACS,SP0000914
WANDSWORTH COUNCIL,Revenue,ASC,SOCIAL SERVICES,CUSTOMER & CLIENT RECPTS - EXT,CL CONT EXTERNAL RESIDENTIAL,883250,130280720,24-Feb-16,(379.49),TRACS,SP0000914
WANDSWORTH COUNCIL,Revenue,ASC,SOCIAL SERVICES,CUSTOMER & CLIENT RECPTS - EXT,CL CONT EXTERNAL RESIDENTIAL,881490,130280720,23-Feb-16,(333.29),PROGRESS HOUSING MARLOW,SP0000952
WANDSWORTH COUNCIL,Revenue,ASC,SOCIAL SERVICES,CUSTOMER & CLIENT RECPTS - EXT,CL CONT EXTERNAL RESIDENTIAL,872657,130280720,11-Feb-16,(321.80),MISSION CARE,SP0000958
WANDSWORTH COUNCIL,Revenue,ASC,SOCIAL SERVICES,CUSTOMER & CLIENT RECPTS - EXT,CL CONT EXTERNAL RESIDENTIAL,881462,130280720,23-Feb-16,(333.29),DOWNING (CHERTSEY ROAD) LTD,SP0000959
WANDSWORTH COUNCIL,Revenue,ASC,SOCIAL SERVICES,CUSTOMER & CLIENT RECPTS - EXT,CL CONT EXTERNAL RESIDENTIAL,869513,130280720,09-Feb-16,(356.28),CHERRY LODGE,SP0000965
WANDSWORTH COUNCIL,Revenue,ASC,SOCIAL SERVICES,CUSTOMER & CLIENT RECPTS - EXT,CL CONT EXTERNAL RESIDENTIAL,866435,130280720,05-Feb-16,(321.80),RIDGEWOOD CARE SERVICES LTD,SP0000969
WANDSWORTH COUNCIL,Revenue,ASC,SOCIAL SERVICES,CUSTOMER & CLIENT RECPTS - EXT,CL CONT EXTERNAL RESIDENTIAL,873697,130280720,12-Feb-16,(321.80),RIDGEWOOD CARE SERVICES LTD,SP0000969
WANDSWORTH COUNCIL,Revenue,ASC,SOCIAL SERVICES,CUSTOMER & CLIENT RECPTS - EXT,CL CONT EXTERNAL RESIDENTIAL,873698,130280720,12-Feb-16,(321.80),RIDGEWOOD CARE SERVICES LTD,SP0000969
WANDSWORTH COUNCIL,Revenue,ASC,SOCIAL SERVICES,CUSTOMER & CLIENT RECPTS - EXT,CL CONT EXTERNAL RESIDENTIAL,873699,130280720,12-Feb-16,(400.60),RIDGEWOOD CARE SERVICES LTD,SP0000969
WANDSWORTH COUNCIL,Revenue,ASC,SOCIAL SERVICES,CUSTOMER & CLIENT RECPTS - EXT,CL CONT EXTERNAL RESIDENTIAL,873727,130280720,12-Feb-16,(321.80),RIDGEWOOD CARE SERVICES LTD,SP0000969
WANDSWORTH COUNCIL,Revenue,ASC,SOCIAL SERVICES,CUSTOMER & CLIENT RECPTS - EXT,CL CONT EXTERNAL RESIDENTIAL,869528,130280720,09-Feb-16,(356.28),LEONARD CHESHIRE,SP0000976
WANDSWORTH COUNCIL,Revenue,ASC,SOCIAL SERVICES,CUSTOMER & CLIENT RECPTS - EXT,CL CONT EXTERNAL RESIDENTIAL,867357,130280720,08-Feb-16,(505.20),THE HOME FARM TRUST LTD,SP0001048
WANDSWORTH COUNCIL,Revenue,ASC,SOCIAL SERVICES,CUSTOMER & CLIENT RECPTS - EXT,CL CONT EXTERNAL RESIDENTIAL,877843,130280720,18-Feb-16,(321.80),THE HOME FARM TRUST LTD,SP0001048
WANDSWORTH COUNCIL,Revenue,ASC,SOCIAL SERVICES,CUSTOMER & CLIENT RECPTS - EXT,CL CONT EXTERNAL RESIDENTIAL,877844,130280720,18-Feb-16,(337.60),THE HOME FARM TRUST LTD,SP0001048
WANDSWORTH COUNCIL,Revenue,ASC,SOCIAL SERVICES,CUSTOMER & CLIENT RECPTS - EXT,CL CONT EXTERNAL RESIDENTIAL,877845,130280720,18-Feb-16,(505.20),THE HOME FARM TRUST LTD,SP0001048
WANDSWORTH COUNCIL,Revenue,ASC,SOCIAL SERVICES,CUSTOMER & CLIENT RECPTS - EXT,CL CONT EXTERNAL RESIDENTIAL,883217,130280720,24-Feb-16,(257.73),ALLIED CARE (MHS) LTD,SP0001069
WANDSWORTH COUNCIL,Revenue,ASC,SOCIAL SERVICES,CUSTOMER & CLIENT RECPTS - EXT,CL CONT EXTERNAL RESIDENTIAL,883223,130280720,24-Feb-16,(321.80),ALLIED CARE (MHS) LTD,SP0001069
WANDSWORTH COUNCIL,Revenue,ASC,SOCIAL SERVICES,CUSTOMER & CLIENT RECPTS - EXT,CL CONT EXTERNAL RESIDENTIAL,881493,130280720,23-Feb-16,(333.29),SAXON COURT,SP0001100
WANDSWORTH COUNCIL,Revenue,ASC,SOCIAL SERVICES,CUSTOMER & CLIENT RECPTS - EXT,CL CONT EXTERNAL RESIDENTIAL,869527,130280720,09-Feb-16,(366.40),TOTTERDOWN,SP0001113
WANDSWORTH COUNCIL,Revenue,ASC,SOCIAL SERVICES,CUSTOMER & CLIENT RECPTS - EXT,CL CONT EXTERNAL RESIDENTIAL,883220,130280720,24-Feb-16,(414.91),SUSSEX HEALTH CARE,SP0001115
WANDSWORTH COUNCIL,Revenue,ASC,SOCIAL SERVICES,CUSTOMER & CLIENT RECPTS - EXT,CL CONT EXTERNAL RESIDENTIAL,881527,130280720,23-Feb-16,(379.49),LONDON CARE PARTNERSHIP LTD,SP0001138
WANDSWORTH COUNCIL,Revenue,ASC,SOCIAL SERVICES,CUSTOMER & CLIENT RECPTS - EXT,CL CONT EXTERNAL RESIDENTIAL,881528,130280720,23-Feb-16,(279.73),LONDON CARE PARTNERSHIP LTD,SP0001138
WANDSWORTH COUNCIL,Revenue,ASC,SOCIAL SERVICES,CUSTOMER & CLIENT RECPTS - EXT,CL CONT EXTERNAL RESIDENTIAL,881529,130280720,23-Feb-16,(333.29),LONDON CARE PARTNERSHIP LTD,SP0001138
WANDSWORTH COUNCIL,Revenue,ASC,SOCIAL SERVICES,CUSTOMER & CLIENT RECPTS - EXT,CL CONT EXTERNAL RESIDENTIAL,881530,130280720,23-Feb-16,(414.91),LONDON CARE PARTNERSHIP LTD,SP0001138
WANDSWORTH COUNCIL,Revenue,ASC,SOCIAL SERVICES,CUSTOMER & CLIENT RECPTS - EXT,CL CONT EXTERNAL RESIDENTIAL,881531,130280720,23-Feb-16,(199.69),LONDON CARE PARTNERSHIP LTD,SP0001138
WANDSWORTH COUNCIL,Revenue,ASC,SOCIAL SERVICES,CUSTOMER & CLIENT RECPTS - EXT,CL CONT EXTERNAL RESIDENTIAL,881532,130280720,23-Feb-16,(379.49),LONDON CARE PARTNERSHIP LTD,SP0001138
WANDSWORTH COUNCIL,Revenue,ASC,SOCIAL SERVICES,CUSTOMER & CLIENT RECPTS - EXT,CL CONT EXTERNAL RESIDENTIAL,865651,130280720,04-Feb-16,(577.48),CHOICE CARE GROUP,SP0001367
WANDSWORTH COUNCIL,Revenue,ASC,SOCIAL SERVICES,CUSTOMER & CLIENT RECPTS - EXT,CL CONT EXTERNAL RESIDENTIAL,885601,130280720,29-Feb-16,(577.48),CHOICE CARE GROUP,SP0001367
WANDSWORTH COUNCIL,Revenue,ASC,SOCIAL SERVICES,CUSTOMER & CLIENT RECPTS - EXT,CL CONT EXTERNAL RESIDENTIAL,881605,130280720,23-Feb-16,(333.29),HOME FROM HOME CARE LIMITED,SP0001373
WANDSWORTH COUNCIL,Revenue,ASC,SOCIAL SERVICES,CUSTOMER & CLIENT RECPTS - EXT,CL CONT EXTERNAL RESIDENTIAL,869502,130280720,09-Feb-16,(366.40),LARKFIELD HALL LTD T/A PEPENBURY,SP0001378
WANDSWORTH COUNCIL,Revenue,ASC,SOCIAL SERVICES,CUSTOMER & CLIENT RECPTS - EXT,CL CONT EXTERNAL RESIDENTIAL,881560,130280720,23-Feb-16,(287.60),CRAEGMOOR OLD RECTORY BREDE PRIORY,SP0001621
WANDSWORTH COUNCIL,Revenue,ASC,SOCIAL SERVICES,CUSTOMER & CLIENT RECPTS - EXT,CL CONT EXTERNAL RESIDENTIAL,880497,130280720,22-Feb-16,(414.91),ACH OF LONDON LLP,SP0001688
WANDSWORTH COUNCIL,Revenue,ASC,SOCIAL SERVICES,CUSTOMER & CLIENT RECPTS - EXT,CL CONT EXTERNAL RESIDENTIAL,885604,130280720,29-Feb-16,(414.91),ACH OF LONDON LLP,SP0001688
WANDSWORTH COUNCIL,Revenue,ASC,SOCIAL SERVICES,CUSTOMER & CLIENT RECPTS - EXT,CL CONT EXTERNAL RESIDENTIAL,881484,130280720,23-Feb-16,(333.29),PATHWAY HEALTHCARE,SP0001779
WANDSWORTH COUNCIL,Revenue,ASC,SOCIAL SERVICES,CUSTOMER & CLIENT RECPTS - EXT,CL CONT EXTERNAL RESIDENTIAL,869505,130280720,09-Feb-16,(321.80),THE BRANDON TRUST,SP0005337
WANDSWORTH COUNCIL,Revenue,ASC,SOCIAL SERVICES,CUSTOMER & CLIENT RECPTS - EXT,CL CONT EXTERNAL RESIDENTIAL,881468,130280720,23-Feb-16,(270.32),INGLESIDE CHILDRENS HOME LTD,SP0005426
WANDSWORTH COUNCIL,Revenue,ASC,SOCIAL SERVICES,CUSTOMER & CLIENT RECPTS - EXT,CL CONT EXTERNAL RESIDENTIAL,874953,130280720,16-Feb-16,(321.80),C.H.O.I.C.E LIMITED,SP0010438
WANDSWORTH COUNCIL,Revenue,ASC,SOCIAL SERVICES,CUSTOMER & CLIENT RECPTS - EXT,CLIENT CONTS - DIRECT PAYMENTS,880719,130280790,22-Feb-16,(38.80),I DECIDE LTD (DIRECT PAYMENT),SP0006159
WANDSWORTH COUNCIL,Revenue,ASC,SOCIAL SERVICES,CUSTOMER & CLIENT RECPTS - EXT,CLIENT CONTS - DIRECT PAYMENTS,880649,130280790,22-Feb-16,(151.08),EPAYROLLUK LTD,SP0009092
WANDSWORTH COUNCIL,Revenue,ASC,SOCIAL SERVICES,CUSTOMER & CLIENT RECPTS - EXT,CLIENT CONTS EXTERNAL NURSING,866431,130280820,05-Feb-16,(321.80),WINGHAM COURT,SP0000025
WANDSWORTH COUNCIL,Revenue,ASC,SOCIAL SERVICES,CUSTOMER & CLIENT RECPTS - EXT,CLIENT CONTS EXTERNAL NURSING,884186,130280820,25-Feb-16,(585.05),ROSEDENE NURSING HOME,SP0000316
WANDSWORTH COUNCIL,Revenue,ASC,SOCIAL SERVICES,CUSTOMER & CLIENT RECPTS - EXT,CLIENT CONTS EXTERNAL NURSING,869685,130280820,09-Feb-16,(505.20),YEW TREE NURSING HOME,SP0000454
WANDSWORTH COUNCIL,Revenue,ASC,SOCIAL SERVICES,CUSTOMER & CLIENT RECPTS - EXT,CLIENT CONTS EXTERNAL NURSING,884700,130280820,26-Feb-16,"(1,208.87)",BUPA CARE SERVICES BACS RECEIPTS,SP0000644
WANDSWORTH COUNCIL,Revenue,ASC,SOCIAL SERVICES,CUSTOMER & CLIENT RECPTS - EXT,CLIENT CONTS EXTERNAL NURSING,884728,130280820,26-Feb-16,"(1,194.64)",BUPA CARE SERVICES BACS RECEIPTS,SP0000644
WANDSWORTH COUNCIL,Revenue,ASC,SOCIAL SERVICES,CUSTOMER & CLIENT RECPTS - EXT,CLIENT CONTS EXTERNAL NURSING,884751,130280820,26-Feb-16,(505.20),BUPA CARE SERVICES BACS RECEIPTS,SP0000644
WANDSWORTH COUNCIL,Revenue,ASC,SOCIAL SERVICES,CUSTOMER & CLIENT RECPTS - EXT,RNCC,866431,130284120,05-Feb-16,(448.00),WINGHAM COURT,SP0000025
WANDSWORTH COUNCIL,Revenue,ASC,SOCIAL SERVICES,CUSTOMER & CLIENT RECPTS - EXT,RNCC,884186,130284120,25-Feb-16,(464.00),ROSEDENE NURSING HOME,SP0000316
WANDSWORTH COUNCIL,Revenue,ASC,SOCIAL SERVICES,CUSTOMER & CLIENT RECPTS - EXT,RNCC,869685,130284120,09-Feb-16,(448.00),YEW TREE NURSING HOME,SP0000454
WANDSWORTH COUNCIL,Revenue,ASC,SOCIAL SERVICES,CUSTOMER & CLIENT RECPTS - EXT,RNCC,884700,130284120,26-Feb-16,"(1,072.00)",BUPA CARE SERVICES BACS RECEIPTS,SP0000644
WANDSWORTH COUNCIL,Revenue,ASC,SOCIAL SERVICES,CUSTOMER & CLIENT RECPTS - EXT,RNCC,884728,130284120,26-Feb-16,(448.00),BUPA CARE SERVICES BACS RECEIPTS,SP0000644
WANDSWORTH COUNCIL,Revenue,ASC,SOCIAL SERVICES,CUSTOMER & CLIENT RECPTS - EXT,RNCC,884751,130284120,26-Feb-16,(448.00),BUPA CARE SERVICES BACS RECEIPTS,SP0000644
WANDSWORTH COUNCIL,Revenue,ASC,SOCIAL SERVICES,CUSTOMER & CLIENT RECPTS - EXT,RNCC,884876,130284120,26-Feb-16,(448.00),TRINITY COURT NURSING HOME,SP0001001
WANDSWORTH COUNCIL,Revenue,ASC,,GRANTS & SUBSCRIPTIONS,CONTRACTS TO VOLUNTARY ORGS,867266,136437550,29-Feb-16,"4,000.00",GENERATE OPPORTUNITIES LTD,SP0000503
WANDSWORTH COUNCIL,Revenue,ASC,,GRANTS & SUBSCRIPTIONS,CONTRACTS TO VOLUNTARY ORGS,867267,136437550,29-Feb-16,"4,000.00",GENERATE OPPORTUNITIES LTD,SP0000503
WANDSWORTH COUNCIL,Revenue,ASC,,DIRECT2,AGENCY STAFF,865615,140000510,08-Feb-16,"(4,576.89)",SOUTH WEST LONDON & ST GEORGES MENTAL HE,SP0000358
WANDSWORTH COUNCIL,Revenue,PH,SOCIAL SERVICES,PRIVATE,EXTERNAL RESIDENTIAL CARE,873704,140145330,12-Feb-16,"2,600.00",STREETSCENE ADDICTION RECOVERY,SP0001163
WANDSWORTH COUNCIL,Revenue,PH,SOCIAL SERVICES,PRIVATE,EXTERNAL RESIDENTIAL CARE,866434,140145330,05-Feb-16,"2,434.83",MOUNT CARMEL,SP0001309
WANDSWORTH COUNCIL,Revenue,PH,SOCIAL SERVICES,PRIVATE,EXTERNAL RESIDENTIAL CARE,869508,140145330,09-Feb-16,"2,878.57",SOME WHERE HOUSE LTD,SP0001584
WANDSWORTH COUNCIL,Revenue,PH,SOCIAL SERVICES,PRIVATE,EXTERNAL RESIDENTIAL CARE,871918,140145330,11-Feb-16,"1,950.00",SOME WHERE HOUSE LTD,SP0001584
WANDSWORTH COUNCIL,Revenue,PH,SOCIAL SERVICES,PRIVATE,EXTERNAL RESIDENTIAL CARE,865650,140145330,04-Feb-16,"2,626.14",WESTCLIFFE HOUSE LTD,SP0006356
WANDSWORTH COUNCIL,Revenue,PH,SOCIAL SERVICES,PRIVATE,EXTERNAL RESIDENTIAL CARE,881618,140145330,23-Feb-16,"1,971.44",WESTCLIFFE HOUSE LTD,SP0006356
WANDSWORTH COUNCIL,Revenue,PH,SOCIAL SERVICES,VOL ASS,SUPPORTED HOUSING PROGRAMME,867381,140148030,08-Feb-16,"2,320.00",ADDICTION RECOVERY CENTRE,SP0001547
WANDSWORTH COUNCIL,Revenue,PH,SOCIAL SERVICES,VOL ASS,SUPPORTED HOUSING PROGRAMME,867382,140148030,08-Feb-16,"2,900.00",ADDICTION RECOVERY CENTRE,SP0001547
WANDSWORTH COUNCIL,Revenue,PH,SOCIAL SERVICES,CUSTOMER & CLIENT RECPTS - EXT,CL CONT EXTERNAL RESIDENTIAL,873704,140180720,12-Feb-16,(192.80),STREETSCENE ADDICTION RECOVERY,SP0001163
WANDSWORTH COUNCIL,Revenue,PH,SOCIAL SERVICES,CUSTOMER & CLIENT RECPTS - EXT,CL CONT EXTERNAL RESIDENTIAL,866434,140180720,05-Feb-16,(212.57),MOUNT CARMEL,SP0001309
WANDSWORTH COUNCIL,Revenue,PH,SOCIAL SERVICES,CUSTOMER & CLIENT RECPTS - EXT,CL CONT EXTERNAL RESIDENTIAL,869508,140180720,09-Feb-16,(213.46),SOME WHERE HOUSE LTD,SP0001584
WANDSWORTH COUNCIL,Revenue,PH,SOCIAL SERVICES,CUSTOMER & CLIENT RECPTS - EXT,CL CONT EXTERNAL RESIDENTIAL,871918,140180720,11-Feb-16,(144.60),SOME WHERE HOUSE LTD,SP0001584
WANDSWORTH COUNCIL,Revenue,PH,SOCIAL SERVICES,CUSTOMER & CLIENT RECPTS - EXT,CL CONT EXTERNAL RESIDENTIAL,865650,140180720,04-Feb-16,(124.00),WESTCLIFFE HOUSE LTD,SP0006356
WANDSWORTH COUNCIL,Revenue,PH,SOCIAL SERVICES,CUSTOMER & CLIENT RECPTS - EXT,CL CONT EXTERNAL RESIDENTIAL,881618,140180720,23-Feb-16,(309.16),WESTCLIFFE HOUSE LTD,SP0006356
WANDSWORTH COUNCIL,Revenue,ASC,,DIRECT2,AGENCY STAFF,865615,140300510,08-Feb-16,"15,440.26",SOUTH WEST LONDON & ST GEORGES MENTAL HE,SP0000358
WANDSWORTH COUNCIL,Revenue,ASC,SOCIAL SERVICES,OTHER AGENCIES,EXTERNAL OUTREACH,865793,140543330,04-Feb-16,621.06,ACTION ON HEARING LOSS,SP0001359
WANDSWORTH COUNCIL,Revenue,ASC,SOCIAL SERVICES,OTHER AGENCIES,EXTERNAL OUTREACH,873852,140543330,12-Feb-16,919.60,ACTION ON HEARING LOSS,SP0001359
WANDSWORTH COUNCIL,Revenue,ASC,SOCIAL SERVICES,PRIVATE,EXTERNAL RESIDENTIAL CARE,881464,140545330,23-Feb-16,"5,648.79",SIGNHEALTH,SP0000496
WANDSWORTH COUNCIL,Revenue,ASC,SOCIAL SERVICES,PRIVATE,EXTERNAL RESIDENTIAL CARE,881465,140545330,23-Feb-16,"6,587.60",SIGNHEALTH,SP0000496
WANDSWORTH COUNCIL,Revenue,ASC,SOCIAL SERVICES,PRIVATE,EXTERNAL RESIDENTIAL CARE,881466,140545330,23-Feb-16,"5,566.84",SIGNHEALTH,SP0000496
WANDSWORTH COUNCIL,Revenue,ASC,SOCIAL SERVICES,PRIVATE,EXTERNAL RESIDENTIAL CARE,873719,140545330,12-Feb-16,"3,984.80",ACTION ON HEARING LOSS,SP0001359
WANDSWORTH COUNCIL,Revenue,ASC,SOCIAL SERVICES,PRIVATE,EXTERNAL RESIDENTIAL CARE,881616,140545330,23-Feb-16,"3,398.72",ACTION ON HEARING LOSS,SP0001359
WANDSWORTH COUNCIL,Revenue,ASC,SOCIAL SERVICES,PRIVATE,EXTERNAL RESIDENTIAL CARE,881617,140545330,23-Feb-16,"3,679.96",ACTION ON HEARING LOSS,SP0001359
WANDSWORTH COUNCIL,Revenue,ASC,SOCIAL SERVICES,PRIVATE,EXTERNAL RESIDENTIAL CARE,881456,140545330,23-Feb-16,"10,511.04",BUTTERFLYS CARE HOMES LTD,SP0008006
WANDSWORTH COUNCIL,Revenue,ASC,SOCIAL SERVICES,CUSTOMER & CLIENT RECPTS - EXT,CL CONT EXTERNAL RESIDENTIAL,873719,140580720,12-Feb-16,(321.80),ACTION ON HEARING LOSS,SP0001359
WANDSWORTH COUNCIL,Revenue,ASC,SOCIAL SERVICES,OTHER AGENCIES,EXTERNAL OUTREACH,866341,142043330,05-Feb-16,532.56,NAS SERVICES LIMITED,SP0000217
WANDSWORTH COUNCIL,Revenue,ASC,SOCIAL SERVICES,OTHER AGENCIES,EXTERNAL OUTREACH,885756,142043330,29-Feb-16,532.56,NAS SERVICES LIMITED,SP0000217
WANDSWORTH COUNCIL,Revenue,ASC,SOCIAL SERVICES,OTHER AGENCIES,EXTERNAL OUTREACH,875141,142043330,16-Feb-16,595.08,ROYAL ASSOCIATION FOR DEAF PEOPLE,SP0001251
WANDSWORTH COUNCIL,Revenue,ASC,SOCIAL SERVICES,PRIVATE,EXTERNAL- MISC (CLEAN-UPS ETC),881958,142045280,23-Feb-16,520.00,TOP CLASS  CLEANING SERVICES,SP0005647
WANDSWORTH COUNCIL,Revenue,ASC,SOCIAL SERVICES,PRIVATE,EXTERNAL DAYCARE,869613,142045290,09-Feb-16,118.73,SHARE COMMUNITY,SP0000329
WANDSWORTH COUNCIL,Revenue,ASC,SOCIAL SERVICES,PRIVATE,EXTERNAL DAYCARE,885700,142045290,29-Feb-16,760.00,WANDSWORTH BENGALI WELFARE ASSOCIATION,SP0000479
WANDSWORTH COUNCIL,Revenue,ASC,SOCIAL SERVICES,PRIVATE,EXTERNAL DAYCARE,884275,142045290,25-Feb-16,552.00,SOUND MINDS,SP0000721
WANDSWORTH COUNCIL,Revenue,ASC,SOCIAL SERVICES,PRIVATE,EXTERNAL DAYCARE,884285,142045290,25-Feb-16,269.60,SOUND MINDS,SP0000721
WANDSWORTH COUNCIL,Revenue,ASC,SOCIAL SERVICES,PRIVATE,EXTERNAL DAYCARE,869620,142045290,09-Feb-16,511.50,TOGETHER WORKING FOR WELLBEING,SP0000950
WANDSWORTH COUNCIL,Revenue,ASC,SOCIAL SERVICES,PRIVATE,EXTERNAL DAYCARE,869626,142045290,09-Feb-16,643.50,TOGETHER WORKING FOR WELLBEING,SP0000950
WANDSWORTH COUNCIL,Revenue,ASC,SOCIAL SERVICES,PRIVATE,EXTERNAL DAYCARE,869610,142045290,09-Feb-16,660.00,WESTMINSTER MIND,SP0005471
WANDSWORTH COUNCIL,Revenue,ASC,SOCIAL SERVICES,PRIVATE,EXTERNAL DAYCARE,866541,142045290,05-Feb-16,"1,200.00",MOSAIC CLUBHOUSE,SP0008847
WANDSWORTH COUNCIL,Revenue,ASC,SOCIAL SERVICES,PRIVATE,EXTERNAL HOMECARE,869546,142045300,09-Feb-16,"1,120.60",HOLISTIC COMMUNITY CARE LTD,SP0000032
WANDSWORTH COUNCIL,Revenue,ASC,SOCIAL SERVICES,PRIVATE,EXTERNAL HOMECARE,869578,142045300,09-Feb-16,622.90,HOLISTIC COMMUNITY CARE LTD,SP0000032
WANDSWORTH COUNCIL,Revenue,ASC,SOCIAL SERVICES,PRIVATE,EXTERNAL HOMECARE,885629,142045300,29-Feb-16,"1,115.85",HOLISTIC COMMUNITY CARE LTD,SP0000032
WANDSWORTH COUNCIL,Revenue,ASC,SOCIAL SERVICES,PRIVATE,EXTERNAL HOMECARE,885657,142045300,29-Feb-16,632.45,HOLISTIC COMMUNITY CARE LTD,SP0000032
WANDSWORTH COUNCIL,Revenue,ASC,SOCIAL SERVICES,PRIVATE,EXTERNAL HOMECARE,871992,142045300,11-Feb-16,752.75,CARE UK HOMECARE LTD,SP0000081
WANDSWORTH COUNCIL,Revenue,ASC,SOCIAL SERVICES,PRIVATE,EXTERNAL HOMECARE,883808,142045300,25-Feb-16,911.55,SOMA HEALTHCARE LTD,SP0001116
WANDSWORTH COUNCIL,Revenue,ASC,SOCIAL SERVICES,PRIVATE,EXTERNAL HOMECARE,883827,142045300,25-Feb-16,865.62,SOMA HEALTHCARE LTD,SP0001116
WANDSWORTH COUNCIL,Revenue,ASC,SOCIAL SERVICES,PRIVATE,EXTERNAL HOMECARE,885690,142045300,29-Feb-16,"4,176.88",SOMA HEALTHCARE LTD,SP0001116
WANDSWORTH COUNCIL,Revenue,ASC,SOCIAL SERVICES,PRIVATE,EXTERNAL HOMECARE,872674,142045300,11-Feb-16,631.20,WESTMINSTER HOMECARE LTD,SP0001548
WANDSWORTH COUNCIL,Revenue,ASC,SOCIAL SERVICES,PRIVATE,EXTERNAL HOMECARE,872681,142045300,11-Feb-16,"3,922.70",WESTMINSTER HOMECARE LTD,SP0001548
WANDSWORTH COUNCIL,Revenue,ASC,SOCIAL SERVICES,PRIVATE,EXTERNAL HOMECARE,873765,142045300,12-Feb-16,"4,168.85",WESTMINSTER HOMECARE LTD,SP0001548
WANDSWORTH COUNCIL,Revenue,ASC,SOCIAL SERVICES,PRIVATE,EXTERNAL HOMECARE,863464,142045300,01-Feb-16,530.80,SUPREME CARE SERVICE LTD,SP0001600
WANDSWORTH COUNCIL,Revenue,ASC,SOCIAL SERVICES,PRIVATE,EXTERNAL HOMECARE,869832,142045300,09-Feb-16,416.67,CLEARUP SOLUTIONS,SP0001633
WANDSWORTH COUNCIL,Revenue,ASC,SOCIAL SERVICES,PRIVATE,EXTERNAL HOMECARE,885728,142045300,29-Feb-16,650.00,TOP CLASS  CLEANING SERVICES,SP0005647
WANDSWORTH COUNCIL,Revenue,ASC,SOCIAL SERVICES,PRIVATE,EXTERNAL HOMECARE,873745,142045300,12-Feb-16,500.00,STOCKWELLCARE SUPPORT SERVICES,SP0006011
WANDSWORTH COUNCIL,Revenue,ASC,SOCIAL SERVICES,PRIVATE,EXTERNAL HOMECARE,885684,142045300,29-Feb-16,653.20,MCCALLUM CARE LTD CAREMARK (WANDSWORTH),SP0006036
WANDSWORTH COUNCIL,Revenue,ASC,SOCIAL SERVICES,PRIVATE,EXTERNAL HOMECARE,885685,142045300,29-Feb-16,736.40,MCCALLUM CARE LTD CAREMARK (WANDSWORTH),SP0006036
WANDSWORTH COUNCIL,Revenue,ASC,SOCIAL SERVICES,PRIVATE,EXTERNAL HOMECARE,885688,142045300,29-Feb-16,776.33,MCCALLUM CARE LTD CAREMARK (WANDSWORTH),SP0006036
WANDSWORTH COUNCIL,Revenue,ASC,SOCIAL SERVICES,PRIVATE,EXTERNAL HOMECARE,875024,142045300,16-Feb-16,"1,010.15",LONDON HOMECARE LTD,SP0009029
WANDSWORTH COUNCIL,Revenue,ASC,SOCIAL SERVICES,PRIVATE,EXTERNAL HOMECARE,867385,142045300,08-Feb-16,744.00,PROFESSIONAL CARE SUPPORT SERVICES LTD,SP0010033
WANDSWORTH COUNCIL,Revenue,ASC,SOCIAL SERVICES,PRIVATE,EXTERNAL NURSING CARE,884846,142045310,26-Feb-16,"2,716.60",GEORGE POTTER CARE HOME LTD,SP0000276
WANDSWORTH COUNCIL,Revenue,ASC,SOCIAL SERVICES,PRIVATE,EXTERNAL NURSING CARE,884189,142045310,25-Feb-16,"3,204.43",ROSEDENE NURSING HOME,SP0000316
WANDSWORTH COUNCIL,Revenue,ASC,SOCIAL SERVICES,PRIVATE,EXTERNAL NURSING CARE,884192,142045310,25-Feb-16,"3,231.43",ROSEDENE NURSING HOME,SP0000316
WANDSWORTH COUNCIL,Revenue,ASC,SOCIAL SERVICES,PRIVATE,EXTERNAL NURSING CARE,884194,142045310,25-Feb-16,"3,231.43",ROSEDENE NURSING HOME,SP0000316
WANDSWORTH COUNCIL,Revenue,ASC,SOCIAL SERVICES,PRIVATE,EXTERNAL NURSING CARE,884195,142045310,25-Feb-16,"4,176.00",ROSEDENE NURSING HOME,SP0000316
WANDSWORTH COUNCIL,Revenue,ASC,SOCIAL SERVICES,PRIVATE,EXTERNAL NURSING CARE,884199,142045310,25-Feb-16,"3,231.43",ROSEDENE NURSING HOME,SP0000316
WANDSWORTH COUNCIL,Revenue,ASC,SOCIAL SERVICES,PRIVATE,EXTERNAL NURSING CARE,884202,142045310,25-Feb-16,"3,556.64",ROSEDENE NURSING HOME,SP0000316
WANDSWORTH COUNCIL,Revenue,ASC,SOCIAL SERVICES,PRIVATE,EXTERNAL NURSING CARE,884206,142045310,25-Feb-16,"3,521.43",ROSEDENE NURSING HOME,SP0000316
WANDSWORTH COUNCIL,Revenue,ASC,SOCIAL SERVICES,PRIVATE,EXTERNAL NURSING CARE,884768,142045310,26-Feb-16,"3,025.64",NIGHTINGALE HOUSE,SP0000582
WANDSWORTH COUNCIL,Revenue,ASC,SOCIAL SERVICES,PRIVATE,EXTERNAL NURSING CARE,884870,142045310,26-Feb-16,"4,195.96",TRINITY COURT NURSING HOME,SP0001001
WANDSWORTH COUNCIL,Revenue,ASC,SOCIAL SERVICES,PRIVATE,EXTERNAL NURSING CARE,884883,142045310,26-Feb-16,"3,383.00",TRINITY COURT NURSING HOME,SP0001001
WANDSWORTH COUNCIL,Revenue,ASC,SOCIAL SERVICES,PRIVATE,EXTERNAL NURSING CARE,884884,142045310,26-Feb-16,"2,899.16",TRINITY COURT NURSING HOME,SP0001001
WANDSWORTH COUNCIL,Revenue,ASC,SOCIAL SERVICES,PRIVATE,EXTERNAL NURSING CARE,884886,142045310,26-Feb-16,"3,217.00",TRINITY COURT NURSING HOME,SP0001001
WANDSWORTH COUNCIL,Revenue,ASC,SOCIAL SERVICES,PRIVATE,EXTERNAL NURSING CARE,884888,142045310,26-Feb-16,"2,948.80",TRINITY COURT NURSING HOME,SP0001001
WANDSWORTH COUNCIL,Revenue,ASC,SOCIAL SERVICES,PRIVATE,EXTERNAL NURSING CARE,884889,142045310,26-Feb-16,"2,952.44",TRINITY COURT NURSING HOME,SP0001001
WANDSWORTH COUNCIL,Revenue,ASC,SOCIAL SERVICES,PRIVATE,EXTERNAL NURSING CARE,884890,142045310,26-Feb-16,"2,948.84",TRINITY COURT NURSING HOME,SP0001001
WANDSWORTH COUNCIL,Revenue,ASC,SOCIAL SERVICES,PRIVATE,EXTERNAL NURSING CARE,884891,142045310,26-Feb-16,"2,857.72",TRINITY COURT NURSING HOME,SP0001001
WANDSWORTH COUNCIL,Revenue,ASC,SOCIAL SERVICES,PRIVATE,EXTERNAL NURSING CARE,881453,142045310,23-Feb-16,"3,347.51",TRILODGE LTD,SP0001156
WANDSWORTH COUNCIL,Revenue,ASC,SOCIAL SERVICES,PRIVATE,EXTERNAL RESIDENTIAL CARE,865639,142045330,04-Feb-16,"7,840.44",CMG HOMES LTD,SP0000075
WANDSWORTH COUNCIL,Revenue,ASC,SOCIAL SERVICES,PRIVATE,EXTERNAL RESIDENTIAL CARE,884853,142045330,26-Feb-16,"2,421.64",RICHARD CUSDEN HOMES LTD,SP0000268
WANDSWORTH COUNCIL,Revenue,ASC,SOCIAL SERVICES,PRIVATE,EXTERNAL RESIDENTIAL CARE,879349,142045330,19-Feb-16,"2,424.00",JOYCARE HOME SERVICES LTD,SP0000339
WANDSWORTH COUNCIL,Revenue,ASC,SOCIAL SERVICES,PRIVATE,EXTERNAL RESIDENTIAL CARE,883786,142045330,25-Feb-16,"2,329.82",ASTRA HOMES LTD,SP0000374
WANDSWORTH COUNCIL,Revenue,ASC,SOCIAL SERVICES,PRIVATE,EXTERNAL RESIDENTIAL CARE,883787,142045330,25-Feb-16,"2,329.82",ASTRA HOMES LTD,SP0000374
WANDSWORTH COUNCIL,Revenue,ASC,SOCIAL SERVICES,PRIVATE,EXTERNAL RESIDENTIAL CARE,883788,142045330,25-Feb-16,"2,615.18",ASTRA HOMES LTD,SP0000374
WANDSWORTH COUNCIL,Revenue,ASC,SOCIAL SERVICES,PRIVATE,EXTERNAL RESIDENTIAL CARE,881471,142045330,23-Feb-16,"2,929.00",REDACTED PERSONAL DATA,SP0000408
WANDSWORTH COUNCIL,Revenue,ASC,SOCIAL SERVICES,PRIVATE,EXTERNAL RESIDENTIAL CARE,881564,142045330,23-Feb-16,"3,314.41",LANGLEY COURT REST HOME,SP0000580
WANDSWORTH COUNCIL,Revenue,ASC,SOCIAL SERVICES,PRIVATE,EXTERNAL RESIDENTIAL CARE,881509,142045330,23-Feb-16,"2,760.72",THE REGARD PARTNERSHIP,SP0000588
WANDSWORTH COUNCIL,Revenue,ASC,SOCIAL SERVICES,PRIVATE,EXTERNAL RESIDENTIAL CARE,883779,142045330,25-Feb-16,"13,464.29",ROSCLARE,SP0000663
WANDSWORTH COUNCIL,Revenue,ASC,SOCIAL SERVICES,PRIVATE,EXTERNAL RESIDENTIAL CARE,865652,142045330,04-Feb-16,"3,714.36",229 MITCHAM LANE LTD,SP0000884
WANDSWORTH COUNCIL,Revenue,ASC,SOCIAL SERVICES,PRIVATE,EXTERNAL RESIDENTIAL CARE,877830,142045330,18-Feb-16,"4,764.41",229 MITCHAM LANE LTD,SP0000884
WANDSWORTH COUNCIL,Revenue,ASC,SOCIAL SERVICES,PRIVATE,EXTERNAL RESIDENTIAL CARE,884207,142045330,25-Feb-16,"4,153.76",TOGETHER WORKING FOR WELLBEING,SP0000950
WANDSWORTH COUNCIL,Revenue,ASC,SOCIAL SERVICES,PRIVATE,EXTERNAL RESIDENTIAL CARE,883248,142045330,24-Feb-16,"2,504.80",QUANTUM CARE LTD,SP0001151
WANDSWORTH COUNCIL,Revenue,ASC,SOCIAL SERVICES,PRIVATE,EXTERNAL RESIDENTIAL CARE,867384,142045330,08-Feb-16,"2,418.00",THORNTON LODGE,SP0001197
WANDSWORTH COUNCIL,Revenue,ASC,SOCIAL SERVICES,PRIVATE,EXTERNAL RESIDENTIAL CARE,881478,142045330,23-Feb-16,"2,280.00",THORNTON LODGE,SP0001197
WANDSWORTH COUNCIL,Revenue,ASC,SOCIAL SERVICES,PRIVATE,EXTERNAL RESIDENTIAL CARE,881479,142045330,23-Feb-16,"2,184.00",THORNTON LODGE,SP0001197
WANDSWORTH COUNCIL,Revenue,ASC,SOCIAL SERVICES,PRIVATE,EXTERNAL RESIDENTIAL CARE,881482,142045330,23-Feb-16,"2,084.93",DEEPDENE CARE LTD,SP0001199
WANDSWORTH COUNCIL,Revenue,ASC,SOCIAL SERVICES,PRIVATE,EXTERNAL RESIDENTIAL CARE,881483,142045330,23-Feb-16,"2,301.35",DEEPDENE CARE LTD,SP0001199
WANDSWORTH COUNCIL,Revenue,ASC,SOCIAL SERVICES,PRIVATE,EXTERNAL RESIDENTIAL CARE,881486,142045330,23-Feb-16,"2,861.64",DEEPDENE CARE LTD,SP0001199
WANDSWORTH COUNCIL,Revenue,ASC,SOCIAL SERVICES,PRIVATE,EXTERNAL RESIDENTIAL CARE,881487,142045330,23-Feb-16,"2,952.53",DEEPDENE CARE LTD,SP0001199
WANDSWORTH COUNCIL,Revenue,ASC,SOCIAL SERVICES,PRIVATE,EXTERNAL RESIDENTIAL CARE,881488,142045330,23-Feb-16,"2,084.89",DEEPDENE CARE LTD,SP0001199
WANDSWORTH COUNCIL,Revenue,ASC,SOCIAL SERVICES,PRIVATE,EXTERNAL RESIDENTIAL CARE,881565,142045330,23-Feb-16,"2,625.04",REDACTED PERSONAL DATA,SP0001200
WANDSWORTH COUNCIL,Revenue,ASC,SOCIAL SERVICES,PRIVATE,EXTERNAL RESIDENTIAL CARE,881566,142045330,23-Feb-16,"2,625.04",REDACTED PERSONAL DATA,SP0001200
WANDSWORTH COUNCIL,Revenue,ASC,SOCIAL SERVICES,PRIVATE,EXTERNAL RESIDENTIAL CARE,881567,142045330,23-Feb-16,"2,714.40",REDACTED PERSONAL DATA,SP0001200
WANDSWORTH COUNCIL,Revenue,ASC,SOCIAL SERVICES,PRIVATE,EXTERNAL RESIDENTIAL CARE,881475,142045330,23-Feb-16,"3,728.53",CHRIST THE KING RESIDENTIAL CARE,SP0001203
WANDSWORTH COUNCIL,Revenue,ASC,SOCIAL SERVICES,PRIVATE,EXTERNAL RESIDENTIAL CARE,869690,142045330,09-Feb-16,"3,400.00",ADMIRAL HEALTHCARE LTD,SP0001227
WANDSWORTH COUNCIL,Revenue,ASC,SOCIAL SERVICES,PRIVATE,EXTERNAL RESIDENTIAL CARE,869691,142045330,09-Feb-16,"3,400.00",ADMIRAL HEALTHCARE LTD,SP0001227
WANDSWORTH COUNCIL,Revenue,ASC,SOCIAL SERVICES,PRIVATE,EXTERNAL RESIDENTIAL CARE,873744,142045330,12-Feb-16,"4,424.00",ADMIRAL HEALTHCARE LTD,SP0001227
WANDSWORTH COUNCIL,Revenue,ASC,SOCIAL SERVICES,PRIVATE,EXTERNAL RESIDENTIAL CARE,879167,142045330,19-Feb-16,"4,000.00",ADMIRAL HEALTHCARE LTD,SP0001227
WANDSWORTH COUNCIL,Revenue,ASC,SOCIAL SERVICES,PRIVATE,EXTERNAL RESIDENTIAL CARE,879168,142045330,19-Feb-16,"4,000.00",ADMIRAL HEALTHCARE LTD,SP0001227
WANDSWORTH COUNCIL,Revenue,ASC,SOCIAL SERVICES,PRIVATE,EXTERNAL RESIDENTIAL CARE,879169,142045330,19-Feb-16,"4,000.00",ADMIRAL HEALTHCARE LTD,SP0001227
WANDSWORTH COUNCIL,Revenue,ASC,SOCIAL SERVICES,PRIVATE,EXTERNAL RESIDENTIAL CARE,879170,142045330,19-Feb-16,"4,000.00",ADMIRAL HEALTHCARE LTD,SP0001227
WANDSWORTH COUNCIL,Revenue,ASC,SOCIAL SERVICES,PRIVATE,EXTERNAL RESIDENTIAL CARE,879171,142045330,19-Feb-16,"4,000.00",ADMIRAL HEALTHCARE LTD,SP0001227
WANDSWORTH COUNCIL,Revenue,ASC,SOCIAL SERVICES,PRIVATE,EXTERNAL RESIDENTIAL CARE,879172,142045330,19-Feb-16,"4,000.00",ADMIRAL HEALTHCARE LTD,SP0001227
WANDSWORTH COUNCIL,Revenue,ASC,SOCIAL SERVICES,PRIVATE,EXTERNAL RESIDENTIAL CARE,879173,142045330,19-Feb-16,"4,000.00",ADMIRAL HEALTHCARE LTD,SP0001227
WANDSWORTH COUNCIL,Revenue,ASC,SOCIAL SERVICES,PRIVATE,EXTERNAL RESIDENTIAL CARE,879174,142045330,19-Feb-16,"4,000.00",ADMIRAL HEALTHCARE LTD,SP0001227
WANDSWORTH COUNCIL,Revenue,ASC,SOCIAL SERVICES,PRIVATE,EXTERNAL RESIDENTIAL CARE,879175,142045330,19-Feb-16,"4,000.00",ADMIRAL HEALTHCARE LTD,SP0001227
WANDSWORTH COUNCIL,Revenue,ASC,SOCIAL SERVICES,PRIVATE,EXTERNAL RESIDENTIAL CARE,879176,142045330,19-Feb-16,"4,000.00",ADMIRAL HEALTHCARE LTD,SP0001227
WANDSWORTH COUNCIL,Revenue,ASC,SOCIAL SERVICES,PRIVATE,EXTERNAL RESIDENTIAL CARE,879177,142045330,19-Feb-16,"4,000.00",ADMIRAL HEALTHCARE LTD,SP0001227
WANDSWORTH COUNCIL,Revenue,ASC,SOCIAL SERVICES,PRIVATE,EXTERNAL RESIDENTIAL CARE,881925,142045330,23-Feb-16,"7,542.86",ADMIRAL HEALTHCARE LTD,SP0001227
WANDSWORTH COUNCIL,Revenue,ASC,SOCIAL SERVICES,PRIVATE,EXTERNAL RESIDENTIAL CARE,883245,142045330,24-Feb-16,"3,400.00",ADMIRAL HEALTHCARE LTD,SP0001227
WANDSWORTH COUNCIL,Revenue,ASC,SOCIAL SERVICES,PRIVATE,EXTERNAL RESIDENTIAL CARE,873718,142045330,12-Feb-16,"3,984.80",ACTION ON HEARING LOSS,SP0001359
WANDSWORTH COUNCIL,Revenue,ASC,SOCIAL SERVICES,PRIVATE,EXTERNAL RESIDENTIAL CARE,863460,142045330,01-Feb-16,"19,550.00",COMMUNITY HOUSING & THERAPY,SP0001366
WANDSWORTH COUNCIL,Revenue,ASC,SOCIAL SERVICES,PRIVATE,EXTERNAL RESIDENTIAL CARE,865641,142045330,04-Feb-16,"4,250.00",COMMUNITY HOUSING & THERAPY,SP0001366
WANDSWORTH COUNCIL,Revenue,ASC,SOCIAL SERVICES,PRIVATE,EXTERNAL RESIDENTIAL CARE,865644,142045330,04-Feb-16,"4,300.00",COMMUNITY HOUSING & THERAPY,SP0001366
WANDSWORTH COUNCIL,Revenue,ASC,SOCIAL SERVICES,PRIVATE,EXTERNAL RESIDENTIAL CARE,865645,142045330,04-Feb-16,"3,250.00",COMMUNITY HOUSING & THERAPY,SP0001366
WANDSWORTH COUNCIL,Revenue,ASC,SOCIAL SERVICES,PRIVATE,EXTERNAL RESIDENTIAL CARE,867379,142045330,08-Feb-16,"9,964.28",ABBEY HOUSE,SP0001434
WANDSWORTH COUNCIL,Revenue,ASC,SOCIAL SERVICES,PRIVATE,EXTERNAL RESIDENTIAL CARE,881921,142045330,23-Feb-16,"3,000.00",ABBEY HOUSE,SP0001434
WANDSWORTH COUNCIL,Revenue,ASC,SOCIAL SERVICES,PRIVATE,EXTERNAL RESIDENTIAL CARE,881923,142045330,23-Feb-16,"2,440.00",ABBEY HOUSE,SP0001434
WANDSWORTH COUNCIL,Revenue,ASC,SOCIAL SERVICES,PRIVATE,EXTERNAL RESIDENTIAL CARE,881924,142045330,23-Feb-16,"3,200.00",ABBEY HOUSE,SP0001434
WANDSWORTH COUNCIL,Revenue,ASC,SOCIAL SERVICES,PRIVATE,EXTERNAL RESIDENTIAL CARE,881508,142045330,23-Feb-16,"5,200.00",LONA LODGE,SP0001570
WANDSWORTH COUNCIL,Revenue,ASC,SOCIAL SERVICES,PRIVATE,EXTERNAL RESIDENTIAL CARE,881510,142045330,23-Feb-16,"5,200.00",LONA LODGE,SP0001570
WANDSWORTH COUNCIL,Revenue,ASC,SOCIAL SERVICES,PRIVATE,EXTERNAL RESIDENTIAL CARE,883240,142045330,24-Feb-16,"1,157.14",LONA LODGE,SP0001570
WANDSWORTH COUNCIL,Revenue,ASC,SOCIAL SERVICES,PRIVATE,EXTERNAL RESIDENTIAL CARE,885603,142045330,29-Feb-16,"5,400.00",LONA LODGE,SP0001570
WANDSWORTH COUNCIL,Revenue,ASC,SOCIAL SERVICES,PRIVATE,EXTERNAL RESIDENTIAL CARE,881474,142045330,23-Feb-16,"2,833.59",ASSURANCE CARE SERVICES LTD,SP0006652
WANDSWORTH COUNCIL,Revenue,ASC,SOCIAL SERVICES,PRIVATE,EXTERNAL RESIDENTIAL CARE,881535,142045330,23-Feb-16,"3,231.18",ASSURANCE CARE SERVICES LTD,SP0006652
WANDSWORTH COUNCIL,Revenue,ASC,SOCIAL SERVICES,PRIVATE,EXTERNAL RESIDENTIAL CARE,881455,142045330,23-Feb-16,"9,972.60",BUTTERFLYS CARE HOMES LTD,SP0008006
WANDSWORTH COUNCIL,Revenue,ASC,SOCIAL SERVICES,PRIVATE,EXTERNAL RESIDENTIAL CARE,881457,142045330,23-Feb-16,"10,511.04",BUTTERFLYS CARE HOMES LTD,SP0008006
WANDSWORTH COUNCIL,Revenue,ASC,SOCIAL SERVICES,PRIVATE,EXTERNAL RESIDENTIAL CARE,881476,142045330,23-Feb-16,"2,278.53",MINSA CARE LTD,SP0008012
WANDSWORTH COUNCIL,Revenue,ASC,SOCIAL SERVICES,PRIVATE,EXTERNAL RESIDENTIAL CARE,881469,142045330,23-Feb-16,"2,857.00",PRIMROSE HOUSE RESIDENTIAL HOME,SP0008026
WANDSWORTH COUNCIL,Revenue,ASC,SOCIAL SERVICES,PRIVATE,EXTERNAL RESIDENTIAL CARE,879306,142045330,19-Feb-16,"2,583.20",COUNTRY COURT CARE,SP0009215
WANDSWORTH COUNCIL,Revenue,ASC,SOCIAL SERVICES,PRIVATE,EXTERNAL RESIDENTIAL CARE,881451,142045330,23-Feb-16,"7,457.06",LANCASTER LODGE,SP0009668
WANDSWORTH COUNCIL,Revenue,ASC,SOCIAL SERVICES,PRIVATE,EXTERNAL RESIDENTIAL CARE,881452,142045330,23-Feb-16,"7,457.06",LANCASTER LODGE,SP0009668
WANDSWORTH COUNCIL,Revenue,ASC,SOCIAL SERVICES,PRIVATE,EXTERNAL RESIDENTIAL CARE,881563,142045330,23-Feb-16,"4,128.97",FIRST CARE LODGE,SP0009965
WANDSWORTH COUNCIL,Revenue,ASC,SOCIAL SERVICES,PRIVATE,EXTERNAL RESIDENTIAL CARE,874958,142045330,16-Feb-16,"2,532.21",ORCHID HOMES T/A LA ROSA 2,SP0010542
WANDSWORTH COUNCIL,Revenue,ASC,SOCIAL SERVICES,PRIVATE,EXTERNAL RESIDENTIAL CARE,883802,142045330,25-Feb-16,"9,011.42",C & K HEALTHCARE LTD T/A COLLEGE HILL RH,SP0010610
WANDSWORTH COUNCIL,Revenue,ASC,SOCIAL SERVICES,PRIVATE,ONE TO ONE CARE,883888,142046220,25-Feb-16,"3,298.54",ROSEDENE NURSING HOME,SP0000316
WANDSWORTH COUNCIL,Revenue,ASC,SOCIAL SERVICES,VOL ASS,SUPPORTED HOUSING PROGRAMME,883784,142048030,25-Feb-16,995.53,ASTRA HOMES LTD,SP0000374
WANDSWORTH COUNCIL,Revenue,ASC,SOCIAL SERVICES,VOL ASS,SUPPORTED HOUSING PROGRAMME,883886,142048030,25-Feb-16,"1,445.86",ASTRA HOMES LTD,SP0000374
WANDSWORTH COUNCIL,Revenue,ASC,SOCIAL SERVICES,VOL ASS,SUPPORTED HOUSING PROGRAMME,883887,142048030,25-Feb-16,"1,570.14",ASTRA HOMES LTD,SP0000374
WANDSWORTH COUNCIL,Revenue,ASC,SOCIAL SERVICES,VOL ASS,SUPPORTED HOUSING PROGRAMME,873677,142048030,12-Feb-16,983.76,C M CARE LTD,SP0000455
WANDSWORTH COUNCIL,Revenue,ASC,SOCIAL SERVICES,VOL ASS,SUPPORTED HOUSING PROGRAMME,873678,142048030,12-Feb-16,473.20,C M CARE LTD,SP0000455
WANDSWORTH COUNCIL,Revenue,ASC,SOCIAL SERVICES,VOL ASS,SUPPORTED HOUSING PROGRAMME,873679,142048030,12-Feb-16,"1,516.56",C M CARE LTD,SP0000455
WANDSWORTH COUNCIL,Revenue,ASC,SOCIAL SERVICES,VOL ASS,SUPPORTED HOUSING PROGRAMME,873682,142048030,12-Feb-16,"1,516.56",C M CARE LTD,SP0000455
WANDSWORTH COUNCIL,Revenue,ASC,SOCIAL SERVICES,VOL ASS,SUPPORTED HOUSING PROGRAMME,873686,142048030,12-Feb-16,432.00,C M CARE LTD,SP0000455
WANDSWORTH COUNCIL,Revenue,ASC,SOCIAL SERVICES,VOL ASS,SUPPORTED HOUSING PROGRAMME,873687,142048030,12-Feb-16,"1,896.36",C M CARE LTD,SP0000455
WANDSWORTH COUNCIL,Revenue,ASC,SOCIAL SERVICES,VOL ASS,SUPPORTED HOUSING PROGRAMME,873691,142048030,12-Feb-16,"1,692.00",C M CARE LTD,SP0000455
WANDSWORTH COUNCIL,Revenue,ASC,SOCIAL SERVICES,VOL ASS,SUPPORTED HOUSING PROGRAMME,873692,142048030,12-Feb-16,"1,692.00",C M CARE LTD,SP0000455
WANDSWORTH COUNCIL,Revenue,ASC,SOCIAL SERVICES,VOL ASS,SUPPORTED HOUSING PROGRAMME,873694,142048030,12-Feb-16,"1,803.00",C M CARE LTD,SP0000455
WANDSWORTH COUNCIL,Revenue,ASC,SOCIAL SERVICES,VOL ASS,SUPPORTED HOUSING PROGRAMME,873695,142048030,12-Feb-16,"1,803.00",C M CARE LTD,SP0000455
WANDSWORTH COUNCIL,Revenue,ASC,SOCIAL SERVICES,VOL ASS,SUPPORTED HOUSING PROGRAMME,873696,142048030,12-Feb-16,"2,465.48",C M CARE LTD,SP0000455
WANDSWORTH COUNCIL,Revenue,ASC,SOCIAL SERVICES,VOL ASS,SUPPORTED HOUSING PROGRAMME,871920,142048030,11-Feb-16,655.25,SERVOL COMMUNITY TRUST,SP0000539
WANDSWORTH COUNCIL,Revenue,ASC,SOCIAL SERVICES,VOL ASS,SUPPORTED HOUSING PROGRAMME,871921,142048030,11-Feb-16,740.72,SERVOL COMMUNITY TRUST,SP0000539
WANDSWORTH COUNCIL,Revenue,ASC,SOCIAL SERVICES,VOL ASS,SUPPORTED HOUSING PROGRAMME,871924,142048030,11-Feb-16,655.25,SERVOL COMMUNITY TRUST,SP0000539
WANDSWORTH COUNCIL,Revenue,ASC,SOCIAL SERVICES,VOL ASS,SUPPORTED HOUSING PROGRAMME,871925,142048030,11-Feb-16,655.25,SERVOL COMMUNITY TRUST,SP0000539
WANDSWORTH COUNCIL,Revenue,ASC,SOCIAL SERVICES,VOL ASS,SUPPORTED HOUSING PROGRAMME,871926,142048030,11-Feb-16,678.24,SERVOL COMMUNITY TRUST,SP0000539
WANDSWORTH COUNCIL,Revenue,ASC,SOCIAL SERVICES,VOL ASS,SUPPORTED HOUSING PROGRAMME,871928,142048030,11-Feb-16,873.31,SERVOL COMMUNITY TRUST,SP0000539
WANDSWORTH COUNCIL,Revenue,ASC,SOCIAL SERVICES,VOL ASS,SUPPORTED HOUSING PROGRAMME,872627,142048030,11-Feb-16,523.46,SERVOL COMMUNITY TRUST,SP0000539
WANDSWORTH COUNCIL,Revenue,ASC,SOCIAL SERVICES,VOL ASS,SUPPORTED HOUSING PROGRAMME,872628,142048030,11-Feb-16,634.11,SERVOL COMMUNITY TRUST,SP0000539
WANDSWORTH COUNCIL,Revenue,ASC,SOCIAL SERVICES,VOL ASS,SUPPORTED HOUSING PROGRAMME,872629,142048030,11-Feb-16,655.25,SERVOL COMMUNITY TRUST,SP0000539
WANDSWORTH COUNCIL,Revenue,ASC,SOCIAL SERVICES,VOL ASS,SUPPORTED HOUSING PROGRAMME,872630,142048030,11-Feb-16,634.11,SERVOL COMMUNITY TRUST,SP0000539
WANDSWORTH COUNCIL,Revenue,ASC,SOCIAL SERVICES,VOL ASS,SUPPORTED HOUSING PROGRAMME,872631,142048030,11-Feb-16,873.31,SERVOL COMMUNITY TRUST,SP0000539
WANDSWORTH COUNCIL,Revenue,ASC,SOCIAL SERVICES,VOL ASS,SUPPORTED HOUSING PROGRAMME,872632,142048030,11-Feb-16,845.14,SERVOL COMMUNITY TRUST,SP0000539
WANDSWORTH COUNCIL,Revenue,ASC,SOCIAL SERVICES,VOL ASS,SUPPORTED HOUSING PROGRAMME,872633,142048030,11-Feb-16,873.31,SERVOL COMMUNITY TRUST,SP0000539
WANDSWORTH COUNCIL,Revenue,ASC,SOCIAL SERVICES,VOL ASS,SUPPORTED HOUSING PROGRAMME,872634,142048030,11-Feb-16,873.31,SERVOL COMMUNITY TRUST,SP0000539
WANDSWORTH COUNCIL,Revenue,ASC,SOCIAL SERVICES,VOL ASS,SUPPORTED HOUSING PROGRAMME,872635,142048030,11-Feb-16,740.73,SERVOL COMMUNITY TRUST,SP0000539
WANDSWORTH COUNCIL,Revenue,ASC,SOCIAL SERVICES,VOL ASS,SUPPORTED HOUSING PROGRAMME,872638,142048030,11-Feb-16,655.25,SERVOL COMMUNITY TRUST,SP0000539
WANDSWORTH COUNCIL,Revenue,ASC,SOCIAL SERVICES,VOL ASS,SUPPORTED HOUSING PROGRAMME,872639,142048030,11-Feb-16,678.23,SERVOL COMMUNITY TRUST,SP0000539
WANDSWORTH COUNCIL,Revenue,ASC,SOCIAL SERVICES,VOL ASS,SUPPORTED HOUSING PROGRAMME,872641,142048030,11-Feb-16,676.11,SERVOL COMMUNITY TRUST,SP0000539
WANDSWORTH COUNCIL,Revenue,ASC,SOCIAL SERVICES,VOL ASS,SUPPORTED HOUSING PROGRAMME,872642,142048030,11-Feb-16,873.31,SERVOL COMMUNITY TRUST,SP0000539
WANDSWORTH COUNCIL,Revenue,ASC,SOCIAL SERVICES,VOL ASS,SUPPORTED HOUSING PROGRAMME,873566,142048030,12-Feb-16,"1,002.48",SERVOL COMMUNITY TRUST,SP0000539
WANDSWORTH COUNCIL,Revenue,ASC,SOCIAL SERVICES,VOL ASS,SUPPORTED HOUSING PROGRAMME,881540,142048030,23-Feb-16,692.93,SERVOL COMMUNITY TRUST,SP0000539
WANDSWORTH COUNCIL,Revenue,ASC,SOCIAL SERVICES,VOL ASS,SUPPORTED HOUSING PROGRAMME,881543,142048030,23-Feb-16,612.98,SERVOL COMMUNITY TRUST,SP0000539
WANDSWORTH COUNCIL,Revenue,ASC,SOCIAL SERVICES,VOL ASS,SUPPORTED HOUSING PROGRAMME,881544,142048030,23-Feb-16,612.98,SERVOL COMMUNITY TRUST,SP0000539
WANDSWORTH COUNCIL,Revenue,ASC,SOCIAL SERVICES,VOL ASS,SUPPORTED HOUSING PROGRAMME,881545,142048030,23-Feb-16,634.48,SERVOL COMMUNITY TRUST,SP0000539
WANDSWORTH COUNCIL,Revenue,ASC,SOCIAL SERVICES,VOL ASS,SUPPORTED HOUSING PROGRAMME,881547,142048030,23-Feb-16,816.97,SERVOL COMMUNITY TRUST,SP0000539
WANDSWORTH COUNCIL,Revenue,ASC,SOCIAL SERVICES,VOL ASS,SUPPORTED HOUSING PROGRAMME,881548,142048030,23-Feb-16,816.97,SERVOL COMMUNITY TRUST,SP0000539
WANDSWORTH COUNCIL,Revenue,ASC,SOCIAL SERVICES,VOL ASS,SUPPORTED HOUSING PROGRAMME,881549,142048030,23-Feb-16,816.97,SERVOL COMMUNITY TRUST,SP0000539
WANDSWORTH COUNCIL,Revenue,ASC,SOCIAL SERVICES,VOL ASS,SUPPORTED HOUSING PROGRAMME,881550,142048030,23-Feb-16,816.97,SERVOL COMMUNITY TRUST,SP0000539
WANDSWORTH COUNCIL,Revenue,ASC,SOCIAL SERVICES,VOL ASS,SUPPORTED HOUSING PROGRAMME,881551,142048030,23-Feb-16,816.97,SERVOL COMMUNITY TRUST,SP0000539
WANDSWORTH COUNCIL,Revenue,ASC,SOCIAL SERVICES,VOL ASS,SUPPORTED HOUSING PROGRAMME,881552,142048030,23-Feb-16,816.97,SERVOL COMMUNITY TRUST,SP0000539
WANDSWORTH COUNCIL,Revenue,ASC,SOCIAL SERVICES,VOL ASS,SUPPORTED HOUSING PROGRAMME,881553,142048030,23-Feb-16,816.97,SERVOL COMMUNITY TRUST,SP0000539
WANDSWORTH COUNCIL,Revenue,ASC,SOCIAL SERVICES,VOL ASS,SUPPORTED HOUSING PROGRAMME,881554,142048030,23-Feb-16,816.97,SERVOL COMMUNITY TRUST,SP0000539
WANDSWORTH COUNCIL,Revenue,ASC,SOCIAL SERVICES,VOL ASS,SUPPORTED HOUSING PROGRAMME,881555,142048030,23-Feb-16,816.97,SERVOL COMMUNITY TRUST,SP0000539
WANDSWORTH COUNCIL,Revenue,ASC,SOCIAL SERVICES,VOL ASS,SUPPORTED HOUSING PROGRAMME,873722,142048030,12-Feb-16,543.96,THE RICHMOND FELLOWSHIP,SP0000621
